Departmental Family,Entity,Date,Expense Type,Expense Area,Supplier ,Transaction Number,Amount
DEPARTMENT FOR EDUCATION,DEPARTMENT FOR EDUCATION,02/08/2010,CONTRACT PROGRAMME EXPENDITURE,Children and Families Early Years Extended Schools and Special Needs,CRIMINAL RECORDS BUREAU,1000242,152748
DEPARTMENT FOR EDUCATION,DEPARTMENT FOR EDUCATION,02/08/2010,CURRENT GRANTS,School Resources Group,BARNSLEY MBC,4000031435,5178240
DEPARTMENT FOR EDUCATION,DEPARTMENT FOR EDUCATION,02/08/2010,CURRENT GRANTS,School Resources Group,BATH & NORTH EAST SOMERSET COUNCIL,4000031436,3964480
DEPARTMENT FOR EDUCATION,DEPARTMENT FOR EDUCATION,02/08/2010,CURRENT GRANTS,School Resources Group,BEDFORD BOROUGH COUNCIL,4000031437,3848080
DEPARTMENT FOR EDUCATION,DEPARTMENT FOR EDUCATION,02/08/2010,CURRENT GRANTS,School Resources Group,BIRMINGHAM CITY COUNCIL,4000031438,31591680
DEPARTMENT FOR EDUCATION,DEPARTMENT FOR EDUCATION,02/08/2010,CURRENT GRANTS,School Resources Group,BLACKBURN WITH DARWEN BOROUGH COUNCIL,4000031439,4378240
DEPARTMENT FOR EDUCATION,DEPARTMENT FOR EDUCATION,02/08/2010,CURRENT GRANTS,School Resources Group,BLACKPOOL BOROUGH COUNCIL,4000031440,3469320
DEPARTMENT FOR EDUCATION,DEPARTMENT FOR EDUCATION,02/08/2010,CURRENT GRANTS,School Resources Group,BOLTON MBC,4000031441,7037720
DEPARTMENT FOR EDUCATION,DEPARTMENT FOR EDUCATION,02/08/2010,CURRENT GRANTS,School Resources Group,BOURNEMOUTH BOROUGH COUNCIL,4000031442,3171600
DEPARTMENT FOR EDUCATION,DEPARTMENT FOR EDUCATION,02/08/2010,CURRENT GRANTS,School Resources Group,BRACKNELL FOREST BOROUGH COUNCIL,4000031443,2618280
DEPARTMENT FOR EDUCATION,DEPARTMENT FOR EDUCATION,02/08/2010,CURRENT GRANTS,School Resources Group,BRIGHTON & HOVE CITY COUNCIL,4000031444,5263760
DEPARTMENT FOR EDUCATION,DEPARTMENT FOR EDUCATION,02/08/2010,CURRENT GRANTS,School Resources Group,BRISTOL CITY COUNCIL,4000031445,8043440
DEPARTMENT FOR EDUCATION,DEPARTMENT FOR EDUCATION,02/08/2010,CURRENT GRANTS,School Resources Group,BUCKINGHAMSHIRE COUNTY COUNCIL,4000031446,11854480
DEPARTMENT FOR EDUCATION,DEPARTMENT FOR EDUCATION,02/08/2010,CURRENT GRANTS,School Resources Group,BURY MBC,4000031447,4663120
DEPARTMENT FOR EDUCATION,DEPARTMENT FOR EDUCATION,02/08/2010,CURRENT GRANTS,School Resources Group,CALDERDALE MBC,4000031448,5414840
DEPARTMENT FOR EDUCATION,DEPARTMENT FOR EDUCATION,02/08/2010,CURRENT GRANTS,School Resources Group,CAMBRIDGESHIRE COUNTY COUNCIL,4000031449,12786760
DEPARTMENT FOR EDUCATION,DEPARTMENT FOR EDUCATION,02/08/2010,CURRENT GRANTS,School Resources Group,CENTRAL BEDFORDSHIRE COUNCIL,4000031450,5874840
DEPARTMENT FOR EDUCATION,DEPARTMENT FOR EDUCATION,02/08/2010,CURRENT GRANTS,School Resources Group,CHESHIRE EAST COUNCIL,4000031451,8025680
DEPARTMENT FOR EDUCATION,DEPARTMENT FOR EDUCATION,02/08/2010,CURRENT GRANTS,School Resources Group,CHESHIRE WEST & CHESTER COUNCIL,4000031452,7626680
DEPARTMENT FOR EDUCATION,DEPARTMENT FOR EDUCATION,02/08/2010,CURRENT GRANTS,School Resources Group,CITY OF BRADFORD METROPOLITAN DISTRICT COUNCIL,4000031453,14011320
DEPARTMENT FOR EDUCATION,DEPARTMENT FOR EDUCATION,02/08/2010,CURRENT GRANTS,School Resources Group,CITY OF LONDON,4000031454,80840
DEPARTMENT FOR EDUCATION,DEPARTMENT FOR EDUCATION,02/08/2010,CURRENT GRANTS,School Resources Group,CITY OF WESTMINSTER,4000031455,3881800
DEPARTMENT FOR EDUCATION,DEPARTMENT FOR EDUCATION,02/08/2010,CURRENT GRANTS,School Resources Group,CORNWALL COUNCIL,4000031456,11090960
DEPARTMENT FOR EDUCATION,DEPARTMENT FOR EDUCATION,02/08/2010,CURRENT GRANTS,School Resources Group,COUNCIL OF THE ISLES OF SCILLY,4000031457,116653
DEPARTMENT FOR EDUCATION,DEPARTMENT FOR EDUCATION,02/08/2010,CURRENT GRANTS,School Resources Group,COVENTRY CITY COUNCIL,4000031458,7920600
DEPARTMENT FOR EDUCATION,DEPARTMENT FOR EDUCATION,02/08/2010,CURRENT GRANTS,School Resources Group,CUMBRIA COUNTY COUNCIL,4000031459,10398440
DEPARTMENT FOR EDUCATION,DEPARTMENT FOR EDUCATION,02/08/2010,CURRENT GRANTS,School Resources Group,DARLINGTON BOROUGH COUNCIL,4000031460,2436360
DEPARTMENT FOR EDUCATION,DEPARTMENT FOR EDUCATION,02/08/2010,CURRENT GRANTS,School Resources Group,DERBY CITY COUNCIL,4000031461,6162040
DEPARTMENT FOR EDUCATION,DEPARTMENT FOR EDUCATION,02/08/2010,CURRENT GRANTS,School Resources Group,DERBYSHIRE COUNTY COUNCIL,4000031462,17030920
DEPARTMENT FOR EDUCATION,DEPARTMENT FOR EDUCATION,02/08/2010,CURRENT GRANTS,School Resources Group,DEVON COUNTY COUNCIL,4000031463,14854480
DEPARTMENT FOR EDUCATION,DEPARTMENT FOR EDUCATION,02/08/2010,CURRENT GRANTS,School Resources Group,DONCASTER MBC,4000031464,6844920
DEPARTMENT FOR EDUCATION,DEPARTMENT FOR EDUCATION,02/08/2010,CURRENT GRANTS,School Resources Group,DORSET COUNTY COUNCIL,4000031465,8547120
DEPARTMENT FOR EDUCATION,DEPARTMENT FOR EDUCATION,02/08/2010,CURRENT GRANTS,School Resources Group,DUDLEY MBC,4000031466,7990600
DEPARTMENT FOR EDUCATION,DEPARTMENT FOR EDUCATION,02/08/2010,CURRENT GRANTS,School Resources Group,DURHAM COUNTY COUNCIL,4000031467,11539720
DEPARTMENT FOR EDUCATION,DEPARTMENT FOR EDUCATION,02/08/2010,CURRENT GRANTS,School Resources Group,EAST RIDING OF YORKSHIRE,4000031468,7269240
DEPARTMENT FOR EDUCATION,DEPARTMENT FOR EDUCATION,02/08/2010,CURRENT GRANTS,School Resources Group,EAST SUSSEX COUNTY COUNCIL,4000031469,11038200
DEPARTMENT FOR EDUCATION,DEPARTMENT FOR EDUCATION,02/08/2010,CURRENT GRANTS,School Resources Group,ESSEX COUNTY COUNCIL,4000031470,31322600
DEPARTMENT FOR EDUCATION,DEPARTMENT FOR EDUCATION,02/08/2010,CURRENT GRANTS,School Resources Group,GATESHEAD MBC,4000031471,4333400
DEPARTMENT FOR EDUCATION,DEPARTMENT FOR EDUCATION,02/08/2010,CURRENT GRANTS,School Resources Group,GLOUCESTERSHIRE COUNTY COUNCIL,4000031472,12966360
DEPARTMENT FOR EDUCATION,DEPARTMENT FOR EDUCATION,02/08/2010,CURRENT GRANTS,School Resources Group,HALTON BOROUGH COUNCIL,4000031473,3241800
DEPARTMENT FOR EDUCATION,DEPARTMENT FOR EDUCATION,02/08/2010,CURRENT GRANTS,School Resources Group,HAMPSHIRE COUNTY COUNCIL,4000031474,28759720
DEPARTMENT FOR EDUCATION,DEPARTMENT FOR EDUCATION,02/08/2010,CURRENT GRANTS,School Resources Group,HARTLEPOOL BOROUGH COUNCIL,4000031475,2468680
DEPARTMENT FOR EDUCATION,DEPARTMENT FOR EDUCATION,02/08/2010,CURRENT GRANTS,School Resources Group,HEREFORDSHIRE COUNCIL,4000031476,3501400
DEPARTMENT FOR EDUCATION,DEPARTMENT FOR EDUCATION,02/08/2010,CURRENT GRANTS,School Resources Group,HERTFORDSHIRE,4000031477,26832240
DEPARTMENT FOR EDUCATION,DEPARTMENT FOR EDUCATION,02/08/2010,CURRENT GRANTS,School Resources Group,ISLE OF WIGHT COUNCIL,4000031478,3054840
DEPARTMENT FOR EDUCATION,DEPARTMENT FOR EDUCATION,02/08/2010,CURRENT GRANTS,School Resources Group,KENT COUNTY COUNCIL,4000031479,32356000
DEPARTMENT FOR EDUCATION,DEPARTMENT FOR EDUCATION,02/08/2010,CURRENT GRANTS,School Resources Group,KINGSTON UPON HULL COUNCIL,4000031480,5905720
DEPARTMENT FOR EDUCATION,DEPARTMENT FOR EDUCATION,02/08/2010,CURRENT GRANTS,School Resources Group,KIRKLEES COUNCIL,4000031481,10433280
DEPARTMENT FOR EDUCATION,DEPARTMENT FOR EDUCATION,02/08/2010,CURRENT GRANTS,School Resources Group,KNOWSLEY MBC,4000031482,4026920
DEPARTMENT FOR EDUCATION,DEPARTMENT FOR EDUCATION,02/08/2010,CURRENT GRANTS,School Resources Group,LANCASHIRE COUNTY COUNCIL,4000031483,27254240
DEPARTMENT FOR EDUCATION,DEPARTMENT FOR EDUCATION,02/08/2010,CURRENT GRANTS,School Resources Group,LEEDS CITY COUNCIL,4000031484,16560640
DEPARTMENT FOR EDUCATION,DEPARTMENT FOR EDUCATION,02/08/2010,CURRENT GRANTS,School Resources Group,LEICESTER CITY COUNCIL,4000031485,8166560
DEPARTMENT FOR EDUCATION,DEPARTMENT FOR EDUCATION,02/08/2010,CURRENT GRANTS,School Resources Group,LEICESTERSHIRE COUNTY COUNCIL,4000031486,13977160
DEPARTMENT FOR EDUCATION,DEPARTMENT FOR EDUCATION,02/08/2010,CURRENT GRANTS,School Resources Group,LINCOLNSHIRE COUNTY COUNCIL,4000031487,14842880
DEPARTMENT FOR EDUCATION,DEPARTMENT FOR EDUCATION,02/08/2010,CURRENT GRANTS,School Resources Group,LIVERPOOL CITY COUNCIL,4000031488,10900240
DEPARTMENT FOR EDUCATION,DEPARTMENT FOR EDUCATION,02/08/2010,CURRENT GRANTS,School Resources Group,LONDON BOROUGH OF BARKING & DAGENHAM COUNCIL,4000031489,6092840
DEPARTMENT FOR EDUCATION,DEPARTMENT FOR EDUCATION,02/08/2010,CURRENT GRANTS,School Resources Group,LONDON BOROUGH OF BARNET COUNCIL,4000031490,8531000
DEPARTMENT FOR EDUCATION,DEPARTMENT FOR EDUCATION,02/08/2010,CURRENT GRANTS,School Resources Group,LONDON BOROUGH OF BEXLEY COUNCIL,4000031491,6362600
DEPARTMENT FOR EDUCATION,DEPARTMENT FOR EDUCATION,02/08/2010,CURRENT GRANTS,School Resources Group,LONDON BOROUGH OF BRENT,4000031492,7966960
DEPARTMENT FOR EDUCATION,DEPARTMENT FOR EDUCATION,02/08/2010,CURRENT GRANTS,School Resources Group,LONDON BOROUGH OF BROMLEY COUNCIL,4000031493,7493480
DEPARTMENT FOR EDUCATION,DEPARTMENT FOR EDUCATION,02/08/2010,CURRENT GRANTS,School Resources Group,LONDON BOROUGH OF CAMDEN,4000031494,5362960
DEPARTMENT FOR EDUCATION,DEPARTMENT FOR EDUCATION,02/08/2010,CURRENT GRANTS,School Resources Group,LONDON BOROUGH OF CROYDON COUNCIL,4000031495,8215920
DEPARTMENT FOR EDUCATION,DEPARTMENT FOR EDUCATION,02/08/2010,CURRENT GRANTS,School Resources Group,LONDON BOROUGH OF EALING COUNCIL,4000031496,8653480
DEPARTMENT FOR EDUCATION,DEPARTMENT FOR EDUCATION,02/08/2010,CURRENT GRANTS,School Resources Group,LONDON BOROUGH OF ENFIELD COUNCIL,4000031497,8628400
DEPARTMENT FOR EDUCATION,DEPARTMENT FOR EDUCATION,02/08/2010,CURRENT GRANTS,School Resources Group,LONDON BOROUGH OF GREENWICH,4000031498,7536280
DEPARTMENT FOR EDUCATION,DEPARTMENT FOR EDUCATION,02/08/2010,CURRENT GRANTS,School Resources Group,LONDON BOROUGH OF HAMMERSMITH & FULHAM COUNCIL,4000031499,3755280
DEPARTMENT FOR EDUCATION,DEPARTMENT FOR EDUCATION,02/08/2010,CURRENT GRANTS,School Resources Group,LONDON BOROUGH OF HARINGEY,4000031500,6885160
DEPARTMENT FOR EDUCATION,DEPARTMENT FOR EDUCATION,02/08/2010,CURRENT GRANTS,School Resources Group,LONDON BOROUGH OF HARROW COUNCIL,4000031501,5775080
DEPARTMENT FOR EDUCATION,DEPARTMENT FOR EDUCATION,02/08/2010,CURRENT GRANTS,School Resources Group,LONDON BOROUGH OF HAVERING COUNCIL,4000031502,6316960
DEPARTMENT FOR EDUCATION,DEPARTMENT FOR EDUCATION,02/08/2010,CURRENT GRANTS,School Resources Group,LONDON BOROUGH OF HILLINGDON  COUNCIL,4000031503,7300200
DEPARTMENT FOR EDUCATION,DEPARTMENT FOR EDUCATION,02/08/2010,CURRENT GRANTS,School Resources Group,LONDON BOROUGH OF HOUNSLOW COUNCIL,4000031504,6640160
DEPARTMENT FOR EDUCATION,DEPARTMENT FOR EDUCATION,02/08/2010,CURRENT GRANTS,School Resources Group,LONDON BOROUGH OF ISLINGTON COUNCIL,4000031505,5197040
DEPARTMENT FOR EDUCATION,DEPARTMENT FOR EDUCATION,02/08/2010,CURRENT GRANTS,School Resources Group,LONDON BOROUGH OF LAMBETH COUNCIL,4000031506,7451280
DEPARTMENT FOR EDUCATION,DEPARTMENT FOR EDUCATION,02/08/2010,CURRENT GRANTS,School Resources Group,LONDON BOROUGH OF LEWISHAM,4000031507,7474240
DEPARTMENT FOR EDUCATION,DEPARTMENT FOR EDUCATION,02/08/2010,CURRENT GRANTS,School Resources Group,LONDON BOROUGH OF MERTON COUNCIL,4000031508,4223280
DEPARTMENT FOR EDUCATION,DEPARTMENT FOR EDUCATION,02/08/2010,CURRENT GRANTS,School Resources Group,LONDON BOROUGH OF NEWHAM,4000031509,10653200
DEPARTMENT FOR EDUCATION,DEPARTMENT FOR EDUCATION,02/08/2010,CURRENT GRANTS,School Resources Group,LONDON BOROUGH OF REDBRIDGE,4000031510,7849880
DEPARTMENT FOR EDUCATION,DEPARTMENT FOR EDUCATION,02/08/2010,CURRENT GRANTS,School Resources Group,LONDON BOROUGH OF RICHMOND UPON THAMES,4000031511,3768920
DEPARTMENT FOR EDUCATION,DEPARTMENT FOR EDUCATION,02/08/2010,CURRENT GRANTS,School Resources Group,LONDON BOROUGH OF SOUTHWARK COUNCIL,4000031512,7068560
DEPARTMENT FOR EDUCATION,DEPARTMENT FOR EDUCATION,02/08/2010,CURRENT GRANTS,School Resources Group,LONDON BOROUGH OF SUTTON,4000031513,5290320
DEPARTMENT FOR EDUCATION,DEPARTMENT FOR EDUCATION,02/08/2010,CURRENT GRANTS,School Resources Group,LONDON BOROUGH OF TOWER HAMLETS COUNCIL,4000031514,9824840
DEPARTMENT FOR EDUCATION,DEPARTMENT FOR EDUCATION,02/08/2010,CURRENT GRANTS,School Resources Group,LONDON BOROUGH OF WALTHAM FOREST COUNCIL,4000031515,7035880
DEPARTMENT FOR EDUCATION,DEPARTMENT FOR EDUCATION,02/08/2010,CURRENT GRANTS,School Resources Group,LONDON BOROUGH OF WANDSWORTH COUNCIL,4000031516,6147120
DEPARTMENT FOR EDUCATION,DEPARTMENT FOR EDUCATION,02/08/2010,CURRENT GRANTS,School Resources Group,LUTON BOROUGH COUNCIL,4000031517,5735320
DEPARTMENT FOR EDUCATION,DEPARTMENT FOR EDUCATION,02/08/2010,CURRENT GRANTS,School Resources Group,MANCHESTER CITY COUNCIL,4000031518,11518120
DEPARTMENT FOR EDUCATION,DEPARTMENT FOR EDUCATION,02/08/2010,CURRENT GRANTS,School Resources Group,MEDWAY COUNCIL,4000031519,6520040
DEPARTMENT FOR EDUCATION,DEPARTMENT FOR EDUCATION,02/08/2010,CURRENT GRANTS,School Resources Group,METROPOLITAN BOROUGH OF WIRRAL,4000031520,7638720
DEPARTMENT FOR EDUCATION,DEPARTMENT FOR EDUCATION,02/08/2010,CURRENT GRANTS,School Resources Group,MIDDLESBROUGH COUNCIL,4000031521,3269640
DEPARTMENT FOR EDUCATION,DEPARTMENT FOR EDUCATION,02/08/2010,CURRENT GRANTS,School Resources Group,MILTON KEYNES COUNCIL,4000031522,6430200
DEPARTMENT FOR EDUCATION,DEPARTMENT FOR EDUCATION,02/08/2010,CURRENT GRANTS,School Resources Group,NEWCASTLE CITY COUNCIL,4000031523,5761520
DEPARTMENT FOR EDUCATION,DEPARTMENT FOR EDUCATION,02/08/2010,CURRENT GRANTS,School Resources Group,NORFOLK COUNTY COUNCIL,4000031524,17029480
DEPARTMENT FOR EDUCATION,DEPARTMENT FOR EDUCATION,02/08/2010,CURRENT GRANTS,School Resources Group,NORTH EAST LINCOLNSHIRE COUNCIL,4000031525,3696640
DEPARTMENT FOR EDUCATION,DEPARTMENT FOR EDUCATION,02/08/2010,CURRENT GRANTS,School Resources Group,NORTH LINCOLNSHIRE COUNCIL,4000031526,3825960
DEPARTMENT FOR EDUCATION,DEPARTMENT FOR EDUCATION,02/08/2010,CURRENT GRANTS,School Resources Group,NORTH SOMERSET COUNCIL,4000031527,4432360
DEPARTMENT FOR EDUCATION,DEPARTMENT FOR EDUCATION,02/08/2010,CURRENT GRANTS,School Resources Group,NORTH TYNESIDE,4000031528,4454560
DEPARTMENT FOR EDUCATION,DEPARTMENT FOR EDUCATION,02/08/2010,CURRENT GRANTS,School Resources Group,NORTH YORKSHIRE COUNTY COUNCIL,4000031529,13119960
DEPARTMENT FOR EDUCATION,DEPARTMENT FOR EDUCATION,02/08/2010,CURRENT GRANTS,School Resources Group,NORTHAMPTONSHIRE COUNTY COUNCIL,4000031530,15572720
DEPARTMENT FOR EDUCATION,DEPARTMENT FOR EDUCATION,02/08/2010,CURRENT GRANTS,School Resources Group,NORTHUMBERLAND COUNTY COUNCIL,4000031531,6387560
DEPARTMENT FOR EDUCATION,DEPARTMENT FOR EDUCATION,02/08/2010,CURRENT GRANTS,School Resources Group,NOTTINGHAM CITY COUNCIL,4000031532,6283800
DEPARTMENT FOR EDUCATION,DEPARTMENT FOR EDUCATION,02/08/2010,CURRENT GRANTS,School Resources Group,NOTTINGHAMSHIRE COUNTY COUNCIL,4000031533,17573240
DEPARTMENT FOR EDUCATION,DEPARTMENT FOR EDUCATION,02/08/2010,CURRENT GRANTS,School Resources Group,OLDHAM MBC,4000031534,6535800
DEPARTMENT FOR EDUCATION,DEPARTMENT FOR EDUCATION,02/08/2010,CURRENT GRANTS,School Resources Group,OXFORDSHIRE COUNTY COUNCIL,4000031535,13434040
DEPARTMENT FOR EDUCATION,DEPARTMENT FOR EDUCATION,02/08/2010,CURRENT GRANTS,School Resources Group,PETERBOROUGH CITY COUNCIL,4000031536,4708000
DEPARTMENT FOR EDUCATION,DEPARTMENT FOR EDUCATION,02/08/2010,CURRENT GRANTS,School Resources Group,PLYMOUTH CITY COUNCIL,4000031537,5648320
DEPARTMENT FOR EDUCATION,DEPARTMENT FOR EDUCATION,02/08/2010,CURRENT GRANTS,School Resources Group,POOLE BOROUGH COUNCIL,4000031538,2807640
DEPARTMENT FOR EDUCATION,DEPARTMENT FOR EDUCATION,02/08/2010,CURRENT GRANTS,School Resources Group,PORTSMOUTH CITY COUNCIL,4000031539,4161880
DEPARTMENT FOR EDUCATION,DEPARTMENT FOR EDUCATION,02/08/2010,CURRENT GRANTS,School Resources Group,READING BOROUGH COUNCIL,4000031540,2953400
DEPARTMENT FOR EDUCATION,DEPARTMENT FOR EDUCATION,02/08/2010,CURRENT GRANTS,School Resources Group,REDCAR & CLEVELAND BOROUGH COUNCIL,4000031541,3525280
DEPARTMENT FOR EDUCATION,DEPARTMENT FOR EDUCATION,02/08/2010,CURRENT GRANTS,School Resources Group,ROCHDALE MBC,4000031542,5736320
DEPARTMENT FOR EDUCATION,DEPARTMENT FOR EDUCATION,02/08/2010,CURRENT GRANTS,School Resources Group,ROTHERHAM MBC,4000031543,6866800
DEPARTMENT FOR EDUCATION,DEPARTMENT FOR EDUCATION,02/08/2010,CURRENT GRANTS,School Resources Group,ROYAL BOROUGH OF KINGSTON UPON THAMES COUNCIL,4000031544,3694040
DEPARTMENT FOR EDUCATION,DEPARTMENT FOR EDUCATION,02/08/2010,CURRENT GRANTS,School Resources Group,RUTLAND COUNTY COUNCIL,4000031545,863040
DEPARTMENT FOR EDUCATION,DEPARTMENT FOR EDUCATION,02/08/2010,CURRENT GRANTS,School Resources Group,SALFORD CITY COUNCIL,4000031546,5419120
DEPARTMENT FOR EDUCATION,DEPARTMENT FOR EDUCATION,02/08/2010,CURRENT GRANTS,School Resources Group,SANDWELL MBC,4000031547,7795160
DEPARTMENT FOR EDUCATION,DEPARTMENT FOR EDUCATION,02/08/2010,CURRENT GRANTS,School Resources Group,SEFTON COUNCIL,4000031548,6583040
DEPARTMENT FOR EDUCATION,DEPARTMENT FOR EDUCATION,02/08/2010,CURRENT GRANTS,School Resources Group,SHEFFIELD CITY COUNCIL,4000031549,11655440
DEPARTMENT FOR EDUCATION,DEPARTMENT FOR EDUCATION,02/08/2010,CURRENT GRANTS,School Resources Group,SHROPSHIRE COUNCIL,4000031550,6099880
DEPARTMENT FOR EDUCATION,DEPARTMENT FOR EDUCATION,02/08/2010,CURRENT GRANTS,School Resources Group,SLOUGH BOROUGH COUNCIL,4000031551,3945920
DEPARTMENT FOR EDUCATION,DEPARTMENT FOR EDUCATION,02/08/2010,CURRENT GRANTS,School Resources Group,SOLIHULL MBC,4000031552,5048280
DEPARTMENT FOR EDUCATION,DEPARTMENT FOR EDUCATION,02/08/2010,CURRENT GRANTS,School Resources Group,SOMERSET COUNTY COUNCIL,4000031553,11036040
DEPARTMENT FOR EDUCATION,DEPARTMENT FOR EDUCATION,02/08/2010,CURRENT GRANTS,School Resources Group,SOUTH GLOUCEST,4000031554,5642320
DEPARTMENT FOR EDUCATION,DEPARTMENT FOR EDUCATION,02/08/2010,CURRENT GRANTS,School Resources Group,SOUTH TYNESIDE,4000031555,3650440
DEPARTMENT FOR EDUCATION,DEPARTMENT FOR EDUCATION,02/08/2010,CURRENT GRANTS,School Resources Group,SOUTHAMPTON CITY COUNCIL,4000031556,4673720
DEPARTMENT FOR EDUCATION,DEPARTMENT FOR EDUCATION,02/08/2010,CURRENT GRANTS,School Resources Group,SOUTHEND ON SEA BOROUGH COUNCIL,4000031557,4360480
DEPARTMENT FOR EDUCATION,DEPARTMENT FOR EDUCATION,02/08/2010,CURRENT GRANTS,School Resources Group,ST HELENS MBC,4000031558,4158080
DEPARTMENT FOR EDUCATION,DEPARTMENT FOR EDUCATION,02/08/2010,CURRENT GRANTS,School Resources Group,STAFFORDSHIRE COUNCIL,4000031559,18632200
DEPARTMENT FOR EDUCATION,DEPARTMENT FOR EDUCATION,02/08/2010,CURRENT GRANTS,School Resources Group,STOCKPORT MBC,4000031560,6326840
DEPARTMENT FOR EDUCATION,DEPARTMENT FOR EDUCATION,02/08/2010,CURRENT GRANTS,School Resources Group,STOCKTON ON TEES,4000031561,4570720
DEPARTMENT FOR EDUCATION,DEPARTMENT FOR EDUCATION,02/08/2010,CURRENT GRANTS,School Resources Group,STOKE ON TRENT CITY COUNCIL,4000031562,5801280
DEPARTMENT FOR EDUCATION,DEPARTMENT FOR EDUCATION,02/08/2010,CURRENT GRANTS,School Resources Group,SUFFOLK COUNTY COUNCIL,4000031563,15141920
DEPARTMENT FOR EDUCATION,DEPARTMENT FOR EDUCATION,02/08/2010,CURRENT GRANTS,School Resources Group,SUNDERLAND CITY COUNCIL,4000031564,6322480
DEPARTMENT FOR EDUCATION,DEPARTMENT FOR EDUCATION,02/08/2010,CURRENT GRANTS,School Resources Group,SURREY COUNTY COUNCIL,4000031565,24167160
DEPARTMENT FOR EDUCATION,DEPARTMENT FOR EDUCATION,02/08/2010,CURRENT GRANTS,School Resources Group,SWINDON BOROUGH COUNCIL,4000031566,4652000
DEPARTMENT FOR EDUCATION,DEPARTMENT FOR EDUCATION,02/08/2010,CURRENT GRANTS,School Resources Group,TAMESIDE MBC,4000031567,5327400
DEPARTMENT FOR EDUCATION,DEPARTMENT FOR EDUCATION,02/08/2010,CURRENT GRANTS,School Resources Group,TELFORD & WREKIN COUNCIL,4000031568,3965760
DEPARTMENT FOR EDUCATION,DEPARTMENT FOR EDUCATION,02/08/2010,CURRENT GRANTS,School Resources Group,THE LONDON BOROUGH OF HACKNEY,4000031569,6493040
DEPARTMENT FOR EDUCATION,DEPARTMENT FOR EDUCATION,02/08/2010,CURRENT GRANTS,School Resources Group,THE ROYAL BOROUGH OF KENSINGTON & CHELSEA COUNCIL,4000031570,2703160
DEPARTMENT FOR EDUCATION,DEPARTMENT FOR EDUCATION,02/08/2010,CURRENT GRANTS,School Resources Group,THE ROYAL BOROUGH OF WINDSOR & MAIDENHEAD,4000031571,3205120
DEPARTMENT FOR EDUCATION,DEPARTMENT FOR EDUCATION,02/08/2010,CURRENT GRANTS,School Resources Group,THURROCK COUNCIL,4000031572,3925080
DEPARTMENT FOR EDUCATION,DEPARTMENT FOR EDUCATION,02/08/2010,CURRENT GRANTS,School Resources Group,TORBAY COUNCIL,4000031573,2929320
DEPARTMENT FOR EDUCATION,DEPARTMENT FOR EDUCATION,02/08/2010,CURRENT GRANTS,School Resources Group,TRAFFORD MB COUNCIL,4000031574,5634120
DEPARTMENT FOR EDUCATION,DEPARTMENT FOR EDUCATION,02/08/2010,CURRENT GRANTS,School Resources Group,WAKEFIELD MDC,4000031575,7544760
DEPARTMENT FOR EDUCATION,DEPARTMENT FOR EDUCATION,02/08/2010,CURRENT GRANTS,School Resources Group,WALSALL MBC,4000031576,7017240
DEPARTMENT FOR EDUCATION,DEPARTMENT FOR EDUCATION,02/08/2010,CURRENT GRANTS,School Resources Group,WARRINGTON BOROUGH COUNCIL,4000031577,4965000
DEPARTMENT FOR EDUCATION,DEPARTMENT FOR EDUCATION,02/08/2010,CURRENT GRANTS,School Resources Group,WARWICKSHIRE COUNTY COUNCIL,4000031578,11809920
DEPARTMENT FOR EDUCATION,DEPARTMENT FOR EDUCATION,02/08/2010,CURRENT GRANTS,School Resources Group,WEST BERKSHIRE COUNCIL,4000031579,4008920
DEPARTMENT FOR EDUCATION,DEPARTMENT FOR EDUCATION,02/08/2010,CURRENT GRANTS,School Resources Group,WEST SUSSEX COUNTY COUNCIL,4000031580,16521400
DEPARTMENT FOR EDUCATION,DEPARTMENT FOR EDUCATION,02/08/2010,CURRENT GRANTS,School Resources Group,WIGAN MBC,4000031581,7709240
DEPARTMENT FOR EDUCATION,DEPARTMENT FOR EDUCATION,02/08/2010,CURRENT GRANTS,School Resources Group,WILTSHIRE COUNCIL,4000031582,9988880
DEPARTMENT FOR EDUCATION,DEPARTMENT FOR EDUCATION,02/08/2010,CURRENT GRANTS,School Resources Group,WOKINGHAM BOROUGH COUNCIL,4000031583,3690800
DEPARTMENT FOR EDUCATION,DEPARTMENT FOR EDUCATION,02/08/2010,CURRENT GRANTS,School Resources Group,WOLVERHAMPTON CITY COUNCIL,4000031584,6047400
DEPARTMENT FOR EDUCATION,DEPARTMENT FOR EDUCATION,02/08/2010,CURRENT GRANTS,School Resources Group,WORCESTERSHIRE COUNTY COUNCIL,4000031585,11898880
DEPARTMENT FOR EDUCATION,DEPARTMENT FOR EDUCATION,02/08/2010,CURRENT GRANTS,School Resources Group,YORK CITY COUNCIL,4000031586,3716200
DEPARTMENT FOR EDUCATION,DEPARTMENT FOR EDUCATION,02/08/2010,CURRENT GRANTS,Children and Families Group,BOOK TRUST,4000031588,581633
DEPARTMENT FOR EDUCATION,DEPARTMENT FOR EDUCATION,02/08/2010,CURRENT GRANTS,Children and Families Early Years Extended Schools and Special Needs,BOOK TRUST,4000031588,800100
DEPARTMENT FOR EDUCATION,DEPARTMENT FOR EDUCATION,02/08/2010,CONTRACT PROGRAMME EXPENDITURE,Curriculum and Pupil Well Being Curriculum Unit,CENTRAL OFFICE OF INFORMATION,4000031593,138333
DEPARTMENT FOR EDUCATION,DEPARTMENT FOR EDUCATION,02/08/2010,CURRENT GRANTS,School Performance and Reform Group,ECOTEC RESEARCH & CONSULTING LTD GRANT,4000031598,102196
DEPARTMENT FOR EDUCATION,DEPARTMENT FOR EDUCATION,02/08/2010,UTILITIES,Commercial Group EFM,EDF ENERGY LTD,4000031600,25907.61
DEPARTMENT FOR EDUCATION,DEPARTMENT FOR EDUCATION,02/08/2010,MANAGEMENT CONSULTANCY,Children and Families Improving Information Sharing and Management Group,ELAN COMPUTING LTD,4000031601,32148
DEPARTMENT FOR EDUCATION,DEPARTMENT FOR EDUCATION,02/08/2010,STAFF EXPENSES / COSTS,Children and Families Safeguarding Group,EXPOTEL HOTEL RESERVATIONS LTD,4000031602,42.31
DEPARTMENT FOR EDUCATION,DEPARTMENT FOR EDUCATION,02/08/2010,STAFF EXPENSES / COSTS,Young People Participation and Attainment Group,EXPOTEL HOTEL RESERVATIONS LTD,4000031602,54.38
DEPARTMENT FOR EDUCATION,DEPARTMENT FOR EDUCATION,02/08/2010,STAFF EXPENSES / COSTS,Young People  Directorate Apprenticeships Group,EXPOTEL HOTEL RESERVATIONS LTD,4000031602,54.38
DEPARTMENT FOR EDUCATION,DEPARTMENT FOR EDUCATION,02/08/2010,STAFF EXPENSES / COSTS,Young People  Schools Children and Young People Group,EXPOTEL HOTEL RESERVATIONS LTD,4000031602,54.38
DEPARTMENT FOR EDUCATION,DEPARTMENT FOR EDUCATION,02/08/2010,STAFF EXPENSES / COSTS,School Resources Group,EXPOTEL HOTEL RESERVATIONS LTD,4000031602,56.24
DEPARTMENT FOR EDUCATION,DEPARTMENT FOR EDUCATION,02/08/2010,STAFF EXPENSES / COSTS,Children and Families Directorate Support,EXPOTEL HOTEL RESERVATIONS LTD,4000031602,56.24
DEPARTMENT FOR EDUCATION,DEPARTMENT FOR EDUCATION,02/08/2010,STAFF EXPENSES / COSTS,Corporate Services Director General,EXPOTEL HOTEL RESERVATIONS LTD,4000031602,56.24
DEPARTMENT FOR EDUCATION,DEPARTMENT FOR EDUCATION,02/08/2010,STAFF EXPENSES / COSTS,Commercial Group EFM,EXPOTEL HOTEL RESERVATIONS LTD,4000031602,59.97
DEPARTMENT FOR EDUCATION,DEPARTMENT FOR EDUCATION,02/08/2010,STAFF EXPENSES / COSTS,Chief Information Officer Group,EXPOTEL HOTEL RESERVATIONS LTD,4000031602,61.83
DEPARTMENT FOR EDUCATION,DEPARTMENT FOR EDUCATION,02/08/2010,STAFF EXPENSES / COSTS,Curriculum and Pupil Well Being Curriculum Unit,EXPOTEL HOTEL RESERVATIONS LTD,4000031602,65.57
DEPARTMENT FOR EDUCATION,DEPARTMENT FOR EDUCATION,02/08/2010,STAFF EXPENSES / COSTS,People and Change,EXPOTEL HOTEL RESERVATIONS LTD,4000031602,65.57
DEPARTMENT FOR EDUCATION,DEPARTMENT FOR EDUCATION,02/08/2010,STAFF EXPENSES / COSTS,Children and Families Child Well Being Group,EXPOTEL HOTEL RESERVATIONS LTD,4000031602,66.49
DEPARTMENT FOR EDUCATION,DEPARTMENT FOR EDUCATION,02/08/2010,STAFF EXPENSES / COSTS,Curriculum and Pupil Well Being Curriculum Unit,EXPOTEL HOTEL RESERVATIONS LTD,4000031602,68.35
DEPARTMENT FOR EDUCATION,DEPARTMENT FOR EDUCATION,02/08/2010,STAFF EXPENSES / COSTS,Children and Families Supporting Delivery Group,EXPOTEL HOTEL RESERVATIONS LTD,4000031602,69.28
DEPARTMENT FOR EDUCATION,DEPARTMENT FOR EDUCATION,02/08/2010,STAFF EXPENSES / COSTS,School Resources Group,EXPOTEL HOTEL RESERVATIONS LTD,4000031602,71.15
DEPARTMENT FOR EDUCATION,DEPARTMENT FOR EDUCATION,02/08/2010,STAFF EXPENSES / COSTS,School Analysis and Research,EXPOTEL HOTEL RESERVATIONS LTD,4000031602,71.15
DEPARTMENT FOR EDUCATION,DEPARTMENT FOR EDUCATION,02/08/2010,STAFF EXPENSES / COSTS,Children and Families Safeguarding Group,EXPOTEL HOTEL RESERVATIONS LTD,4000031602,71.15
DEPARTMENT FOR EDUCATION,DEPARTMENT FOR EDUCATION,02/08/2010,STAFF EXPENSES / COSTS,Corporate Services Director General,EXPOTEL HOTEL RESERVATIONS LTD,4000031602,71.15
DEPARTMENT FOR EDUCATION,DEPARTMENT FOR EDUCATION,02/08/2010,STAFF EXPENSES / COSTS,Chief Information Officer Group,EXPOTEL HOTEL RESERVATIONS LTD,4000031602,72.07
DEPARTMENT FOR EDUCATION,DEPARTMENT FOR EDUCATION,02/08/2010,STAFF EXPENSES / COSTS,Curriculum and Pupil Well Being Improving Behaviour and Attendance Unit,EXPOTEL HOTEL RESERVATIONS LTD,4000031602,72.54
DEPARTMENT FOR EDUCATION,DEPARTMENT FOR EDUCATION,02/08/2010,STAFF EXPENSES / COSTS,Children and Families Supporting Delivery Group,EXPOTEL HOTEL RESERVATIONS LTD,4000031602,73.94
DEPARTMENT FOR EDUCATION,DEPARTMENT FOR EDUCATION,02/08/2010,STAFF EXPENSES / COSTS,Finance Group,EXPOTEL HOTEL RESERVATIONS LTD,4000031602,92.1
DEPARTMENT FOR EDUCATION,DEPARTMENT FOR EDUCATION,02/08/2010,STAFF EXPENSES / COSTS,Commercial Group,EXPOTEL HOTEL RESERVATIONS LTD,4000031602,92.1
DEPARTMENT FOR EDUCATION,DEPARTMENT FOR EDUCATION,02/08/2010,STAFF EXPENSES / COSTS,People and Change,EXPOTEL HOTEL RESERVATIONS LTD,4000031602,99.09
DEPARTMENT FOR EDUCATION,DEPARTMENT FOR EDUCATION,02/08/2010,STAFF EXPENSES / COSTS,Commercial Group EFM,EXPOTEL HOTEL RESERVATIONS LTD,4000031602,99.09
DEPARTMENT FOR EDUCATION,DEPARTMENT FOR EDUCATION,02/08/2010,STAFF EXPENSES / COSTS,Supporting Children and Young People as Risk,EXPOTEL HOTEL RESERVATIONS LTD,4000031602,103.31
DEPARTMENT FOR EDUCATION,DEPARTMENT FOR EDUCATION,02/08/2010,STAFF EXPENSES / COSTS,Young People  Schools Children and Young People Group,EXPOTEL HOTEL RESERVATIONS LTD,4000031602,103.74
DEPARTMENT FOR EDUCATION,DEPARTMENT FOR EDUCATION,02/08/2010,STAFF EXPENSES / COSTS,Chief Information Officer Group,EXPOTEL HOTEL RESERVATIONS LTD,4000031602,105.26
DEPARTMENT FOR EDUCATION,DEPARTMENT FOR EDUCATION,02/08/2010,STAFF EXPENSES / COSTS,Corporate and Internal Communications Group,EXPOTEL HOTEL RESERVATIONS LTD,4000031602,106.54
DEPARTMENT FOR EDUCATION,DEPARTMENT FOR EDUCATION,02/08/2010,STAFF EXPENSES / COSTS,Workforce Group Children and Families Workforce,EXPOTEL HOTEL RESERVATIONS LTD,4000031602,106.54
DEPARTMENT FOR EDUCATION,DEPARTMENT FOR EDUCATION,02/08/2010,STAFF EXPENSES / COSTS,Young People Quality Standards and Reform Group,EXPOTEL HOTEL RESERVATIONS LTD,4000031602,106.54
DEPARTMENT FOR EDUCATION,DEPARTMENT FOR EDUCATION,02/08/2010,STAFF EXPENSES / COSTS,"Strategic Analysis, Research and Policy Impact Group",EXPOTEL HOTEL RESERVATIONS LTD,4000031602,106.54
DEPARTMENT FOR EDUCATION,DEPARTMENT FOR EDUCATION,02/08/2010,STAFF EXPENSES / COSTS,Commercial Group Shared Services and Children and Young People,EXPOTEL HOTEL RESERVATIONS LTD,4000031602,106.54
DEPARTMENT FOR EDUCATION,DEPARTMENT FOR EDUCATION,02/08/2010,STAFF EXPENSES / COSTS,School Standards Group,EXPOTEL HOTEL RESERVATIONS LTD,4000031602,107.47
DEPARTMENT FOR EDUCATION,DEPARTMENT FOR EDUCATION,02/08/2010,STAFF EXPENSES / COSTS,School Standards Group,EXPOTEL HOTEL RESERVATIONS LTD,4000031602,110.62
DEPARTMENT FOR EDUCATION,DEPARTMENT FOR EDUCATION,02/08/2010,STAFF EXPENSES / COSTS,Chief Information Officer Group,EXPOTEL HOTEL RESERVATIONS LTD,4000031602,125.53
DEPARTMENT FOR EDUCATION,DEPARTMENT FOR EDUCATION,02/08/2010,STAFF EXPENSES / COSTS,Commercial Group Schools and Category Management,EXPOTEL HOTEL RESERVATIONS LTD,4000031602,125.53
DEPARTMENT FOR EDUCATION,DEPARTMENT FOR EDUCATION,02/08/2010,STAFF EXPENSES / COSTS,Chief Information Officer Group,EXPOTEL HOTEL RESERVATIONS LTD,4000031602,138.56
DEPARTMENT FOR EDUCATION,DEPARTMENT FOR EDUCATION,02/08/2010,STAFF EXPENSES / COSTS,Children and Families Group,EXPOTEL HOTEL RESERVATIONS LTD,4000031602,140.42
DEPARTMENT FOR EDUCATION,DEPARTMENT FOR EDUCATION,02/08/2010,STAFF EXPENSES / COSTS,Young People Participation and Attainment Group,EXPOTEL HOTEL RESERVATIONS LTD,4000031602,140.89
DEPARTMENT FOR EDUCATION,DEPARTMENT FOR EDUCATION,02/08/2010,STAFF EXPENSES / COSTS,Chief Information Officer Group,EXPOTEL HOTEL RESERVATIONS LTD,4000031602,142.3
DEPARTMENT FOR EDUCATION,DEPARTMENT FOR EDUCATION,02/08/2010,STAFF EXPENSES / COSTS,Children and Families Supporting Delivery Group,EXPOTEL HOTEL RESERVATIONS LTD,4000031602,146.95
DEPARTMENT FOR EDUCATION,DEPARTMENT FOR EDUCATION,02/08/2010,STAFF EXPENSES / COSTS,Young People Participation and Attainment Group,EXPOTEL HOTEL RESERVATIONS LTD,4000031602,162.33
DEPARTMENT FOR EDUCATION,DEPARTMENT FOR EDUCATION,02/08/2010,STAFF EXPENSES / COSTS,Commercial Group EFM,EXPOTEL HOTEL RESERVATIONS LTD,4000031602,169.89
DEPARTMENT FOR EDUCATION,DEPARTMENT FOR EDUCATION,02/08/2010,STAFF EXPENSES / COSTS,Young People  Schools Children and Young People Group,EXPOTEL HOTEL RESERVATIONS LTD,4000031602,175.47
DEPARTMENT FOR EDUCATION,DEPARTMENT FOR EDUCATION,02/08/2010,STAFF EXPENSES / COSTS,People and Change,EXPOTEL HOTEL RESERVATIONS LTD,4000031602,184.2
DEPARTMENT FOR EDUCATION,DEPARTMENT FOR EDUCATION,02/08/2010,STAFF EXPENSES / COSTS,Young People  Schools Children and Young People Group,EXPOTEL HOTEL RESERVATIONS LTD,4000031602,184.2
DEPARTMENT FOR EDUCATION,DEPARTMENT FOR EDUCATION,02/08/2010,STAFF EXPENSES / COSTS,Children and Families Supporting Delivery Group,EXPOTEL HOTEL RESERVATIONS LTD,4000031602,184.2
DEPARTMENT FOR EDUCATION,DEPARTMENT FOR EDUCATION,02/08/2010,STAFF EXPENSES / COSTS,Corporate and Internal Communications Group,EXPOTEL HOTEL RESERVATIONS LTD,4000031602,196.31
DEPARTMENT FOR EDUCATION,DEPARTMENT FOR EDUCATION,02/08/2010,STAFF EXPENSES / COSTS,Commercial Group Schools and Category Management,EXPOTEL HOTEL RESERVATIONS LTD,4000031602,198.64
DEPARTMENT FOR EDUCATION,DEPARTMENT FOR EDUCATION,02/08/2010,STAFF EXPENSES / COSTS,School Performance and Reform Group,EXPOTEL HOTEL RESERVATIONS LTD,4000031602,200.39
DEPARTMENT FOR EDUCATION,DEPARTMENT FOR EDUCATION,02/08/2010,STAFF EXPENSES / COSTS,Supporting Children and Young People Youth Task Force,EXPOTEL HOTEL RESERVATIONS LTD,4000031602,203.4
DEPARTMENT FOR EDUCATION,DEPARTMENT FOR EDUCATION,02/08/2010,STAFF EXPENSES / COSTS,People and Change,EXPOTEL HOTEL RESERVATIONS LTD,4000031602,210.52
DEPARTMENT FOR EDUCATION,DEPARTMENT FOR EDUCATION,02/08/2010,STAFF EXPENSES / COSTS,Children and Families Child Well Being Group,EXPOTEL HOTEL RESERVATIONS LTD,4000031602,211.79
DEPARTMENT FOR EDUCATION,DEPARTMENT FOR EDUCATION,02/08/2010,STAFF EXPENSES / COSTS,Corporate and Internal Communications Group,EXPOTEL HOTEL RESERVATIONS LTD,4000031602,213.08
DEPARTMENT FOR EDUCATION,DEPARTMENT FOR EDUCATION,02/08/2010,STAFF EXPENSES / COSTS,14 - 19 Reform Qualification Standards and Reform,EXPOTEL HOTEL RESERVATIONS LTD,4000031602,224.61
DEPARTMENT FOR EDUCATION,DEPARTMENT FOR EDUCATION,02/08/2010,STAFF EXPENSES / COSTS,Curriculum and Pupil Well Being Curriculum Unit,EXPOTEL HOTEL RESERVATIONS LTD,4000031602,230.41
DEPARTMENT FOR EDUCATION,DEPARTMENT FOR EDUCATION,02/08/2010,STAFF EXPENSES / COSTS,Finance Group,EXPOTEL HOTEL RESERVATIONS LTD,4000031602,243.4
DEPARTMENT FOR EDUCATION,DEPARTMENT FOR EDUCATION,02/08/2010,STAFF EXPENSES / COSTS,School Performance and Reform Office of the Schools Commissioner,EXPOTEL HOTEL RESERVATIONS LTD,4000031602,276.3
DEPARTMENT FOR EDUCATION,DEPARTMENT FOR EDUCATION,02/08/2010,STAFF EXPENSES / COSTS,Children and Families Early Years Extended Schools and Special Needs,EXPOTEL HOTEL RESERVATIONS LTD,4000031602,277.92
DEPARTMENT FOR EDUCATION,DEPARTMENT FOR EDUCATION,02/08/2010,STAFF EXPENSES / COSTS,Commercial Group Strategic Functions,EXPOTEL HOTEL RESERVATIONS LTD,4000031602,288.17
DEPARTMENT FOR EDUCATION,DEPARTMENT FOR EDUCATION,02/08/2010,STAFF EXPENSES / COSTS,School Resources Group,EXPOTEL HOTEL RESERVATIONS LTD,4000031602,305.55
DEPARTMENT FOR EDUCATION,DEPARTMENT FOR EDUCATION,02/08/2010,STAFF EXPENSES / COSTS,School Performance and Reform Group,EXPOTEL HOTEL RESERVATIONS LTD,4000031602,315.78
DEPARTMENT FOR EDUCATION,DEPARTMENT FOR EDUCATION,02/08/2010,STAFF EXPENSES / COSTS,People and Change,EXPOTEL HOTEL RESERVATIONS LTD,4000031602,315.78
DEPARTMENT FOR EDUCATION,DEPARTMENT FOR EDUCATION,02/08/2010,STAFF EXPENSES / COSTS,Children and Families Safeguarding Group,EXPOTEL HOTEL RESERVATIONS LTD,4000031602,317.03
DEPARTMENT FOR EDUCATION,DEPARTMENT FOR EDUCATION,02/08/2010,STAFF EXPENSES / COSTS,Young People Workforce Group,EXPOTEL HOTEL RESERVATIONS LTD,4000031602,329.55
DEPARTMENT FOR EDUCATION,DEPARTMENT FOR EDUCATION,02/08/2010,STAFF EXPENSES / COSTS,"Strategic Analysis, Research and Policy Impact Group",EXPOTEL HOTEL RESERVATIONS LTD,4000031602,346.43
DEPARTMENT FOR EDUCATION,DEPARTMENT FOR EDUCATION,02/08/2010,STAFF EXPENSES / COSTS,Commercial Group EFM,EXPOTEL HOTEL RESERVATIONS LTD,4000031602,348.14
DEPARTMENT FOR EDUCATION,DEPARTMENT FOR EDUCATION,02/08/2010,STAFF EXPENSES / COSTS,"Strategic Analysis, Research and Policy Impact Group",EXPOTEL HOTEL RESERVATIONS LTD,4000031602,349.43
DEPARTMENT FOR EDUCATION,DEPARTMENT FOR EDUCATION,02/08/2010,STAFF EXPENSES / COSTS,School Formation and Investment Group,EXPOTEL HOTEL RESERVATIONS LTD,4000031602,354.09
DEPARTMENT FOR EDUCATION,DEPARTMENT FOR EDUCATION,02/08/2010,STAFF EXPENSES / COSTS,Curriculum and Pupil Well Being Unit,EXPOTEL HOTEL RESERVATIONS LTD,4000031602,366.29
DEPARTMENT FOR EDUCATION,DEPARTMENT FOR EDUCATION,02/08/2010,STAFF EXPENSES / COSTS,Finance Group,EXPOTEL HOTEL RESERVATIONS LTD,4000031602,367.74
DEPARTMENT FOR EDUCATION,DEPARTMENT FOR EDUCATION,02/08/2010,STAFF EXPENSES / COSTS,Commercial Group Schools and Category Management,EXPOTEL HOTEL RESERVATIONS LTD,4000031602,390.98
DEPARTMENT FOR EDUCATION,DEPARTMENT FOR EDUCATION,02/08/2010,STAFF EXPENSES / COSTS,School Formation and Investment Group,EXPOTEL HOTEL RESERVATIONS LTD,4000031602,476.91
DEPARTMENT FOR EDUCATION,DEPARTMENT FOR EDUCATION,02/08/2010,STAFF EXPENSES / COSTS,Children and Families Child Well Being Group,EXPOTEL HOTEL RESERVATIONS LTD,4000031602,484.15
DEPARTMENT FOR EDUCATION,DEPARTMENT FOR EDUCATION,02/08/2010,STAFF EXPENSES / COSTS,14 - 19 Reform Participation and Attainment,EXPOTEL HOTEL RESERVATIONS LTD,4000031602,532.7
DEPARTMENT FOR EDUCATION,DEPARTMENT FOR EDUCATION,02/08/2010,STAFF EXPENSES / COSTS,Communications Strategy and Insight Group,EXPOTEL HOTEL RESERVATIONS LTD,4000031602,577.73
DEPARTMENT FOR EDUCATION,DEPARTMENT FOR EDUCATION,02/08/2010,STAFF EXPENSES / COSTS,School Resources Group,EXPOTEL HOTEL RESERVATIONS LTD,4000031602,585.99
DEPARTMENT FOR EDUCATION,DEPARTMENT FOR EDUCATION,02/08/2010,STAFF EXPENSES / COSTS,School Standards Group,EXPOTEL HOTEL RESERVATIONS LTD,4000031602,651.21
DEPARTMENT FOR EDUCATION,DEPARTMENT FOR EDUCATION,02/08/2010,RATES & SERVICE CHARGES,Young People Workforce Group,EXPOTEL HOTEL RESERVATIONS LTD,4000031602,660.43
DEPARTMENT FOR EDUCATION,DEPARTMENT FOR EDUCATION,02/08/2010,STAFF EXPENSES / COSTS,Chief Information Officer Group,EXPOTEL HOTEL RESERVATIONS LTD,4000031602,686.82
DEPARTMENT FOR EDUCATION,DEPARTMENT FOR EDUCATION,02/08/2010,STAFF EXPENSES / COSTS,Chief Information Officer Group,EXPOTEL HOTEL RESERVATIONS LTD,4000031602,696.73
DEPARTMENT FOR EDUCATION,DEPARTMENT FOR EDUCATION,02/08/2010,STAFF EXPENSES / COSTS,Customer Contact and Business Development Group,EXPOTEL HOTEL RESERVATIONS LTD,4000031602,752.85
DEPARTMENT FOR EDUCATION,DEPARTMENT FOR EDUCATION,02/08/2010,STAFF EXPENSES / COSTS,People and Change,EXPOTEL HOTEL RESERVATIONS LTD,4000031602,791.16
DEPARTMENT FOR EDUCATION,DEPARTMENT FOR EDUCATION,02/08/2010,STAFF EXPENSES / COSTS,Supporting Children and Young People as Risk,EXPOTEL HOTEL RESERVATIONS LTD,4000031602,829.92
DEPARTMENT FOR EDUCATION,DEPARTMENT FOR EDUCATION,02/08/2010,STAFF EXPENSES / COSTS,"Strategic Analysis, Research and Policy Impact Group",EXPOTEL HOTEL RESERVATIONS LTD,4000031602,837.61
DEPARTMENT FOR EDUCATION,DEPARTMENT FOR EDUCATION,02/08/2010,STAFF EXPENSES / COSTS,School Formation and Investment Group,EXPOTEL HOTEL RESERVATIONS LTD,4000031602,856.61
DEPARTMENT FOR EDUCATION,DEPARTMENT FOR EDUCATION,02/08/2010,STAFF EXPENSES / COSTS,Children and Families Group,EXPOTEL HOTEL RESERVATIONS LTD,4000031602,991.26
DEPARTMENT FOR EDUCATION,DEPARTMENT FOR EDUCATION,02/08/2010,STAFF EXPENSES / COSTS,Chief Information Officer Group,EXPOTEL HOTEL RESERVATIONS LTD,4000031602,1020.8
DEPARTMENT FOR EDUCATION,DEPARTMENT FOR EDUCATION,02/08/2010,STAFF EXPENSES / COSTS,Children and Families Safeguarding Group,EXPOTEL HOTEL RESERVATIONS LTD,4000031602,1057.64
DEPARTMENT FOR EDUCATION,DEPARTMENT FOR EDUCATION,02/08/2010,STAFF EXPENSES / COSTS,Private Office ,EXPOTEL HOTEL RESERVATIONS LTD,4000031602,1166.31
DEPARTMENT FOR EDUCATION,DEPARTMENT FOR EDUCATION,02/08/2010,STAFF EXPENSES / COSTS,People and Change,EXPOTEL HOTEL RESERVATIONS LTD,4000031602,1167.14
DEPARTMENT FOR EDUCATION,DEPARTMENT FOR EDUCATION,02/08/2010,STAFF EXPENSES / COSTS,School Performance and Reform Group,EXPOTEL HOTEL RESERVATIONS LTD,4000031602,1219.24
DEPARTMENT FOR EDUCATION,DEPARTMENT FOR EDUCATION,02/08/2010,STAFF EXPENSES / COSTS,Chief Information Officer Group,EXPOTEL HOTEL RESERVATIONS LTD,4000031602,1257.9
DEPARTMENT FOR EDUCATION,DEPARTMENT FOR EDUCATION,02/08/2010,STAFF EXPENSES / COSTS,Corporate Services Strategy and Performance,EXPOTEL HOTEL RESERVATIONS LTD,4000031602,1283.48
DEPARTMENT FOR EDUCATION,DEPARTMENT FOR EDUCATION,02/08/2010,STAFF EXPENSES / COSTS,Chief Information Officer Group,EXPOTEL HOTEL RESERVATIONS LTD,4000031602,1317.69
DEPARTMENT FOR EDUCATION,DEPARTMENT FOR EDUCATION,02/08/2010,STAFF EXPENSES / COSTS,Commercial Group Schools and Category Management,EXPOTEL HOTEL RESERVATIONS LTD,4000031602,1724.87
DEPARTMENT FOR EDUCATION,DEPARTMENT FOR EDUCATION,02/08/2010,STAFF EXPENSES / COSTS,Children and Families Improving Information Sharing and Management Group,EXPOTEL HOTEL RESERVATIONS LTD,4000031602,2158.81
DEPARTMENT FOR EDUCATION,DEPARTMENT FOR EDUCATION,02/08/2010,STAFF EXPENSES / COSTS,Internal Audit,EXPOTEL HOTEL RESERVATIONS LTD,4000031602,2661.84
DEPARTMENT FOR EDUCATION,DEPARTMENT FOR EDUCATION,02/08/2010,STAFF EXPENSES / COSTS,Children and Families Improving Information Sharing and Management Group,EXPOTEL HOTEL RESERVATIONS LTD,4000031602,3061.34
DEPARTMENT FOR EDUCATION,DEPARTMENT FOR EDUCATION,02/08/2010,STAFF EXPENSES / COSTS,Children and Families Group,EXPOTEL HOTEL RESERVATIONS LTD,4000031602,6442.41
DEPARTMENT FOR EDUCATION,DEPARTMENT FOR EDUCATION,02/08/2010,CURRENT GRANTS,School Formation and Investment Group,FULSTON MANOR SCHOOL,4000031604,25000
DEPARTMENT FOR EDUCATION,DEPARTMENT FOR EDUCATION,02/08/2010,MISCELLANEOUS EXPENDITURE,"Strategic Analysis, Research and Policy Impact Group",INSTITUTE OF EDUCATION,4000031607,51961.67
DEPARTMENT FOR EDUCATION,DEPARTMENT FOR EDUCATION,02/08/2010,RESEARCH & DEVELOPMENT COSTS,Children and Families Group,KINGS COLLEGE LONDON,4000031612,979631
DEPARTMENT FOR EDUCATION,DEPARTMENT FOR EDUCATION,02/08/2010,CAPITAL GRANTS,School Formation and Investment Group,KINGSHURST CTC,4000031613,51854.23
DEPARTMENT FOR EDUCATION,DEPARTMENT FOR EDUCATION,02/08/2010,RESEARCH & DEVELOPMENT COSTS,Supporting Children and Young People Youth Task Force,NATIONAL CENTRE FOR SOCIAL RESEARCH,4000031619,30569
DEPARTMENT FOR EDUCATION,DEPARTMENT FOR EDUCATION,02/08/2010,CONTRACT PROGRAMME EXPENDITURE,Curriculum and Pupil Well Being Curriculum Unit,NATIONAL SCIENCE LEARNING CENTRE,4000031621,177936.99
DEPARTMENT FOR EDUCATION,DEPARTMENT FOR EDUCATION,02/08/2010,CONTRACT PROGRAMME EXPENDITURE,Curriculum and Pupil Well Being Improving Behaviour and Attendance Unit,NCB,4000031622,252214.93
DEPARTMENT FOR EDUCATION,DEPARTMENT FOR EDUCATION,02/08/2010,PROFESSIONAL FEES,Curriculum and Pupil Well Being Curriculum Unit,OPEN UNIVERSITY,4000031625,578364.36
DEPARTMENT FOR EDUCATION,DEPARTMENT FOR EDUCATION,02/08/2010,CONTRACT PROGRAMME EXPENDITURE,Curriculum and Pupil Well Being Curriculum Unit,PERSONAL FINANCE EDUCATION GROUP PFEG,4000031626,395580.76
DEPARTMENT FOR EDUCATION,DEPARTMENT FOR EDUCATION,02/08/2010,IS/IT,Commercial Group Schools and Category Management,PROCSERVE,4000031628,320406.6
DEPARTMENT FOR EDUCATION,DEPARTMENT FOR EDUCATION,02/08/2010,CURRENT GRANTS,Supporting Children and Young People Group Activities and Engagement,TELFORD & WREKIN COUNCIL,4000031633,25825
DEPARTMENT FOR EDUCATION,DEPARTMENT FOR EDUCATION,02/08/2010,CAPITAL GRANTS,School Formation and Investment Group,THE JCB ACADEMY,4000031636,1298607.62
DEPARTMENT FOR EDUCATION,DEPARTMENT FOR EDUCATION,02/08/2010,CURRENT GRANTS,Curriculum and Pupil Well Being Curriculum Unit,THE LOC OF THE OLYMPIC & PARALYMPIC GAMES LTD,4000031637,50000
DEPARTMENT FOR EDUCATION,DEPARTMENT FOR EDUCATION,02/08/2010,CURRENT GRANTS,Curriculum and Pupil Well Being Curriculum Unit,THE RELIGIOUS EDUCATION COUNCIL,4000031638,40000
DEPARTMENT FOR EDUCATION,DEPARTMENT FOR EDUCATION,02/08/2010,CONTRACT PROGRAMME EXPENDITURE,School Formation and Investment Group,TRIBAL EDUCATION LIMITED,4000031640,998.75
DEPARTMENT FOR EDUCATION,DEPARTMENT FOR EDUCATION,02/08/2010,MANAGEMENT CONSULTANCY,Children and Families Group,TRIBAL EDUCATION LIMITED,4000031640,102142.75
DEPARTMENT FOR EDUCATION,DEPARTMENT FOR EDUCATION,02/08/2010,CONTRACT PROGRAMME EXPENDITURE,School Formation and Investment Group,TRIBAL EDUCATION LTD CONSULTING,4000031641,-61676.24
DEPARTMENT FOR EDUCATION,DEPARTMENT FOR EDUCATION,02/08/2010,PROFESSIONAL FEES,School Performance and Reform Group,TRIBAL EDUCATION LTD CONSULTING,4000031641,121260.01
DEPARTMENT FOR EDUCATION,TEACHERS PENSION SCHEME,03/08/2010,FUNDING TO PAY TEACHERS PENSIONS,Workforce Group - TPS,CAPITA TP HSBC,1000257,259692.21
DEPARTMENT FOR EDUCATION,TEACHERS PENSION SCHEME,03/08/2010,FUNDING TO PAY TEACHERS PENSIONS,Workforce Group - TPS,CAPITA TP NATWEST,1000258,42868878.44
DEPARTMENT FOR EDUCATION,TEACHERS PENSION SCHEME,03/08/2010,FUNDING TO PAY TEACHERS PENSIONS,Workforce Group - TPS,CAPITA TP HSBC,1000261,272150.42
DEPARTMENT FOR EDUCATION,TEACHERS PENSION SCHEME,03/08/2010,FUNDING TO PAY TEACHERS PENSIONS,Workforce Group - TPS,CAPITA TP NATWEST,1000262,15206408.33
DEPARTMENT FOR EDUCATION,DEPARTMENT FOR EDUCATION,03/08/2010,GRANT IN AID,Children and Families Group,CAFCASS,2000185,12523918
DEPARTMENT FOR EDUCATION,DEPARTMENT FOR EDUCATION,03/08/2010,GRANT IN AID,Workforce Group Young People Workforce,NATIONAL COLLEGE OF SCHOOL LEADERSHIP,2000186,5000000
DEPARTMENT FOR EDUCATION,DEPARTMENT FOR EDUCATION,03/08/2010,GRANT IN AID,Workforce Group Young People Workforce,TRAINING & DEVELOPMENT AGENCY FOR SCHOOLS TDA,2000187,36964192.82
DEPARTMENT FOR EDUCATION,DEPARTMENT FOR EDUCATION,03/08/2010,GRANT IN AID,14 - 19 Reform Participation and Attainment,YOUNG PEOPLES LEARNING AGENCY,2000188,960182000
DEPARTMENT FOR EDUCATION,DEPARTMENT FOR EDUCATION,03/08/2010,CURRENT GRANTS,Children and Families Group,ADVISORY CENTRE FOR EDUCATION,4000031677,126749
DEPARTMENT FOR EDUCATION,DEPARTMENT FOR EDUCATION,03/08/2010,CONTRACT PROGRAMME EXPENDITURE,Children and Families Early Years Extended Schools and Special Needs,ATKINS LTD,4000031678,24433.31
DEPARTMENT FOR EDUCATION,DEPARTMENT FOR EDUCATION,03/08/2010,CAPITAL GRANTS,School Formation and Investment Group,ATKINS LTD,4000031678,91341.97
DEPARTMENT FOR EDUCATION,DEPARTMENT FOR EDUCATION,03/08/2010,CURRENT GRANTS,School Formation and Investment Group,BISHOP OF ROCHESTER ACADEMY,4000031680,69888.77
DEPARTMENT FOR EDUCATION,DEPARTMENT FOR EDUCATION,03/08/2010,CONTRACT PROGRAMME EXPENDITURE,Children and Families Group,BRITISH ASSOCIATION FOR ADOPTION & FOSTERING,4000031685,154077
DEPARTMENT FOR EDUCATION,DEPARTMENT FOR EDUCATION,03/08/2010,CURRENT GRANTS,School Resources Group,BURNLEY BOROUGH COUNCIL,4000031689,57544
DEPARTMENT FOR EDUCATION,DEPARTMENT FOR EDUCATION,03/08/2010,CURRENT GRANTS,School Formation and Investment Group,CANTERBURY HIGH & PRIMARY SCHOOL,4000031690,50000
DEPARTMENT FOR EDUCATION,DEPARTMENT FOR EDUCATION,03/08/2010,MANAGEMENT CONSULTANCY,Customer Contact and Business Development Group,CENTRAL OFFICE OF INFORMATION,4000031691,25142.7
DEPARTMENT FOR EDUCATION,DEPARTMENT FOR EDUCATION,03/08/2010,CURRENT GRANTS,Children and Families Child Well Being Group,COVENTRY & WARWICKSHIRE FAMILY MEDIATION LTD,4000031694,78124
DEPARTMENT FOR EDUCATION,DEPARTMENT FOR EDUCATION,03/08/2010,CURRENT GRANTS,School Formation and Investment Group,CUCKOO HALL PRIMARY SCHOOL,4000031695,25000
DEPARTMENT FOR EDUCATION,DEPARTMENT FOR EDUCATION,03/08/2010,CURRENT GRANTS,School Formation and Investment Group,DARTFORD GRAMMAR SCHOOL,4000031696,25000
DEPARTMENT FOR EDUCATION,DEPARTMENT FOR EDUCATION,03/08/2010,CAPITAL GRANTS,Supporting Children and Young People Group Activities and Engagement,DORSET COUNTY COUNCIL,4000031701,40225
DEPARTMENT FOR EDUCATION,DEPARTMENT FOR EDUCATION,03/08/2010,CURRENT GRANTS,Children and Families Child Well Being Group,ESSEX COUNTY COUNCIL,4000031704,87500
DEPARTMENT FOR EDUCATION,DEPARTMENT FOR EDUCATION,03/08/2010,CURRENT GRANTS,School Resources Group,EXETER CITY COUNCIL,4000031705,64936
DEPARTMENT FOR EDUCATION,DEPARTMENT FOR EDUCATION,03/08/2010,CURRENT GRANTS,School Formation and Investment Group,FALLIBROOME HIGH SCHOOL,4000031706,25000
DEPARTMENT FOR EDUCATION,DEPARTMENT FOR EDUCATION,03/08/2010,CURRENT GRANTS,Children and Families Child Well Being Group,FAMILIES TALKING,4000031707,86997
DEPARTMENT FOR EDUCATION,DEPARTMENT FOR EDUCATION,03/08/2010,CURRENT GRANTS,Children and Families Child Well Being Group,FAMILY MEDIATION NORTH WILTSHIRE,4000031708,73236
DEPARTMENT FOR EDUCATION,DEPARTMENT FOR EDUCATION,03/08/2010,FACILITIES OTHER,Commercial Group EFM,FLEXIFORM,4000031710,45000
DEPARTMENT FOR EDUCATION,DEPARTMENT FOR EDUCATION,03/08/2010,CURRENT GRANTS,School Resources Group,HARLOW DISTRICT COUNCIL,4000031712,42593
DEPARTMENT FOR EDUCATION,DEPARTMENT FOR EDUCATION,03/08/2010,CURRENT GRANTS,School Resources Group,HASTINGS BOROUGH COUNCIL,4000031713,45705
DEPARTMENT FOR EDUCATION,DEPARTMENT FOR EDUCATION,03/08/2010,CURRENT GRANTS,Children and Families Child Well Being Group,HAVERSTOCK HEALTHCARE LTD,4000031714,76847
DEPARTMENT FOR EDUCATION,DEPARTMENT FOR EDUCATION,03/08/2010,CURRENT GRANTS,School Formation and Investment Group,HECKMONDWIKE GRAMMAR SCHOOL,4000031717,25000
DEPARTMENT FOR EDUCATION,DEPARTMENT FOR EDUCATION,03/08/2010,CONTRACT PROGRAMME EXPENDITURE,14 - 19 Reform Participation and Attainment,HEWITT ASSOCIATES LTD,4000031718,27194.7
DEPARTMENT FOR EDUCATION,DEPARTMENT FOR EDUCATION,03/08/2010,CURRENT GRANTS,School Formation and Investment Group,HIGHSTED GRAMMAR SCHOOL,4000031719,25000
DEPARTMENT FOR EDUCATION,DEPARTMENT FOR EDUCATION,03/08/2010,CURRENT GRANTS,Children and Families Child Well Being Group,LINCOLNSHIRE COUNTY COUNCIL,4000031726,79538
DEPARTMENT FOR EDUCATION,DEPARTMENT FOR EDUCATION,03/08/2010,CURRENT GRANTS,Children and Families Child Well Being Group,LONDON BOROUGH OF MERTON,4000031729,81710
DEPARTMENT FOR EDUCATION,DEPARTMENT FOR EDUCATION,03/08/2010,CAPITAL GRANTS,School Formation and Investment Group,MERCHANTS ACADEMY WITHYWOOD,4000031732,32499.52
DEPARTMENT FOR EDUCATION,DEPARTMENT FOR EDUCATION,03/08/2010,CURRENT GRANTS,Children and Families Supporting Delivery Group,NATIONAL CHILDRENS BUREAU,4000031735,402011
DEPARTMENT FOR EDUCATION,DEPARTMENT FOR EDUCATION,03/08/2010,CONTRACT PROGRAMME EXPENDITURE,Children and Families Child Well Being Group,OPM,4000031737,11975.12
DEPARTMENT FOR EDUCATION,DEPARTMENT FOR EDUCATION,03/08/2010,CONTRACT PROGRAMME EXPENDITURE,Supporting Children and Young People Community Cohesion,OPM,4000031737,129836.33
DEPARTMENT FOR EDUCATION,DEPARTMENT FOR EDUCATION,03/08/2010,CURRENT GRANTS,Children and Families Child Well Being Group,PRO CONTACT,4000031740,76351
DEPARTMENT FOR EDUCATION,DEPARTMENT FOR EDUCATION,03/08/2010,CURRENT GRANTS,School Formation and Investment Group,QUEEN ELIZABETH GRAMMAR SCHOOL,4000031741,25000
DEPARTMENT FOR EDUCATION,DEPARTMENT FOR EDUCATION,03/08/2010,CURRENT GRANTS,Children and Families Child Well Being Group,RELATE LEEDS,4000031743,78150
DEPARTMENT FOR EDUCATION,DEPARTMENT FOR EDUCATION,03/08/2010,CURRENT GRANTS,Children and Families Early Years Extended Schools and Special Needs,RNID,4000031745,71707
DEPARTMENT FOR EDUCATION,DEPARTMENT FOR EDUCATION,03/08/2010,CURRENT GRANTS,Children and Families Supporting Delivery Group,ROTHERHAM MBC,4000031749,71420
DEPARTMENT FOR EDUCATION,DEPARTMENT FOR EDUCATION,03/08/2010,CONTRACT PROGRAMME EXPENDITURE,Children and Families Child Well Being Group,SKILLS ACTIVE,4000031753,29200
DEPARTMENT FOR EDUCATION,DEPARTMENT FOR EDUCATION,03/08/2010,CAPITAL GRANTS,Supporting Children and Young People Group Activities and Engagement,SOUTH GLOUCEST,4000031754,28725
DEPARTMENT FOR EDUCATION,DEPARTMENT FOR EDUCATION,03/08/2010,CONTRACT PROGRAMME EXPENDITURE,14 - 19 Reform Qualification Standards and Reform,SPECIALIST SCHOOLS & ACADEMIES TRUST,4000031755,794599.63
DEPARTMENT FOR EDUCATION,DEPARTMENT FOR EDUCATION,03/08/2010,CURRENT GRANTS,School Formation and Investment Group,THE WESTLANDS SCHOOL,4000031765,25000
DEPARTMENT FOR EDUCATION,DEPARTMENT FOR EDUCATION,03/08/2010,CURRENT GRANTS,School Formation and Investment Group,TOLLBAR BUSINESS & ENTERPRISE COLLEGE,4000031766,25000
DEPARTMENT FOR EDUCATION,DEPARTMENT FOR EDUCATION,03/08/2010,CONTRACT PROGRAMME EXPENDITURE,School Formation and Investment Group,TRIBAL EDUCATION LTD CONSULTING,4000031768,61676.24
DEPARTMENT FOR EDUCATION,DEPARTMENT FOR EDUCATION,03/08/2010,CURRENT GRANTS,School Formation and Investment Group,WEALD OF KENT GRAMMAR SCHOOL,4000031770,25000
DEPARTMENT FOR EDUCATION,DEPARTMENT FOR EDUCATION,03/08/2010,CAPITAL GRANTS,Supporting Children and Young People Group Activities and Engagement,WILTSHIRE COUNCIL,4000031773,46700
DEPARTMENT FOR EDUCATION,DEPARTMENT FOR EDUCATION,03/08/2010,CURRENT GRANTS,School Formation and Investment Group,WOODGROVE COMMUNITY PRIMARY SCHOOL,4000031775,25000
DEPARTMENT FOR EDUCATION,DEPARTMENT FOR EDUCATION,04/08/2010,CAPITAL GRANTS,School Formation and Investment Group,BRITSCHOOL CCTA,4000031817,61893.55
DEPARTMENT FOR EDUCATION,DEPARTMENT FOR EDUCATION,04/08/2010,CONTRACT PROGRAMME EXPENDITURE,Children and Families Early Years Extended Schools and Special Needs,COUNCIL FOR DISABLED,4000031826,54887.78
DEPARTMENT FOR EDUCATION,DEPARTMENT FOR EDUCATION,04/08/2010,CURRENT GRANTS,Children and Families Group,DEPARTMENT OF HEALTH,4000031829,1500000
DEPARTMENT FOR EDUCATION,DEPARTMENT FOR EDUCATION,04/08/2010,OTHER PROGRAMME EXPENSES,Supporting Children and Young People Group Activities and Engagement,ECOTEC RESEARCH & CONSULTING LTD,4000031834,382055.08
DEPARTMENT FOR EDUCATION,DEPARTMENT FOR EDUCATION,04/08/2010,CURRENT GRANTS,Children and Families Early Years Extended Schools and Special Needs,FAMILIES UNITED NETWORK,4000031838,30000
DEPARTMENT FOR EDUCATION,DEPARTMENT FOR EDUCATION,04/08/2010,CURRENT GRANTS,School Formation and Investment Group,NORTH SHORE HEALTH ACADEMY,4000031861,48219.65
DEPARTMENT FOR EDUCATION,DEPARTMENT FOR EDUCATION,04/08/2010,CONTRACT PROGRAMME EXPENDITURE,School Formation and Investment Group,PKF UK LIMITED,4000031877,225569.48
DEPARTMENT FOR EDUCATION,DEPARTMENT FOR EDUCATION,04/08/2010,CURRENT GRANTS,Children and Families Group,PRINCESS ROYAL TRUST FOR CARERS,4000031881,493359.44
DEPARTMENT FOR EDUCATION,DEPARTMENT FOR EDUCATION,04/08/2010,CURRENT GRANTS,School Formation and Investment Group,THE BOURNE ACADEMY,4000031894,80935.06
DEPARTMENT FOR EDUCATION,DEPARTMENT FOR EDUCATION,04/08/2010,CURRENT GRANTS,Children and Families Supporting Delivery Group,THE CHILDRENS SOCIETY,4000031895,52500
DEPARTMENT FOR EDUCATION,DEPARTMENT FOR EDUCATION,04/08/2010,CURRENT GRANTS,School Formation and Investment Group,THORNABY ACADEMY,4000031898,43150.3
DEPARTMENT FOR EDUCATION,DEPARTMENT FOR EDUCATION,04/08/2010,CONTRACT PROGRAMME EXPENDITURE,School Formation and Investment Group,TRIBAL EDUCATION LTD CONSULTING,4000031899,61487.24
DEPARTMENT FOR EDUCATION,TEACHERS PENSION SCHEME,05/08/2010,FUNDING TO PAY TEACHERS PENSIONS,Workforce Group - TPS,CAPITA TP HSBC,1000263,86908.44
DEPARTMENT FOR EDUCATION,TEACHERS PENSION SCHEME,05/08/2010,FUNDING TO PAY TEACHERS PENSIONS,Workforce Group - TPS,CAPITA TP NATWEST,1000264,14730502.84
DEPARTMENT FOR EDUCATION,DEPARTMENT FOR EDUCATION,05/08/2010,CAPITAL GRANTS,Children and Families Early Years Extended Schools and Special Needs,EAST SUSSEX COUNTY COUNCIL,4000031907,711293
DEPARTMENT FOR EDUCATION,DEPARTMENT FOR EDUCATION,05/08/2010,CAPITAL GRANTS,Children and Families Early Years Extended Schools and Special Needs,LONDON BOROUGH OF NEWHAM,4000031908,381960
DEPARTMENT FOR EDUCATION,DEPARTMENT FOR EDUCATION,05/08/2010,CURRENT GRANTS,School Resources Group,BARNSLEY MBC,4000031942,110631
DEPARTMENT FOR EDUCATION,DEPARTMENT FOR EDUCATION,05/08/2010,CURRENT GRANTS,School Resources Group,BATH & NORTH EAST SOMERSET COUNCIL,4000031943,25167
DEPARTMENT FOR EDUCATION,DEPARTMENT FOR EDUCATION,05/08/2010,CURRENT GRANTS,School Resources Group,BIRMINGHAM CITY COUNCIL,4000031945,411572
DEPARTMENT FOR EDUCATION,DEPARTMENT FOR EDUCATION,05/08/2010,CURRENT GRANTS,School Resources Group,BRISTOL CITY COUNCIL,4000031948,37333
DEPARTMENT FOR EDUCATION,DEPARTMENT FOR EDUCATION,05/08/2010,CURRENT GRANTS,School Resources Group,BUCKINGHAMSHIRE COUNTY COUNCIL,4000031950,28334
DEPARTMENT FOR EDUCATION,DEPARTMENT FOR EDUCATION,05/08/2010,CURRENT GRANTS,School Resources Group,CAMBRIDGESHIRE COUNTY COUNCIL,4000031953,32510
DEPARTMENT FOR EDUCATION,DEPARTMENT FOR EDUCATION,05/08/2010,PROFESSIONAL FEES,Curriculum and Pupil Well Being Unit,CAPGEMINI UK PLC,4000031954,55702.63
DEPARTMENT FOR EDUCATION,DEPARTMENT FOR EDUCATION,05/08/2010,STAFF EXPENSES / COSTS,"Strategic Analysis, Research and Policy Impact Group",CARLSON WAGONLIT TRAVEL,4000031955,-279.61
DEPARTMENT FOR EDUCATION,DEPARTMENT FOR EDUCATION,05/08/2010,STAFF EXPENSES / COSTS,Young People  Schools Children and Young People Group,CARLSON WAGONLIT TRAVEL,4000031955,-266.92
DEPARTMENT FOR EDUCATION,DEPARTMENT FOR EDUCATION,05/08/2010,STAFF EXPENSES / COSTS,Commercial Group Schools and Category Management,CARLSON WAGONLIT TRAVEL,4000031955,-248.92
DEPARTMENT FOR EDUCATION,DEPARTMENT FOR EDUCATION,05/08/2010,STAFF EXPENSES / COSTS,People and Change,CARLSON WAGONLIT TRAVEL,4000031955,-153.25
DEPARTMENT FOR EDUCATION,DEPARTMENT FOR EDUCATION,05/08/2010,STAFF EXPENSES / COSTS,Commercial Group Strategic Functions,CARLSON WAGONLIT TRAVEL,4000031955,-144.84
DEPARTMENT FOR EDUCATION,DEPARTMENT FOR EDUCATION,05/08/2010,STAFF EXPENSES / COSTS,Children and Families Safeguarding Group,CARLSON WAGONLIT TRAVEL,4000031955,-117
DEPARTMENT FOR EDUCATION,DEPARTMENT FOR EDUCATION,05/08/2010,STAFF EXPENSES / COSTS,School Resources Group,CARLSON WAGONLIT TRAVEL,4000031955,-109.72
DEPARTMENT FOR EDUCATION,DEPARTMENT FOR EDUCATION,05/08/2010,STAFF EXPENSES / COSTS,Young People Quality Standards and Reform Group,CARLSON WAGONLIT TRAVEL,4000031955,-106.49
DEPARTMENT FOR EDUCATION,DEPARTMENT FOR EDUCATION,05/08/2010,STAFF EXPENSES / COSTS,Commercial Group Schools and Category Management,CARLSON WAGONLIT TRAVEL,4000031955,-88.97
DEPARTMENT FOR EDUCATION,DEPARTMENT FOR EDUCATION,05/08/2010,STAFF EXPENSES / COSTS,Customer Contact and Business Development Group,CARLSON WAGONLIT TRAVEL,4000031955,-78.34
DEPARTMENT FOR EDUCATION,DEPARTMENT FOR EDUCATION,05/08/2010,STAFF EXPENSES / COSTS,Children and Families Child Well Being Group,CARLSON WAGONLIT TRAVEL,4000031955,-38.92
DEPARTMENT FOR EDUCATION,DEPARTMENT FOR EDUCATION,05/08/2010,STAFF EXPENSES / COSTS,School Resources Group,CARLSON WAGONLIT TRAVEL,4000031955,-31.95
DEPARTMENT FOR EDUCATION,DEPARTMENT FOR EDUCATION,05/08/2010,STAFF EXPENSES / COSTS,Children and Families Supporting Delivery Group,CARLSON WAGONLIT TRAVEL,4000031955,-30.15
DEPARTMENT FOR EDUCATION,DEPARTMENT FOR EDUCATION,05/08/2010,STAFF EXPENSES / COSTS,Children and Families Group,CARLSON WAGONLIT TRAVEL,4000031955,-12.8
DEPARTMENT FOR EDUCATION,DEPARTMENT FOR EDUCATION,05/08/2010,STAFF EXPENSES / COSTS,Commercial Group Schools and Category Management,CARLSON WAGONLIT TRAVEL,4000031955,-12.35
DEPARTMENT FOR EDUCATION,DEPARTMENT FOR EDUCATION,05/08/2010,STAFF EXPENSES / COSTS,Children and Families Child Well Being Group,CARLSON WAGONLIT TRAVEL,4000031955,0.25
DEPARTMENT FOR EDUCATION,DEPARTMENT FOR EDUCATION,05/08/2010,STAFF EXPENSES / COSTS,Children and Families Directorate,CARLSON WAGONLIT TRAVEL,4000031955,0.25
DEPARTMENT FOR EDUCATION,DEPARTMENT FOR EDUCATION,05/08/2010,STAFF EXPENSES / COSTS,School Performance and Reform Office of the Schools Commissioner,CARLSON WAGONLIT TRAVEL,4000031955,16.01
DEPARTMENT FOR EDUCATION,DEPARTMENT FOR EDUCATION,05/08/2010,STAFF EXPENSES / COSTS,School Formation and Investment Group,CARLSON WAGONLIT TRAVEL,4000031955,16.1
DEPARTMENT FOR EDUCATION,DEPARTMENT FOR EDUCATION,05/08/2010,STAFF EXPENSES / COSTS,Young People  Schools Children and Young People Group,CARLSON WAGONLIT TRAVEL,4000031955,20.85
DEPARTMENT FOR EDUCATION,DEPARTMENT FOR EDUCATION,05/08/2010,STAFF EXPENSES / COSTS,Press Office Group,CARLSON WAGONLIT TRAVEL,4000031955,24.35
DEPARTMENT FOR EDUCATION,DEPARTMENT FOR EDUCATION,05/08/2010,STAFF EXPENSES / COSTS,School Formation and Investment Group,CARLSON WAGONLIT TRAVEL,4000031955,34.55
DEPARTMENT FOR EDUCATION,DEPARTMENT FOR EDUCATION,05/08/2010,STAFF EXPENSES / COSTS,Young People Quality Standards and Reform Group,CARLSON WAGONLIT TRAVEL,4000031955,40.14
DEPARTMENT FOR EDUCATION,DEPARTMENT FOR EDUCATION,05/08/2010,STAFF EXPENSES / COSTS,Children and Families Early Years Extended Schools and Special Needs,CARLSON WAGONLIT TRAVEL,4000031955,43.45
DEPARTMENT FOR EDUCATION,DEPARTMENT FOR EDUCATION,05/08/2010,STAFF EXPENSES / COSTS,School Standards Group,CARLSON WAGONLIT TRAVEL,4000031955,50.7
DEPARTMENT FOR EDUCATION,DEPARTMENT FOR EDUCATION,05/08/2010,STAFF EXPENSES / COSTS,School Performance and Reform Group,CARLSON WAGONLIT TRAVEL,4000031955,53.11
DEPARTMENT FOR EDUCATION,DEPARTMENT FOR EDUCATION,05/08/2010,STAFF EXPENSES / COSTS,Curriculum and Pupil Well Being Curriculum Unit,CARLSON WAGONLIT TRAVEL,4000031955,53.3
DEPARTMENT FOR EDUCATION,DEPARTMENT FOR EDUCATION,05/08/2010,STAFF EXPENSES / COSTS,Curriculum and Pupil Well Being Curriculum Unit,CARLSON WAGONLIT TRAVEL,4000031955,57.2
DEPARTMENT FOR EDUCATION,DEPARTMENT FOR EDUCATION,05/08/2010,STAFF EXPENSES / COSTS,School Formation and Investment Group,CARLSON WAGONLIT TRAVEL,4000031955,57.75
DEPARTMENT FOR EDUCATION,DEPARTMENT FOR EDUCATION,05/08/2010,STAFF EXPENSES / COSTS,Commercial Group EFM,CARLSON WAGONLIT TRAVEL,4000031955,62.25
DEPARTMENT FOR EDUCATION,DEPARTMENT FOR EDUCATION,05/08/2010,STAFF EXPENSES / COSTS,School Standards Group,CARLSON WAGONLIT TRAVEL,4000031955,63.65
DEPARTMENT FOR EDUCATION,DEPARTMENT FOR EDUCATION,05/08/2010,STAFF EXPENSES / COSTS,People and Change,CARLSON WAGONLIT TRAVEL,4000031955,65.68
DEPARTMENT FOR EDUCATION,DEPARTMENT FOR EDUCATION,05/08/2010,STAFF EXPENSES / COSTS,Chief Information Officer Group,CARLSON WAGONLIT TRAVEL,4000031955,66.53
DEPARTMENT FOR EDUCATION,DEPARTMENT FOR EDUCATION,05/08/2010,STAFF EXPENSES / COSTS,School Standards Group,CARLSON WAGONLIT TRAVEL,4000031955,73.44
DEPARTMENT FOR EDUCATION,DEPARTMENT FOR EDUCATION,05/08/2010,STAFF EXPENSES / COSTS,School Formation and Investment Group,CARLSON WAGONLIT TRAVEL,4000031955,75
DEPARTMENT FOR EDUCATION,DEPARTMENT FOR EDUCATION,05/08/2010,STAFF EXPENSES / COSTS,"Strategic Analysis, Research and Policy Impact Group",CARLSON WAGONLIT TRAVEL,4000031955,82.65
DEPARTMENT FOR EDUCATION,DEPARTMENT FOR EDUCATION,05/08/2010,STAFF EXPENSES / COSTS,School Standards Group,CARLSON WAGONLIT TRAVEL,4000031955,85.98
DEPARTMENT FOR EDUCATION,DEPARTMENT FOR EDUCATION,05/08/2010,STAFF EXPENSES / COSTS,Chief Information Officer Group,CARLSON WAGONLIT TRAVEL,4000031955,86.74
DEPARTMENT FOR EDUCATION,DEPARTMENT FOR EDUCATION,05/08/2010,STAFF EXPENSES / COSTS,Children and Families Early Years Extended Schools and Special Needs,CARLSON WAGONLIT TRAVEL,4000031955,88.35
DEPARTMENT FOR EDUCATION,DEPARTMENT FOR EDUCATION,05/08/2010,STAFF EXPENSES / COSTS,Young People Participation and Attainment Group,CARLSON WAGONLIT TRAVEL,4000031955,92.34
DEPARTMENT FOR EDUCATION,DEPARTMENT FOR EDUCATION,05/08/2010,STAFF EXPENSES / COSTS,Children and Families Directorate Support,CARLSON WAGONLIT TRAVEL,4000031955,95.41
DEPARTMENT FOR EDUCATION,DEPARTMENT FOR EDUCATION,05/08/2010,STAFF EXPENSES / COSTS,Marketing Group,CARLSON WAGONLIT TRAVEL,4000031955,95.54
DEPARTMENT FOR EDUCATION,DEPARTMENT FOR EDUCATION,05/08/2010,STAFF EXPENSES / COSTS,Customer Contact and Business Development Group,CARLSON WAGONLIT TRAVEL,4000031955,97.07
DEPARTMENT FOR EDUCATION,DEPARTMENT FOR EDUCATION,05/08/2010,STAFF EXPENSES / COSTS,Corporate Services Director General,CARLSON WAGONLIT TRAVEL,4000031955,100.44
DEPARTMENT FOR EDUCATION,DEPARTMENT FOR EDUCATION,05/08/2010,STAFF EXPENSES / COSTS,Young People  Directorate Apprenticeships Group,CARLSON WAGONLIT TRAVEL,4000031955,104.63
DEPARTMENT FOR EDUCATION,DEPARTMENT FOR EDUCATION,05/08/2010,STAFF EXPENSES / COSTS,Young People Participation and Attainment Group,CARLSON WAGONLIT TRAVEL,4000031955,108.88
DEPARTMENT FOR EDUCATION,DEPARTMENT FOR EDUCATION,05/08/2010,STAFF EXPENSES / COSTS,Children and Families Supporting Delivery Group,CARLSON WAGONLIT TRAVEL,4000031955,130.63
DEPARTMENT FOR EDUCATION,DEPARTMENT FOR EDUCATION,05/08/2010,STAFF EXPENSES / COSTS,Young People Quality Standards and Reform Group,CARLSON WAGONLIT TRAVEL,4000031955,147.35
DEPARTMENT FOR EDUCATION,DEPARTMENT FOR EDUCATION,05/08/2010,STAFF EXPENSES / COSTS,"Strategic Analysis, Research and Policy Impact Group",CARLSON WAGONLIT TRAVEL,4000031955,154.19
DEPARTMENT FOR EDUCATION,DEPARTMENT FOR EDUCATION,05/08/2010,STAFF EXPENSES / COSTS,"Strategic Analysis, Research and Policy Impact Group",CARLSON WAGONLIT TRAVEL,4000031955,158.65
DEPARTMENT FOR EDUCATION,DEPARTMENT FOR EDUCATION,05/08/2010,STAFF EXPENSES / COSTS,School Resources Group,CARLSON WAGONLIT TRAVEL,4000031955,163.96
DEPARTMENT FOR EDUCATION,DEPARTMENT FOR EDUCATION,05/08/2010,STAFF EXPENSES / COSTS,14 - 19 Reform Qualification Standards and Reform,CARLSON WAGONLIT TRAVEL,4000031955,171.08
DEPARTMENT FOR EDUCATION,DEPARTMENT FOR EDUCATION,05/08/2010,STAFF EXPENSES / COSTS,Young People  Schools Children and Young People Group,CARLSON WAGONLIT TRAVEL,4000031955,172.39
DEPARTMENT FOR EDUCATION,DEPARTMENT FOR EDUCATION,05/08/2010,STAFF EXPENSES / COSTS,Commercial Group Schools and Category Management,CARLSON WAGONLIT TRAVEL,4000031955,177.18
DEPARTMENT FOR EDUCATION,DEPARTMENT FOR EDUCATION,05/08/2010,STAFF EXPENSES / COSTS,Corporate and Internal Communications Group,CARLSON WAGONLIT TRAVEL,4000031955,180.21
DEPARTMENT FOR EDUCATION,DEPARTMENT FOR EDUCATION,05/08/2010,STAFF EXPENSES / COSTS,Commercial Group Schools and Category Management,CARLSON WAGONLIT TRAVEL,4000031955,180.45
DEPARTMENT FOR EDUCATION,DEPARTMENT FOR EDUCATION,05/08/2010,STAFF EXPENSES / COSTS,Chief Information Officer Group,CARLSON WAGONLIT TRAVEL,4000031955,188.95
DEPARTMENT FOR EDUCATION,DEPARTMENT FOR EDUCATION,05/08/2010,STAFF EXPENSES / COSTS,Commercial Group Schools and Category Management,CARLSON WAGONLIT TRAVEL,4000031955,197.65
DEPARTMENT FOR EDUCATION,DEPARTMENT FOR EDUCATION,05/08/2010,STAFF EXPENSES / COSTS,Commercial Group Schools and Category Management,CARLSON WAGONLIT TRAVEL,4000031955,207.26
DEPARTMENT FOR EDUCATION,DEPARTMENT FOR EDUCATION,05/08/2010,STAFF EXPENSES / COSTS,Young People Directorate Support,CARLSON WAGONLIT TRAVEL,4000031955,214.82
DEPARTMENT FOR EDUCATION,DEPARTMENT FOR EDUCATION,05/08/2010,STAFF EXPENSES / COSTS,Chief Information Officer Group,CARLSON WAGONLIT TRAVEL,4000031955,226.43
DEPARTMENT FOR EDUCATION,DEPARTMENT FOR EDUCATION,05/08/2010,STAFF EXPENSES / COSTS,Children and Families Supporting Delivery Group,CARLSON WAGONLIT TRAVEL,4000031955,227.79
DEPARTMENT FOR EDUCATION,DEPARTMENT FOR EDUCATION,05/08/2010,STAFF EXPENSES / COSTS,People and Change,CARLSON WAGONLIT TRAVEL,4000031955,230.95
DEPARTMENT FOR EDUCATION,DEPARTMENT FOR EDUCATION,05/08/2010,STAFF EXPENSES / COSTS,Finance Group,CARLSON WAGONLIT TRAVEL,4000031955,231.41
DEPARTMENT FOR EDUCATION,DEPARTMENT FOR EDUCATION,05/08/2010,STAFF EXPENSES / COSTS,Children and Families Supporting Delivery Group,CARLSON WAGONLIT TRAVEL,4000031955,233.96
DEPARTMENT FOR EDUCATION,DEPARTMENT FOR EDUCATION,05/08/2010,STAFF EXPENSES / COSTS,Commercial Group Shared Services and Children and Young People,CARLSON WAGONLIT TRAVEL,4000031955,243.46
DEPARTMENT FOR EDUCATION,DEPARTMENT FOR EDUCATION,05/08/2010,STAFF EXPENSES / COSTS,Curriculum and Pupil Well Being Unit,CARLSON WAGONLIT TRAVEL,4000031955,249.14
DEPARTMENT FOR EDUCATION,DEPARTMENT FOR EDUCATION,05/08/2010,STAFF EXPENSES / COSTS,School Analysis and Research,CARLSON WAGONLIT TRAVEL,4000031955,249.47
DEPARTMENT FOR EDUCATION,DEPARTMENT FOR EDUCATION,05/08/2010,STAFF EXPENSES / COSTS,People and Change,CARLSON WAGONLIT TRAVEL,4000031955,252.37
DEPARTMENT FOR EDUCATION,DEPARTMENT FOR EDUCATION,05/08/2010,STAFF EXPENSES / COSTS,Chief Information Officer Group,CARLSON WAGONLIT TRAVEL,4000031955,256.47
DEPARTMENT FOR EDUCATION,DEPARTMENT FOR EDUCATION,05/08/2010,STAFF EXPENSES / COSTS,People and Change,CARLSON WAGONLIT TRAVEL,4000031955,262.3
DEPARTMENT FOR EDUCATION,DEPARTMENT FOR EDUCATION,05/08/2010,STAFF EXPENSES / COSTS,Private Office ,CARLSON WAGONLIT TRAVEL,4000031955,282.24
DEPARTMENT FOR EDUCATION,DEPARTMENT FOR EDUCATION,05/08/2010,STAFF EXPENSES / COSTS,People and Change,CARLSON WAGONLIT TRAVEL,4000031955,283.01
DEPARTMENT FOR EDUCATION,DEPARTMENT FOR EDUCATION,05/08/2010,STAFF EXPENSES / COSTS,Children and Families Safeguarding Group,CARLSON WAGONLIT TRAVEL,4000031955,299.68
DEPARTMENT FOR EDUCATION,DEPARTMENT FOR EDUCATION,05/08/2010,STAFF EXPENSES / COSTS,Commercial Group,CARLSON WAGONLIT TRAVEL,4000031955,336.56
DEPARTMENT FOR EDUCATION,DEPARTMENT FOR EDUCATION,05/08/2010,STAFF EXPENSES / COSTS,Chief Information Officer Group,CARLSON WAGONLIT TRAVEL,4000031955,336.9
DEPARTMENT FOR EDUCATION,DEPARTMENT FOR EDUCATION,05/08/2010,STAFF EXPENSES / COSTS,Chief Information Officer Group,CARLSON WAGONLIT TRAVEL,4000031955,349.65
DEPARTMENT FOR EDUCATION,DEPARTMENT FOR EDUCATION,05/08/2010,STAFF EXPENSES / COSTS,Commercial Group Schools and Category Management,CARLSON WAGONLIT TRAVEL,4000031955,355.51
DEPARTMENT FOR EDUCATION,DEPARTMENT FOR EDUCATION,05/08/2010,STAFF EXPENSES / COSTS,Young People Quality Standards and Reform Group,CARLSON WAGONLIT TRAVEL,4000031955,356.71
DEPARTMENT FOR EDUCATION,DEPARTMENT FOR EDUCATION,05/08/2010,STAFF EXPENSES / COSTS,Children and Families Early Years Extended Schools and Special Needs,CARLSON WAGONLIT TRAVEL,4000031955,366.09
DEPARTMENT FOR EDUCATION,DEPARTMENT FOR EDUCATION,05/08/2010,STAFF EXPENSES / COSTS,"Strategic Analysis, Research and Policy Impact Group",CARLSON WAGONLIT TRAVEL,4000031955,373.36
DEPARTMENT FOR EDUCATION,DEPARTMENT FOR EDUCATION,05/08/2010,STAFF EXPENSES / COSTS,Commercial Group Shared Services and Children and Young People,CARLSON WAGONLIT TRAVEL,4000031955,373.52
DEPARTMENT FOR EDUCATION,DEPARTMENT FOR EDUCATION,05/08/2010,STAFF EXPENSES / COSTS,School Formation and Investment Group,CARLSON WAGONLIT TRAVEL,4000031955,381.81
DEPARTMENT FOR EDUCATION,DEPARTMENT FOR EDUCATION,05/08/2010,STAFF EXPENSES / COSTS,Children and Families Improving Information Sharing and Management Group,CARLSON WAGONLIT TRAVEL,4000031955,382.21
DEPARTMENT FOR EDUCATION,DEPARTMENT FOR EDUCATION,05/08/2010,STAFF EXPENSES / COSTS,Commercial Group Shared Services and Children and Young People,CARLSON WAGONLIT TRAVEL,4000031955,429.13
DEPARTMENT FOR EDUCATION,DEPARTMENT FOR EDUCATION,05/08/2010,STAFF EXPENSES / COSTS,Corporate Services Director General,CARLSON WAGONLIT TRAVEL,4000031955,433.26
DEPARTMENT FOR EDUCATION,DEPARTMENT FOR EDUCATION,05/08/2010,STAFF EXPENSES / COSTS,Young People  Schools Children and Young People Group,CARLSON WAGONLIT TRAVEL,4000031955,435.61
DEPARTMENT FOR EDUCATION,DEPARTMENT FOR EDUCATION,05/08/2010,STAFF EXPENSES / COSTS,School Resources Group,CARLSON WAGONLIT TRAVEL,4000031955,440.38
DEPARTMENT FOR EDUCATION,DEPARTMENT FOR EDUCATION,05/08/2010,STAFF EXPENSES / COSTS,Commercial Group Strategic Functions,CARLSON WAGONLIT TRAVEL,4000031955,449.04
DEPARTMENT FOR EDUCATION,DEPARTMENT FOR EDUCATION,05/08/2010,STAFF EXPENSES / COSTS,Chief Information Officer Group,CARLSON WAGONLIT TRAVEL,4000031955,450.77
DEPARTMENT FOR EDUCATION,DEPARTMENT FOR EDUCATION,05/08/2010,STAFF EXPENSES / COSTS,Commercial Group Strategic Functions,CARLSON WAGONLIT TRAVEL,4000031955,468.68
DEPARTMENT FOR EDUCATION,DEPARTMENT FOR EDUCATION,05/08/2010,STAFF EXPENSES / COSTS,Children and Families Child Well Being Group,CARLSON WAGONLIT TRAVEL,4000031955,478.29
DEPARTMENT FOR EDUCATION,DEPARTMENT FOR EDUCATION,05/08/2010,STAFF EXPENSES / COSTS,Commercial Group Shared Services and Children and Young People,CARLSON WAGONLIT TRAVEL,4000031955,522.44
DEPARTMENT FOR EDUCATION,DEPARTMENT FOR EDUCATION,05/08/2010,STAFF EXPENSES / COSTS,Corporate and Internal Communications Group,CARLSON WAGONLIT TRAVEL,4000031955,552.42
DEPARTMENT FOR EDUCATION,DEPARTMENT FOR EDUCATION,05/08/2010,STAFF EXPENSES / COSTS,Young People Participation and Attainment Group,CARLSON WAGONLIT TRAVEL,4000031955,577.43
DEPARTMENT FOR EDUCATION,DEPARTMENT FOR EDUCATION,05/08/2010,STAFF EXPENSES / COSTS,People and Change,CARLSON WAGONLIT TRAVEL,4000031955,586.98
DEPARTMENT FOR EDUCATION,DEPARTMENT FOR EDUCATION,05/08/2010,STAFF EXPENSES / COSTS,Young People Analysis Division,CARLSON WAGONLIT TRAVEL,4000031955,608.73
DEPARTMENT FOR EDUCATION,DEPARTMENT FOR EDUCATION,05/08/2010,STAFF EXPENSES / COSTS,Children and Families Safeguarding Group,CARLSON WAGONLIT TRAVEL,4000031955,631.84
DEPARTMENT FOR EDUCATION,DEPARTMENT FOR EDUCATION,05/08/2010,STAFF EXPENSES / COSTS,Supporting Children and Young People Youth Task Force,CARLSON WAGONLIT TRAVEL,4000031955,645.63
DEPARTMENT FOR EDUCATION,DEPARTMENT FOR EDUCATION,05/08/2010,STAFF EXPENSES / COSTS,School Analysis and Research,CARLSON WAGONLIT TRAVEL,4000031955,656.19
DEPARTMENT FOR EDUCATION,DEPARTMENT FOR EDUCATION,05/08/2010,STAFF EXPENSES / COSTS,Young People Quality Standards and Reform Group,CARLSON WAGONLIT TRAVEL,4000031955,683.14
DEPARTMENT FOR EDUCATION,DEPARTMENT FOR EDUCATION,05/08/2010,STAFF EXPENSES / COSTS,Finance Group,CARLSON WAGONLIT TRAVEL,4000031955,710.36
DEPARTMENT FOR EDUCATION,DEPARTMENT FOR EDUCATION,05/08/2010,STAFF EXPENSES / COSTS,Young People Participation and Attainment Group,CARLSON WAGONLIT TRAVEL,4000031955,717.11
DEPARTMENT FOR EDUCATION,DEPARTMENT FOR EDUCATION,05/08/2010,STAFF EXPENSES / COSTS,Children and Families Child Well Being Group,CARLSON WAGONLIT TRAVEL,4000031955,725.16
DEPARTMENT FOR EDUCATION,DEPARTMENT FOR EDUCATION,05/08/2010,STAFF EXPENSES / COSTS,Chief Information Officer Group,CARLSON WAGONLIT TRAVEL,4000031955,748.66
DEPARTMENT FOR EDUCATION,DEPARTMENT FOR EDUCATION,05/08/2010,STAFF EXPENSES / COSTS,Children and Families Child Well Being Group,CARLSON WAGONLIT TRAVEL,4000031955,771.01
DEPARTMENT FOR EDUCATION,DEPARTMENT FOR EDUCATION,05/08/2010,STAFF EXPENSES / COSTS,School Formation and Investment Group,CARLSON WAGONLIT TRAVEL,4000031955,785.54
DEPARTMENT FOR EDUCATION,DEPARTMENT FOR EDUCATION,05/08/2010,STAFF EXPENSES / COSTS,Communications Strategy and Insight Group,CARLSON WAGONLIT TRAVEL,4000031955,914.61
DEPARTMENT FOR EDUCATION,DEPARTMENT FOR EDUCATION,05/08/2010,STAFF EXPENSES / COSTS,School Performance and Reform Group,CARLSON WAGONLIT TRAVEL,4000031955,952.02
DEPARTMENT FOR EDUCATION,DEPARTMENT FOR EDUCATION,05/08/2010,STAFF EXPENSES / COSTS,School Performance and Reform Group,CARLSON WAGONLIT TRAVEL,4000031955,968.33
DEPARTMENT FOR EDUCATION,DEPARTMENT FOR EDUCATION,05/08/2010,STAFF EXPENSES / COSTS,People and Change,CARLSON WAGONLIT TRAVEL,4000031955,1045.89
DEPARTMENT FOR EDUCATION,DEPARTMENT FOR EDUCATION,05/08/2010,STAFF EXPENSES / COSTS,"Strategic Analysis, Research and Policy Impact Group",CARLSON WAGONLIT TRAVEL,4000031955,1088.48
DEPARTMENT FOR EDUCATION,DEPARTMENT FOR EDUCATION,05/08/2010,STAFF EXPENSES / COSTS,Young People  Schools Children and Young People Group,CARLSON WAGONLIT TRAVEL,4000031955,1110.41
DEPARTMENT FOR EDUCATION,DEPARTMENT FOR EDUCATION,05/08/2010,STAFF EXPENSES / COSTS,Children and Families Supporting Delivery Group,CARLSON WAGONLIT TRAVEL,4000031955,1143.38
DEPARTMENT FOR EDUCATION,DEPARTMENT FOR EDUCATION,05/08/2010,STAFF EXPENSES / COSTS,Chief Information Officer Group,CARLSON WAGONLIT TRAVEL,4000031955,1191.18
DEPARTMENT FOR EDUCATION,DEPARTMENT FOR EDUCATION,05/08/2010,STAFF EXPENSES / COSTS,Finance Group,CARLSON WAGONLIT TRAVEL,4000031955,1714.32
DEPARTMENT FOR EDUCATION,DEPARTMENT FOR EDUCATION,05/08/2010,STAFF EXPENSES / COSTS,Commercial Group EFM,CARLSON WAGONLIT TRAVEL,4000031955,1790.35
DEPARTMENT FOR EDUCATION,DEPARTMENT FOR EDUCATION,05/08/2010,STAFF EXPENSES / COSTS,Corporate Services Strategy and Performance,CARLSON WAGONLIT TRAVEL,4000031955,1926.51
DEPARTMENT FOR EDUCATION,DEPARTMENT FOR EDUCATION,05/08/2010,STAFF EXPENSES / COSTS,Young People  Schools Children and Young People Group,CARLSON WAGONLIT TRAVEL,4000031955,1942.66
DEPARTMENT FOR EDUCATION,DEPARTMENT FOR EDUCATION,05/08/2010,STAFF EXPENSES / COSTS,"Strategic Analysis, Research and Policy Impact Group",CARLSON WAGONLIT TRAVEL,4000031955,2125.82
DEPARTMENT FOR EDUCATION,DEPARTMENT FOR EDUCATION,05/08/2010,STAFF EXPENSES / COSTS,Customer Contact and Business Development Group,CARLSON WAGONLIT TRAVEL,4000031955,2280.73
DEPARTMENT FOR EDUCATION,DEPARTMENT FOR EDUCATION,05/08/2010,STAFF EXPENSES / COSTS,Young People Quality Standards and Reform Group,CARLSON WAGONLIT TRAVEL,4000031955,2649.9
DEPARTMENT FOR EDUCATION,DEPARTMENT FOR EDUCATION,05/08/2010,STAFF EXPENSES / COSTS,Young People Workforce Group,CARLSON WAGONLIT TRAVEL,4000031955,2968.15
DEPARTMENT FOR EDUCATION,DEPARTMENT FOR EDUCATION,05/08/2010,STAFF EXPENSES / COSTS,Internal Audit,CARLSON WAGONLIT TRAVEL,4000031955,3951.59
DEPARTMENT FOR EDUCATION,DEPARTMENT FOR EDUCATION,05/08/2010,STAFF EXPENSES / COSTS,School Formation and Investment Group,CARLSON WAGONLIT TRAVEL,4000031955,4172.2
DEPARTMENT FOR EDUCATION,DEPARTMENT FOR EDUCATION,05/08/2010,STAFF EXPENSES / COSTS,Children and Families Group,CARLSON WAGONLIT TRAVEL,4000031955,6615.02
DEPARTMENT FOR EDUCATION,DEPARTMENT FOR EDUCATION,05/08/2010,CURRENT GRANTS,Children and Families Supporting Delivery Group,CATHOLIC EDUCATION SERVICE,4000031956,104175
DEPARTMENT FOR EDUCATION,DEPARTMENT FOR EDUCATION,05/08/2010,COMMUNICATIONS & PUBLICITY,14 - 19 Reform Young People Guidance,CENTRAL OFFICE OF INFORMATION,4000031959,73124.95
DEPARTMENT FOR EDUCATION,DEPARTMENT FOR EDUCATION,05/08/2010,CURRENT GRANTS,School Formation and Investment Group,CHADWELL HEATH ACADEMY,4000031960,25000
DEPARTMENT FOR EDUCATION,DEPARTMENT FOR EDUCATION,05/08/2010,CURRENT GRANTS,School Resources Group,CITY OF BRADFORD METROPOLITAN DISTRICT COUNCIL,4000031962,51707
DEPARTMENT FOR EDUCATION,DEPARTMENT FOR EDUCATION,05/08/2010,CURRENT GRANTS,School Formation and Investment Group,CLEVES SCHOOL,4000031964,25000
DEPARTMENT FOR EDUCATION,DEPARTMENT FOR EDUCATION,05/08/2010,CONTRACT PROGRAMME EXPENDITURE,Children and Families Safeguarding Group,COI CENTRAL OFFICE OF INFORMATION,4000031965,-1034
DEPARTMENT FOR EDUCATION,DEPARTMENT FOR EDUCATION,05/08/2010,PROFESSIONAL FEES,Children and Families Child Well Being Group,COI CENTRAL OFFICE OF INFORMATION,4000031965,40790.26
DEPARTMENT FOR EDUCATION,DEPARTMENT FOR EDUCATION,05/08/2010,CURRENT GRANTS,School Resources Group,COVENTRY CITY COUNCIL,4000031966,36415
DEPARTMENT FOR EDUCATION,DEPARTMENT FOR EDUCATION,05/08/2010,CURRENT GRANTS,School Formation and Investment Group,CUMBRIA COUNTY COUNCIL,4000031967,30150
DEPARTMENT FOR EDUCATION,DEPARTMENT FOR EDUCATION,05/08/2010,CURRENT GRANTS,School Formation and Investment Group,DARWEN ACADEMY,4000031969,51783.2
DEPARTMENT FOR EDUCATION,DEPARTMENT FOR EDUCATION,05/08/2010,CURRENT GRANTS,School Formation and Investment Group,DEBDEN PARK HIGH SCHOOL,4000031970,25000
DEPARTMENT FOR EDUCATION,DEPARTMENT FOR EDUCATION,05/08/2010,MISCELLANEOUS EXPENDITURE,Talent And Enterprise Taskforce Group,DEPARTMENT FOR BUSINESS INNOVATION & SKILLS,4000031971,41000
DEPARTMENT FOR EDUCATION,DEPARTMENT FOR EDUCATION,05/08/2010,CURRENT GRANTS,School Resources Group,DERBY CITY COUNCIL,4000031972,34331
DEPARTMENT FOR EDUCATION,DEPARTMENT FOR EDUCATION,05/08/2010,CURRENT GRANTS,School Resources Group,DERBYSHIRE COUNTY COUNCIL,4000031973,61992
DEPARTMENT FOR EDUCATION,DEPARTMENT FOR EDUCATION,05/08/2010,CURRENT GRANTS,School Resources Group,DONCASTER MBC,4000031975,154201
DEPARTMENT FOR EDUCATION,DEPARTMENT FOR EDUCATION,05/08/2010,CURRENT GRANTS,School Resources Group,DUDLEY MBC,4000031976,340697
DEPARTMENT FOR EDUCATION,DEPARTMENT FOR EDUCATION,05/08/2010,CURRENT GRANTS,School Resources Group,DURHAM COUNTY COUNCIL,4000031977,114100
DEPARTMENT FOR EDUCATION,DEPARTMENT FOR EDUCATION,05/08/2010,CURRENT GRANTS,School Resources Group,EAST RIDING OF YORKSHIRE,4000031979,129942
DEPARTMENT FOR EDUCATION,DEPARTMENT FOR EDUCATION,05/08/2010,CAPITAL LICENCES & INTANGIBLES,Corporate and Internal Communications Group,EDUSERV,4000031982,10672.91
DEPARTMENT FOR EDUCATION,DEPARTMENT FOR EDUCATION,05/08/2010,IS/IT,Chief Information Officer Group,EDUSERV,4000031982,146596.96
DEPARTMENT FOR EDUCATION,DEPARTMENT FOR EDUCATION,05/08/2010,STAFF EXPENSES / COSTS,School Standards Group,ESSEX COUNTY COUNCIL,4000031983,92333.05
DEPARTMENT FOR EDUCATION,DEPARTMENT FOR EDUCATION,05/08/2010,CURRENT GRANTS,School Resources Group,ESSEX COUNTY COUNCIL,4000031984,210713
DEPARTMENT FOR EDUCATION,DEPARTMENT FOR EDUCATION,05/08/2010,CURRENT GRANTS,School Resources Group,GATESHEAD MBC,4000031987,121818
DEPARTMENT FOR EDUCATION,DEPARTMENT FOR EDUCATION,05/08/2010,CURRENT GRANTS,School Resources Group,GLOUCESTERSHIRE COUNTY COUNCIL,4000031990,69000
DEPARTMENT FOR EDUCATION,DEPARTMENT FOR EDUCATION,05/08/2010,CURRENT GRANTS,School Resources Group,HALTON BOROUGH COUNCIL,4000031992,176447
DEPARTMENT FOR EDUCATION,DEPARTMENT FOR EDUCATION,05/08/2010,CURRENT GRANTS,School Resources Group,HARTLEPOOL BOROUGH COUNCIL,4000031996,29530
DEPARTMENT FOR EDUCATION,DEPARTMENT FOR EDUCATION,05/08/2010,CURRENT GRANTS,School Formation and Investment Group,HEALING SCHOOL,4000031998,25000
DEPARTMENT FOR EDUCATION,DEPARTMENT FOR EDUCATION,05/08/2010,CURRENT GRANTS,School Resources Group,HEREFORDSHIRE COUNCIL,4000031999,28515
DEPARTMENT FOR EDUCATION,DEPARTMENT FOR EDUCATION,05/08/2010,CURRENT GRANTS,School Formation and Investment Group,HIGHGATE SCHOOL,4000032000,28804
DEPARTMENT FOR EDUCATION,DEPARTMENT FOR EDUCATION,05/08/2010,MISCELLANEOUS EXPENDITURE,Commercial Group EFM,ISS FACILITY SERVICES T/A PEGASUS SECURITY GROUP,4000032002,4458.02
DEPARTMENT FOR EDUCATION,DEPARTMENT FOR EDUCATION,05/08/2010,MISCELLANEOUS EXPENDITURE,Commercial Group EFM,ISS FACILITY SERVICES T/A PEGASUS SECURITY GROUP,4000032002,28944.01
DEPARTMENT FOR EDUCATION,DEPARTMENT FOR EDUCATION,05/08/2010,CURRENT GRANTS,School Formation and Investment Group,KEMNAL TECHNOLOGY COLLEGE,4000032004,25000
DEPARTMENT FOR EDUCATION,DEPARTMENT FOR EDUCATION,05/08/2010,CURRENT GRANTS,School Resources Group,KENT COUNTY COUNCIL,4000032006,235662
DEPARTMENT FOR EDUCATION,DEPARTMENT FOR EDUCATION,05/08/2010,CURRENT GRANTS,School Resources Group,KINGSTON UPON HULL COUNCIL,4000032008,208502
DEPARTMENT FOR EDUCATION,DEPARTMENT FOR EDUCATION,05/08/2010,CURRENT GRANTS,School Resources Group,KIRKLEES COUNCIL,4000032009,107655
DEPARTMENT FOR EDUCATION,DEPARTMENT FOR EDUCATION,05/08/2010,CURRENT GRANTS,School Resources Group,KNOWSLEY MBC,4000032010,290370
DEPARTMENT FOR EDUCATION,DEPARTMENT FOR EDUCATION,05/08/2010,MISCELLANEOUS EXPENDITURE,14 - 19 Reform Qualification Standards and Reform,KPMG LLP,4000032011,127247.8
DEPARTMENT FOR EDUCATION,DEPARTMENT FOR EDUCATION,05/08/2010,CURRENT GRANTS,School Resources Group,LEEDS CITY COUNCIL,4000032012,129639
DEPARTMENT FOR EDUCATION,DEPARTMENT FOR EDUCATION,05/08/2010,CURRENT GRANTS,School Resources Group,LEICESTER CITY COUNCIL,4000032013,72901
DEPARTMENT FOR EDUCATION,DEPARTMENT FOR EDUCATION,05/08/2010,CURRENT GRANTS,School Resources Group,LEICESTERSHIRE COUNTY COUNCIL,4000032014,41050
DEPARTMENT FOR EDUCATION,DEPARTMENT FOR EDUCATION,05/08/2010,CURRENT GRANTS,School Resources Group,LIVERPOOL CITY COUNCIL,4000032016,560977
DEPARTMENT FOR EDUCATION,DEPARTMENT FOR EDUCATION,05/08/2010,CURRENT GRANTS,School Resources Group,LONDON BOROUGH OF BARKING & DAGENHAM COUNCIL,4000032017,122129
DEPARTMENT FOR EDUCATION,DEPARTMENT FOR EDUCATION,05/08/2010,CURRENT GRANTS,School Resources Group,LONDON BOROUGH OF BARNET COUNCIL,4000032018,37029
DEPARTMENT FOR EDUCATION,DEPARTMENT FOR EDUCATION,05/08/2010,CURRENT GRANTS,School Resources Group,LONDON BOROUGH OF BRENT,4000032020,61738
DEPARTMENT FOR EDUCATION,DEPARTMENT FOR EDUCATION,05/08/2010,CURRENT GRANTS,School Resources Group,LONDON BOROUGH OF CAMDEN,4000032022,28872
DEPARTMENT FOR EDUCATION,DEPARTMENT FOR EDUCATION,05/08/2010,CURRENT GRANTS,School Resources Group,LONDON BOROUGH OF CROYDON COUNCIL,4000032023,57220
DEPARTMENT FOR EDUCATION,DEPARTMENT FOR EDUCATION,05/08/2010,CURRENT GRANTS,School Resources Group,LONDON BOROUGH OF EALING COUNCIL,4000032024,52006
DEPARTMENT FOR EDUCATION,DEPARTMENT FOR EDUCATION,05/08/2010,CURRENT GRANTS,School Resources Group,LONDON BOROUGH OF ENFIELD COUNCIL,4000032025,89542
DEPARTMENT FOR EDUCATION,DEPARTMENT FOR EDUCATION,05/08/2010,CURRENT GRANTS,School Resources Group,LONDON BOROUGH OF GREENWICH,4000032026,41357
DEPARTMENT FOR EDUCATION,DEPARTMENT FOR EDUCATION,05/08/2010,CURRENT GRANTS,School Resources Group,LONDON BOROUGH OF HAMMERSMITH & FULHAM COUNCIL,4000032027,35535
DEPARTMENT FOR EDUCATION,DEPARTMENT FOR EDUCATION,05/08/2010,CURRENT GRANTS,School Resources Group,LONDON BOROUGH OF HARINGEY,4000032028,70075
DEPARTMENT FOR EDUCATION,DEPARTMENT FOR EDUCATION,05/08/2010,CURRENT GRANTS,School Resources Group,LONDON BOROUGH OF HILLINGDON  COUNCIL,4000032030,47869
DEPARTMENT FOR EDUCATION,DEPARTMENT FOR EDUCATION,05/08/2010,CURRENT GRANTS,School Resources Group,LONDON BOROUGH OF HOUNSLOW COUNCIL,4000032031,58705
DEPARTMENT FOR EDUCATION,DEPARTMENT FOR EDUCATION,05/08/2010,CURRENT GRANTS,School Resources Group,LONDON BOROUGH OF ISLINGTON COUNCIL,4000032032,29989
DEPARTMENT FOR EDUCATION,DEPARTMENT FOR EDUCATION,05/08/2010,CURRENT GRANTS,School Resources Group,LONDON BOROUGH OF LAMBETH COUNCIL,4000032033,40074
DEPARTMENT FOR EDUCATION,DEPARTMENT FOR EDUCATION,05/08/2010,CURRENT GRANTS,School Resources Group,LONDON BOROUGH OF LEWISHAM,4000032034,41199
DEPARTMENT FOR EDUCATION,DEPARTMENT FOR EDUCATION,05/08/2010,CURRENT GRANTS,School Resources Group,LONDON BOROUGH OF NEWHAM,4000032036,303432
DEPARTMENT FOR EDUCATION,DEPARTMENT FOR EDUCATION,05/08/2010,CURRENT GRANTS,School Resources Group,LONDON BOROUGH OF REDBRIDGE,4000032037,38114
DEPARTMENT FOR EDUCATION,DEPARTMENT FOR EDUCATION,05/08/2010,CURRENT GRANTS,School Resources Group,LONDON BOROUGH OF SOUTHWARK COUNCIL,4000032039,41297
DEPARTMENT FOR EDUCATION,DEPARTMENT FOR EDUCATION,05/08/2010,CURRENT GRANTS,School Resources Group,LONDON BOROUGH OF TOWER HAMLETS COUNCIL,4000032041,113669
DEPARTMENT FOR EDUCATION,DEPARTMENT FOR EDUCATION,05/08/2010,CURRENT GRANTS,School Resources Group,LONDON BOROUGH OF WALTHAM FOREST COUNCIL,4000032042,54436
DEPARTMENT FOR EDUCATION,DEPARTMENT FOR EDUCATION,05/08/2010,CURRENT GRANTS,School Resources Group,LUTON BOROUGH COUNCIL,4000032044,176300
DEPARTMENT FOR EDUCATION,DEPARTMENT FOR EDUCATION,05/08/2010,CURRENT GRANTS,School Resources Group,MEDWAY COUNCIL,4000032047,83050
DEPARTMENT FOR EDUCATION,DEPARTMENT FOR EDUCATION,05/08/2010,CONTRACT PROGRAMME EXPENDITURE,Curriculum and Pupil Well Being Curriculum Unit,METEOROLOGICAL OFFICE,4000032048,56250
DEPARTMENT FOR EDUCATION,DEPARTMENT FOR EDUCATION,05/08/2010,CURRENT GRANTS,School Resources Group,METROPOLITAN BOROUGH OF WIRRAL,4000032049,256461
DEPARTMENT FOR EDUCATION,DEPARTMENT FOR EDUCATION,05/08/2010,CURRENT GRANTS,School Resources Group,MIDDLESBROUGH COUNCIL,4000032050,30405
DEPARTMENT FOR EDUCATION,DEPARTMENT FOR EDUCATION,05/08/2010,CONTRACT PROGRAMME EXPENDITURE,School Standards Group,NATIONAL ASSOCIATION FOR GIFTED CHILDREN,4000032054,42677.5
DEPARTMENT FOR EDUCATION,DEPARTMENT FOR EDUCATION,05/08/2010,CONTRACT PROGRAMME EXPENDITURE,Children and Families Group,NETMUMS LTD,4000032055,104506.85
DEPARTMENT FOR EDUCATION,DEPARTMENT FOR EDUCATION,05/08/2010,CURRENT GRANTS,School Resources Group,NEWCASTLE CITY COUNCIL,4000032056,138306
DEPARTMENT FOR EDUCATION,DEPARTMENT FOR EDUCATION,05/08/2010,CURRENT GRANTS,School Resources Group,NORTH EAST LINCOLNSHIRE COUNCIL,4000032058,98248
DEPARTMENT FOR EDUCATION,DEPARTMENT FOR EDUCATION,05/08/2010,CURRENT GRANTS,School Resources Group,NORTH LINCOLNSHIRE COUNCIL,4000032059,90772
DEPARTMENT FOR EDUCATION,DEPARTMENT FOR EDUCATION,05/08/2010,CURRENT GRANTS,School Resources Group,NORTH TYNESIDE,4000032061,107595
DEPARTMENT FOR EDUCATION,DEPARTMENT FOR EDUCATION,05/08/2010,CONTRACT PROGRAMME EXPENDITURE,Curriculum and Pupil Well Being Curriculum Unit,OCR,4000032064,39190.3
DEPARTMENT FOR EDUCATION,DEPARTMENT FOR EDUCATION,05/08/2010,PROFESSIONAL FEES,School Formation and Investment Group,OPM,4000032066,91470.51
DEPARTMENT FOR EDUCATION,DEPARTMENT FOR EDUCATION,05/08/2010,CURRENT GRANTS,School Formation and Investment Group,ORMISTON EDUCATION LTD,4000032067,42926.28
DEPARTMENT FOR EDUCATION,DEPARTMENT FOR EDUCATION,05/08/2010,CURRENT GRANTS,School Formation and Investment Group,ORMISTON SANDWELL COMMUNITY ACADEMY,4000032068,100000
DEPARTMENT FOR EDUCATION,DEPARTMENT FOR EDUCATION,05/08/2010,CURRENT GRANTS,School Resources Group,OXFORDSHIRE COUNTY COUNCIL,4000032069,27002
DEPARTMENT FOR EDUCATION,DEPARTMENT FOR EDUCATION,05/08/2010,CURRENT GRANTS,School Resources Group,REDCAR & CLEVELAND BOROUGH COUNCIL,4000032076,42073
DEPARTMENT FOR EDUCATION,DEPARTMENT FOR EDUCATION,05/08/2010,CURRENT GRANTS,School Formation and Investment Group,ROCHESTER GRAMMAR SCHOOL,4000032077,25000
DEPARTMENT FOR EDUCATION,DEPARTMENT FOR EDUCATION,05/08/2010,CURRENT GRANTS,School Resources Group,ROTHERHAM MBC,4000032078,132303
DEPARTMENT FOR EDUCATION,DEPARTMENT FOR EDUCATION,05/08/2010,CURRENT GRANTS,School Resources Group,SALFORD CITY COUNCIL,4000032080,25667
DEPARTMENT FOR EDUCATION,DEPARTMENT FOR EDUCATION,05/08/2010,CURRENT GRANTS,School Resources Group,SANDWELL MBC,4000032081,382424
DEPARTMENT FOR EDUCATION,DEPARTMENT FOR EDUCATION,05/08/2010,CURRENT GRANTS,School Resources Group,SEFTON COUNCIL,4000032082,278067
DEPARTMENT FOR EDUCATION,DEPARTMENT FOR EDUCATION,05/08/2010,CURRENT GRANTS,School Resources Group,SHEFFIELD CITY COUNCIL,4000032083,190462
DEPARTMENT FOR EDUCATION,DEPARTMENT FOR EDUCATION,05/08/2010,CURRENT GRANTS,School Formation and Investment Group,SHOTTON HALL SCHOOL,4000032085,25000
DEPARTMENT FOR EDUCATION,DEPARTMENT FOR EDUCATION,05/08/2010,CONTRACT PROGRAMME EXPENDITURE,Children and Families Group,SINGLE PARENT ACTION NETWORK,4000032086,26995.63
DEPARTMENT FOR EDUCATION,DEPARTMENT FOR EDUCATION,05/08/2010,CURRENT GRANTS,School Formation and Investment Group,SIR THOMAS RICHS SCHOOL,4000032087,25000
DEPARTMENT FOR EDUCATION,DEPARTMENT FOR EDUCATION,05/08/2010,CURRENT GRANTS,School Resources Group,SOLIHULL MBC,4000032088,56751
DEPARTMENT FOR EDUCATION,DEPARTMENT FOR EDUCATION,05/08/2010,CURRENT GRANTS,School Resources Group,SOMERSET COUNTY COUNCIL,4000032089,25167
DEPARTMENT FOR EDUCATION,DEPARTMENT FOR EDUCATION,05/08/2010,CURRENT GRANTS,School Resources Group,SOUTH GLOUCEST,4000032090,29167
DEPARTMENT FOR EDUCATION,DEPARTMENT FOR EDUCATION,05/08/2010,CURRENT GRANTS,School Resources Group,SOUTH TYNESIDE,4000032091,130408
DEPARTMENT FOR EDUCATION,DEPARTMENT FOR EDUCATION,05/08/2010,CURRENT GRANTS,School Resources Group,SOUTHEND ON SEA BOROUGH COUNCIL,4000032093,44137
DEPARTMENT FOR EDUCATION,DEPARTMENT FOR EDUCATION,05/08/2010,CURRENT GRANTS,School Resources Group,ST HELENS MBC,4000032094,71307
DEPARTMENT FOR EDUCATION,DEPARTMENT FOR EDUCATION,05/08/2010,CURRENT GRANTS,School Resources Group,STAFFORDSHIRE COUNCIL,4000032095,112063
DEPARTMENT FOR EDUCATION,DEPARTMENT FOR EDUCATION,05/08/2010,CURRENT GRANTS,School Resources Group,STOKE ON TRENT CITY COUNCIL,4000032097,43000
DEPARTMENT FOR EDUCATION,DEPARTMENT FOR EDUCATION,05/08/2010,CURRENT GRANTS,School Resources Group,SUFFOLK COUNTY COUNCIL,4000032099,131578
DEPARTMENT FOR EDUCATION,DEPARTMENT FOR EDUCATION,05/08/2010,CURRENT GRANTS,School Resources Group,SUNDERLAND CITY COUNCIL,4000032100,271802
DEPARTMENT FOR EDUCATION,DEPARTMENT FOR EDUCATION,05/08/2010,CURRENT GRANTS,School Resources Group,SURREY COUNTY COUNCIL,4000032101,100000
DEPARTMENT FOR EDUCATION,DEPARTMENT FOR EDUCATION,05/08/2010,CURRENT GRANTS,School Formation and Investment Group,THE BROXBOURNE SCHOOL,4000032104,25000
DEPARTMENT FOR EDUCATION,DEPARTMENT FOR EDUCATION,05/08/2010,CONTRACT PROGRAMME EXPENDITURE,Children and Families Group,THE FOSTERING NETWORK,4000032105,33099.75
DEPARTMENT FOR EDUCATION,DEPARTMENT FOR EDUCATION,05/08/2010,CURRENT GRANTS,School Resources Group,THE LONDON BOROUGH OF HACKNEY,4000032106,83631
DEPARTMENT FOR EDUCATION,DEPARTMENT FOR EDUCATION,05/08/2010,CURRENT GRANTS,School Resources Group,THURROCK COUNCIL,4000032109,37227
DEPARTMENT FOR EDUCATION,DEPARTMENT FOR EDUCATION,05/08/2010,MISCELLANEOUS EXPENDITURE,Talent And Enterprise Taskforce Group,UK TRADE & INVESTMENT,4000032113,60000
DEPARTMENT FOR EDUCATION,DEPARTMENT FOR EDUCATION,05/08/2010,MISCELLANEOUS EXPENDITURE,Children and Families Early Years Extended Schools and Special Needs,UNIVERSITY OF WOLVERHAMPTON,4000032114,0
DEPARTMENT FOR EDUCATION,DEPARTMENT FOR EDUCATION,05/08/2010,CONTRACT PROGRAMME EXPENDITURE,Children and Families Early Years Extended Schools and Special Needs,UNIVERSITY OF WOLVERHAMPTON,4000032114,33317.75
DEPARTMENT FOR EDUCATION,DEPARTMENT FOR EDUCATION,05/08/2010,CONTRACT PROGRAMME EXPENDITURE,Curriculum and Pupil Well Being Improving Behaviour and Attendance Unit,VT FOUR S LTD,4000032115,3300
DEPARTMENT FOR EDUCATION,DEPARTMENT FOR EDUCATION,05/08/2010,CONTRACT PROGRAMME EXPENDITURE,Curriculum and Pupil Well Being Curriculum Unit,VT FOUR S LTD,4000032115,46069.21
DEPARTMENT FOR EDUCATION,DEPARTMENT FOR EDUCATION,05/08/2010,CURRENT GRANTS,School Resources Group,WAKEFIELD MDC,4000032116,86833
DEPARTMENT FOR EDUCATION,DEPARTMENT FOR EDUCATION,05/08/2010,CURRENT GRANTS,School Resources Group,WALSALL MBC,4000032117,359815
DEPARTMENT FOR EDUCATION,DEPARTMENT FOR EDUCATION,05/08/2010,CURRENT GRANTS,School Resources Group,WARWICKSHIRE COUNTY COUNCIL,4000032118,30932
DEPARTMENT FOR EDUCATION,DEPARTMENT FOR EDUCATION,05/08/2010,CURRENT GRANTS,School Formation and Investment Group,WELLINGTON COLLEGE,4000032119,29950
DEPARTMENT FOR EDUCATION,DEPARTMENT FOR EDUCATION,05/08/2010,CONTRACT PROGRAMME EXPENDITURE,Children and Families Early Years Extended Schools and Special Needs,WHITE CONSULTANTS LTD,4000032121,41595
DEPARTMENT FOR EDUCATION,DEPARTMENT FOR EDUCATION,05/08/2010,CURRENT GRANTS,School Resources Group,WILTSHIRE COUNCIL,4000032122,49667
DEPARTMENT FOR EDUCATION,DEPARTMENT FOR EDUCATION,05/08/2010,CURRENT GRANTS,School Formation and Investment Group,WINDSOR & SLOUGH ETON,4000032123,40434
DEPARTMENT FOR EDUCATION,DEPARTMENT FOR EDUCATION,05/08/2010,CURRENT GRANTS,School Resources Group,WOLVERHAMPTON CITY COUNCIL,4000032124,312415
DEPARTMENT FOR EDUCATION,DEPARTMENT FOR EDUCATION,05/08/2010,CURRENT GRANTS,School Resources Group,WORCESTERSHIRE COUNTY COUNCIL,4000032125,69573
DEPARTMENT FOR EDUCATION,DEPARTMENT FOR EDUCATION,06/08/2010,CURRENT GRANTS,School Formation and Investment Group,BROMPTON ACADEMY,4000032144,82906.6
DEPARTMENT FOR EDUCATION,DEPARTMENT FOR EDUCATION,06/08/2010,PROFESSIONAL FEES,Children and Families Child Well Being Group,CENTRAL OFFICE OF INFORMATION,4000032147,9350
DEPARTMENT FOR EDUCATION,DEPARTMENT FOR EDUCATION,06/08/2010,CONTRACT PROGRAMME EXPENDITURE,Children and Families Safeguarding Group,CENTRAL OFFICE OF INFORMATION,4000032147,376589.92
DEPARTMENT FOR EDUCATION,DEPARTMENT FOR EDUCATION,06/08/2010,CURRENT GRANTS,School Formation and Investment Group,COLCHESTER COUNTY HIGH SCHOOL FOR GIRLS,4000032150,26500
DEPARTMENT FOR EDUCATION,DEPARTMENT FOR EDUCATION,06/08/2010,CURRENT GRANTS,14 - 19 Reform Qualification Standards and Reform,CONST INDUSTRY TRAINING BOARD,4000032151,50000
DEPARTMENT FOR EDUCATION,DEPARTMENT FOR EDUCATION,06/08/2010,CURRENT GRANTS,Curriculum and Pupil Well Being Curriculum Unit,DEPARTMENT FOR CULTURE MEDIA & SPORT,4000032153,1150000
DEPARTMENT FOR EDUCATION,DEPARTMENT FOR EDUCATION,06/08/2010,CONTRACT PROGRAMME EXPENDITURE,School Formation and Investment Group,EC HARRIS LLP,4000032158,45102.53
DEPARTMENT FOR EDUCATION,DEPARTMENT FOR EDUCATION,06/08/2010,CURRENT GRANTS,14 - 19 Reform Qualification Standards and Reform,E SKILLS UK,4000032159,50000
DEPARTMENT FOR EDUCATION,DEPARTMENT FOR EDUCATION,06/08/2010,PROFESSIONAL FEES,Curriculum and Pupil Well Being Curriculum Unit,ECOTEC RESEARCH & CONSULTING LTD,4000032160,26008.63
DEPARTMENT FOR EDUCATION,DEPARTMENT FOR EDUCATION,06/08/2010,CURRENT GRANTS,School Formation and Investment Group,GREAT BARR SCHOOL,4000032165,38400
DEPARTMENT FOR EDUCATION,DEPARTMENT FOR EDUCATION,06/08/2010,CONTRACT PROGRAMME EXPENDITURE,School Formation and Investment Group,HAVELOCK ACADEMY NEW ACADEMY PROJECT TEAM,4000032169,70779
DEPARTMENT FOR EDUCATION,DEPARTMENT FOR EDUCATION,06/08/2010,MISCELLANEOUS EXPENDITURE,Commercial Group EFM,ISS FACILITY SERVICES T/A PEGASUS SECURITY GROUP,4000032175,9068.29
DEPARTMENT FOR EDUCATION,DEPARTMENT FOR EDUCATION,06/08/2010,MISCELLANEOUS EXPENDITURE,Commercial Group EFM,ISS FACILITY SERVICES T/A PEGASUS SECURITY GROUP,4000032175,18399.96
DEPARTMENT FOR EDUCATION,DEPARTMENT FOR EDUCATION,06/08/2010,CURRENT GRANTS,School Formation and Investment Group,MANCHESTER COMMUNICATION ACADEMY,4000032193,127420.9
DEPARTMENT FOR EDUCATION,DEPARTMENT FOR EDUCATION,06/08/2010,MISCELLANEOUS EXPENDITURE,Commercial Group EFM,MITIE TECHNICAL FACILITIES MANAGEMENT LTD,4000032196,858
DEPARTMENT FOR EDUCATION,DEPARTMENT FOR EDUCATION,06/08/2010,FACILITIES OTHER,Commercial Group EFM,MITIE TECHNICAL FACILITIES MANAGEMENT LTD,4000032196,11323.5
DEPARTMENT FOR EDUCATION,DEPARTMENT FOR EDUCATION,06/08/2010,FACILITIES OTHER,Commercial Group EFM,MITIE TECHNICAL FACILITIES MANAGEMENT LTD,4000032196,12068.5
DEPARTMENT FOR EDUCATION,DEPARTMENT FOR EDUCATION,06/08/2010,MISCELLANEOUS EXPENDITURE,Commercial Group EFM,MITIE TECHNICAL FACILITIES MANAGEMENT LTD,4000032196,17832.91
DEPARTMENT FOR EDUCATION,DEPARTMENT FOR EDUCATION,06/08/2010,CONTRACT PROGRAMME EXPENDITURE,School Formation and Investment Group,MOUCHEL MANAGEMENT CONSULTING LTD,4000032197,25637.56
DEPARTMENT FOR EDUCATION,DEPARTMENT FOR EDUCATION,06/08/2010,MANAGEMENT CONSULTANCY,School Formation and Investment Group,NABARRO LLP,4000032198,27216.66
DEPARTMENT FOR EDUCATION,DEPARTMENT FOR EDUCATION,06/08/2010,CURRENT GRANTS,School Formation and Investment Group,PATES GRAMMAR SCHOOL,4000032203,46500
DEPARTMENT FOR EDUCATION,DEPARTMENT FOR EDUCATION,06/08/2010,MANAGEMENT CONSULTANCY,School Standards Group,REX HALL ASSOCIATES LTD,4000032210,217609.31
DEPARTMENT FOR EDUCATION,DEPARTMENT FOR EDUCATION,06/08/2010,CONTRACT PROGRAMME EXPENDITURE,Children and Families Early Years Extended Schools and Special Needs,ROYAL COLLEGE OF SPEECH & LANGUAGE THERAPISTS,4000032213,45400.6
DEPARTMENT FOR EDUCATION,DEPARTMENT FOR EDUCATION,06/08/2010,CURRENT GRANTS,School Formation and Investment Group,SIR JOHN LAWES SCHOOL,4000032218,95000
DEPARTMENT FOR EDUCATION,DEPARTMENT FOR EDUCATION,06/08/2010,CURRENT GRANTS,14 - 19 Reform Qualification Standards and Reform,SKILLSET,4000032220,50615.06
DEPARTMENT FOR EDUCATION,DEPARTMENT FOR EDUCATION,06/08/2010,CURRENT GRANTS,Curriculum and Pupil Well Being Curriculum Unit,THE ANTHONY NOLAN TRUST,4000032224,49246
DEPARTMENT FOR EDUCATION,DEPARTMENT FOR EDUCATION,06/08/2010,IS/IT,Chief Information Officer Group,THE DANWOOD GROUP LTD,4000032225,33125.72
DEPARTMENT FOR EDUCATION,DEPARTMENT FOR EDUCATION,06/08/2010,CURRENT GRANTS,School Formation and Investment Group,THE EAST MANCHESTER ACADEMY,4000032226,107031.81
DEPARTMENT FOR EDUCATION,DEPARTMENT FOR EDUCATION,06/08/2010,CURRENT GRANTS,School Formation and Investment Group,THE JCB ACADEMY,4000032227,38610.96
DEPARTMENT FOR EDUCATION,DEPARTMENT FOR EDUCATION,06/08/2010,CURRENT GRANTS,School Formation and Investment Group,TONBRIDGE GRAMMAR SCHOOL,4000032234,25273.5
DEPARTMENT FOR EDUCATION,DEPARTMENT FOR EDUCATION,06/08/2010,MANAGEMENT CONSULTANCY,Corporate Services Director General,TRIBAL CONSULTING LTD,4000032235,15627.5
DEPARTMENT FOR EDUCATION,DEPARTMENT FOR EDUCATION,06/08/2010,MANAGEMENT CONSULTANCY,Children and Families Improving Information Sharing and Management Group,TRIBAL CONSULTING LTD,4000032235,22084.13
DEPARTMENT FOR EDUCATION,DEPARTMENT FOR EDUCATION,06/08/2010,CURRENT GRANTS,School Formation and Investment Group,UNIVERSITY OF CHESTER CHURCH OF ENGLAND,4000032236,69000
DEPARTMENT FOR EDUCATION,DEPARTMENT FOR EDUCATION,06/08/2010,PROFESSIONAL FEES,School Performance and Reform Office of the Schools Commissioner,VEREDUS C/O CAPITA RESOURCING LTD,4000032238,61201.05
DEPARTMENT FOR EDUCATION,DEPARTMENT FOR EDUCATION,09/08/2010,CONTRACT PROGRAMME EXPENDITURE,Curriculum and Pupil Well Being Curriculum Unit,TRIBAL EDUCATION LIMITED,1000244,676787.08
DEPARTMENT FOR EDUCATION,TEACHERS PENSION SCHEME,09/08/2010,FUNDING TO PAY TEACHERS PENSIONS,Workforce Group - TPS,CAPITA TP HSBC,1000265,775355.85
DEPARTMENT FOR EDUCATION,TEACHERS PENSION SCHEME,09/08/2010,FUNDING TO PAY TEACHERS PENSIONS,Workforce Group - TPS,CAPITA TP NATWEST,1000266,74457382.88
DEPARTMENT FOR EDUCATION,DEPARTMENT FOR EDUCATION,09/08/2010,GRANT IN AID,School Resources Group,BRITISH EDUCATIONAL COMMUNICATIONS & TECHNOLOGY,2000189,16007911
DEPARTMENT FOR EDUCATION,DEPARTMENT FOR EDUCATION,09/08/2010,CURRENT GRANTS,School Resources Group,DEPARTMENT FOR COMMUNTIES & LOCAL GOVERNMENT,2000190,108144054
DEPARTMENT FOR EDUCATION,DEPARTMENT FOR EDUCATION,09/08/2010,GRANT IN AID,Children and Families Child Well Being Group,OFFICE OF THE CHILDRENS COMMISSIONER,2000191,165317.34
DEPARTMENT FOR EDUCATION,DEPARTMENT FOR EDUCATION,09/08/2010,GRANT IN AID,School Resources Group,PARTNERSHIPS FOR SCHOOLS,2000192,27155000
DEPARTMENT FOR EDUCATION,DEPARTMENT FOR EDUCATION,09/08/2010,GRANT IN AID,14 - 19 Reform Qualification Standards and Reform,QUALIFICATIONS & CURRICULUM AUTHORITY,2000193,14917232
DEPARTMENT FOR EDUCATION,DEPARTMENT FOR EDUCATION,09/08/2010,CURRENT GRANTS,School Formation and Investment Group,ACADEMY ENTERPRISE TRUST,4000032265,125361.93
DEPARTMENT FOR EDUCATION,DEPARTMENT FOR EDUCATION,09/08/2010,TELEPHONE CHARGES,Chief Information Officer Group,BT GLOBAL SERVICES SOLUTIONS,4000032267,8258.39
DEPARTMENT FOR EDUCATION,DEPARTMENT FOR EDUCATION,09/08/2010,IS/IT,Chief Information Officer Group,BT GLOBAL SERVICES SOLUTIONS,4000032267,17000
DEPARTMENT FOR EDUCATION,DEPARTMENT FOR EDUCATION,09/08/2010,IT EQUIPMENT CAPITAL,Chief Information Officer Group,BT GLOBAL SERVICES SOLUTIONS,4000032267,55302
DEPARTMENT FOR EDUCATION,DEPARTMENT FOR EDUCATION,09/08/2010,TEMPORARY (TEMP) STAFF COSTS,Corporate and Internal Communications Group,CAPITA RESOURCING LTD,4000032268,48260.63
DEPARTMENT FOR EDUCATION,DEPARTMENT FOR EDUCATION,09/08/2010,PROPERTY PROVISION - UTILISATION CASH,Commercial Group EFM,CONOCOPHILLIPS LTD,4000032270,124909.84
DEPARTMENT FOR EDUCATION,DEPARTMENT FOR EDUCATION,09/08/2010,CAPITAL GRANTS,School Formation and Investment Group,DARWEN ACADEMY,4000032271,61713.72
DEPARTMENT FOR EDUCATION,DEPARTMENT FOR EDUCATION,09/08/2010,COMMUNICATIONS & PUBLICITY,Corporate and Internal Communications Group,DIGITAL PUBLIC,4000032273,50257.35
DEPARTMENT FOR EDUCATION,DEPARTMENT FOR EDUCATION,09/08/2010,CURRENT GRANTS,School Formation and Investment Group,EATON MILL PRIMARY SCHOOL,4000032276,25000
DEPARTMENT FOR EDUCATION,DEPARTMENT FOR EDUCATION,09/08/2010,CURRENT GRANTS,School Formation and Investment Group,HAMMERSMITH ACADEMY TRUST ACCOUNT,4000032279,14342.6
DEPARTMENT FOR EDUCATION,DEPARTMENT FOR EDUCATION,09/08/2010,CAPITAL GRANTS,School Formation and Investment Group,HAMMERSMITH ACADEMY TRUST ACCOUNT,4000032279,1689531.54
DEPARTMENT FOR EDUCATION,DEPARTMENT FOR EDUCATION,09/08/2010,CURRENT GRANTS,School Formation and Investment Group,HARTISMERE SCHOOL,4000032280,25000
DEPARTMENT FOR EDUCATION,DEPARTMENT FOR EDUCATION,09/08/2010,CURRENT GRANTS,School Formation and Investment Group,KINGSMEAD SCHOOL,4000032282,25000
DEPARTMENT FOR EDUCATION,DEPARTMENT FOR EDUCATION,09/08/2010,PROFESSIONAL FEES,School Performance and Reform Group,MARSHALL MANAGEMENT & CONSULTANCY LTD,4000032286,31460.62
DEPARTMENT FOR EDUCATION,DEPARTMENT FOR EDUCATION,09/08/2010,CAPITAL GRANTS,School Formation and Investment Group,MERCHANTS ACADEMY WITHYWOOD,4000032287,84175
DEPARTMENT FOR EDUCATION,DEPARTMENT FOR EDUCATION,09/08/2010,CURRENT GRANTS,School Formation and Investment Group,NINESTILES SCHOOL,4000032290,25000
DEPARTMENT FOR EDUCATION,DEPARTMENT FOR EDUCATION,09/08/2010,CURRENT GRANTS,School Formation and Investment Group,ORMISTON VICTORY ACADEMY,4000032291,153392
DEPARTMENT FOR EDUCATION,DEPARTMENT FOR EDUCATION,09/08/2010,CURRENT GRANTS,School Formation and Investment Group,PATES GRAMMAR SCHOOL,4000032292,25000
DEPARTMENT FOR EDUCATION,DEPARTMENT FOR EDUCATION,09/08/2010,CONTRACT PROGRAMME EXPENDITURE,Children and Families Group,RELATE,4000032295,62543
DEPARTMENT FOR EDUCATION,DEPARTMENT FOR EDUCATION,09/08/2010,CONTRACT PROGRAMME EXPENDITURE,School Standards Group,RM DATA SOLUTIONS,4000032296,79602.98
DEPARTMENT FOR EDUCATION,DEPARTMENT FOR EDUCATION,09/08/2010,CONTRACT PROGRAMME EXPENDITURE,School Formation and Investment Group,SPECIALIST SCHOOLS AND ACADEMIES TRUST,4000032299,1030867.46
DEPARTMENT FOR EDUCATION,DEPARTMENT FOR EDUCATION,09/08/2010,CURRENT GRANTS,School Formation and Investment Group,WATFORD GRAMMAR SCHOOL FOR BOYS,4000032305,25000
DEPARTMENT FOR EDUCATION,DEPARTMENT FOR EDUCATION,10/08/2010,CONTRACT PROGRAMME EXPENDITURE,School Formation and Investment Group,A4E LTD,4000032325,31176.28
DEPARTMENT FOR EDUCATION,DEPARTMENT FOR EDUCATION,10/08/2010,CONTRACT PROGRAMME EXPENDITURE,School Formation and Investment Group,APPLEYARDS LTD,4000032327,10450
DEPARTMENT FOR EDUCATION,DEPARTMENT FOR EDUCATION,10/08/2010,CONTRACT PROGRAMME EXPENDITURE,School Formation and Investment Group,APPLEYARDS LTD,4000032327,231735.85
DEPARTMENT FOR EDUCATION,DEPARTMENT FOR EDUCATION,10/08/2010,CURRENT GRANTS,School Formation and Investment Group,ARK,4000032328,4708.5
DEPARTMENT FOR EDUCATION,DEPARTMENT FOR EDUCATION,10/08/2010,CAPITAL GRANTS,School Formation and Investment Group,ARK,4000032328,1721294.56
DEPARTMENT FOR EDUCATION,DEPARTMENT FOR EDUCATION,10/08/2010,CURRENT GRANTS,School Formation and Investment Group,ARTHUR MELLOWS VILLAGE COLLEGE,4000032329,25000
DEPARTMENT FOR EDUCATION,DEPARTMENT FOR EDUCATION,10/08/2010,CURRENT GRANTS,School Formation and Investment Group,BARNBY ROAD PRIMARY & NURSEY SCHOOL,4000032331,25000
DEPARTMENT FOR EDUCATION,DEPARTMENT FOR EDUCATION,10/08/2010,OTHER PROGRAMME EXPENSES,Supporting Children and Young People Community Cohesion,BIRMINGHAM CITY COUNCIL,4000032332,41898
DEPARTMENT FOR EDUCATION,DEPARTMENT FOR EDUCATION,10/08/2010,CURRENT GRANTS,School Formation and Investment Group,BRINSWORTH COMPREHENSIVE SCHOOL,4000032334,25000
DEPARTMENT FOR EDUCATION,DEPARTMENT FOR EDUCATION,10/08/2010,CONTRACT PROGRAMME EXPENDITURE,14 - 19 Reform Qualification Standards and Reform,CAMBRIDGE EDUCATION HEAD OFFICE,4000032337,27302.64
DEPARTMENT FOR EDUCATION,DEPARTMENT FOR EDUCATION,10/08/2010,CONTRACT PROGRAMME EXPENDITURE,Children and Families Safeguarding Group,CENTRAL OFFICE OF INFORMATION,4000032338,27846.1
DEPARTMENT FOR EDUCATION,DEPARTMENT FOR EDUCATION,10/08/2010,CURRENT GRANTS,School Formation and Investment Group,CHALLNEY HIGH SCHOOL FOR BOYS & COMMUNITY COLLEGE,4000032339,25000
DEPARTMENT FOR EDUCATION,DEPARTMENT FOR EDUCATION,10/08/2010,CONTRACT PROGRAMME EXPENDITURE,Children and Families Safeguarding Group,CHILD ACCIDENT PREVENTION TRUST,4000032340,30657
DEPARTMENT FOR EDUCATION,DEPARTMENT FOR EDUCATION,10/08/2010,PROFESSIONAL FEES,School Standards Group,CUREE & THE PACCTS CONSULTANCY,4000032343,38357
DEPARTMENT FOR EDUCATION,DEPARTMENT FOR EDUCATION,10/08/2010,CURRENT GRANTS,School Formation and Investment Group,DENBIGH HIGH SCHOOL,4000032345,25000
DEPARTMENT FOR EDUCATION,DEPARTMENT FOR EDUCATION,10/08/2010,CURRENT GRANTS,School Formation and Investment Group,DURAND PRIMARY SCHOOL,4000032349,25000
DEPARTMENT FOR EDUCATION,DEPARTMENT FOR EDUCATION,10/08/2010,CONTRACT PROGRAMME EXPENDITURE,School Formation and Investment Group,EC HARRIS LLP,4000032350,48242.3
DEPARTMENT FOR EDUCATION,DEPARTMENT FOR EDUCATION,10/08/2010,CURRENT GRANTS,School Formation and Investment Group,GODDARD PARK COMMUNITY PRIMARY SCHOOL,4000032355,25000
DEPARTMENT FOR EDUCATION,DEPARTMENT FOR EDUCATION,10/08/2010,CURRENT GRANTS,School Formation and Investment Group,HUISH EPISCOPI SCHOOL,4000032359,25000
DEPARTMENT FOR EDUCATION,DEPARTMENT FOR EDUCATION,10/08/2010,CURRENT GRANTS,School Formation and Investment Group,LANDAU FORTE COLLEGE,4000032364,58713.78
DEPARTMENT FOR EDUCATION,DEPARTMENT FOR EDUCATION,10/08/2010,MISCELLANEOUS EXPENDITURE,Commercial Group EFM,MITIE TECHNICAL FACILITIES MANAGEMENT LTD,4000032370,792
DEPARTMENT FOR EDUCATION,DEPARTMENT FOR EDUCATION,10/08/2010,MISCELLANEOUS EXPENDITURE,Commercial Group EFM,MITIE TECHNICAL FACILITIES MANAGEMENT LTD,4000032370,1793.91
DEPARTMENT FOR EDUCATION,DEPARTMENT FOR EDUCATION,10/08/2010,FACILITIES OTHER,Commercial Group EFM,MITIE TECHNICAL FACILITIES MANAGEMENT LTD,4000032370,5777.21
DEPARTMENT FOR EDUCATION,DEPARTMENT FOR EDUCATION,10/08/2010,MISCELLANEOUS EXPENDITURE,Commercial Group EFM,MITIE TECHNICAL FACILITIES MANAGEMENT LTD,4000032370,9252.04
DEPARTMENT FOR EDUCATION,DEPARTMENT FOR EDUCATION,10/08/2010,MISCELLANEOUS EXPENDITURE,Commercial Group EFM,MITIE TECHNICAL FACILITIES MANAGEMENT LTD,4000032370,24705.02
DEPARTMENT FOR EDUCATION,DEPARTMENT FOR EDUCATION,10/08/2010,FACILITIES OTHER,Commercial Group EFM,MITIE TECHNICAL FACILITIES MANAGEMENT LTD,4000032370,58850.5
DEPARTMENT FOR EDUCATION,DEPARTMENT FOR EDUCATION,10/08/2010,CURRENT GRANTS,School Formation and Investment Group,PARK HALL INFANT SCHOOL,4000032377,25000
DEPARTMENT FOR EDUCATION,DEPARTMENT FOR EDUCATION,10/08/2010,CONTRACT PROGRAMME EXPENDITURE,Children and Families Group,RELATE,4000032381,42500
DEPARTMENT FOR EDUCATION,DEPARTMENT FOR EDUCATION,10/08/2010,MANAGEMENT CONSULTANCY,Commercial Group Shared Services and Children and Young People,RUSSAM GMS,4000032384,29754.4
DEPARTMENT FOR EDUCATION,DEPARTMENT FOR EDUCATION,10/08/2010,CURRENT GRANTS,School Formation and Investment Group,ST BURYAN PRIMARY SCHOOL,4000032387,25000
DEPARTMENT FOR EDUCATION,DEPARTMENT FOR EDUCATION,10/08/2010,CURRENT GRANTS,School Formation and Investment Group,THE COTSWOLD SCHOOL,4000032388,25000
DEPARTMENT FOR EDUCATION,DEPARTMENT FOR EDUCATION,10/08/2010,CONTRACT PROGRAMME EXPENDITURE,14 - 19 Reform Young People Guidance,THE ESSENTIA GROUP LTD,4000032390,397018.4
DEPARTMENT FOR EDUCATION,DEPARTMENT FOR EDUCATION,10/08/2010,CURRENT GRANTS,School Formation and Investment Group,THE HAYESBROOK SCHOOL,4000032391,25000
DEPARTMENT FOR EDUCATION,DEPARTMENT FOR EDUCATION,10/08/2010,CAPITAL GRANTS,School Formation and Investment Group,THE QUAERERE ACADEMY TRUST,4000032393,39968.42
DEPARTMENT FOR EDUCATION,DEPARTMENT FOR EDUCATION,10/08/2010,PROFESSIONAL FEES,Young People Workforce Group,THE TREASURY SOLICITOR,4000032394,166.98
DEPARTMENT FOR EDUCATION,DEPARTMENT FOR EDUCATION,10/08/2010,PROFESSIONAL FEES,Children and Families Supporting Delivery Group,THE TREASURY SOLICITOR,4000032394,15513
DEPARTMENT FOR EDUCATION,DEPARTMENT FOR EDUCATION,10/08/2010,PROFESSIONAL FEES,Children and Families Safeguarding Group,THE TREASURY SOLICITOR,4000032394,16861.8
DEPARTMENT FOR EDUCATION,DEPARTMENT FOR EDUCATION,10/08/2010,CURRENT GRANTS,School Formation and Investment Group,TUDOR GRANGE ACADEMY WORCESTER,4000032395,36483.76
DEPARTMENT FOR EDUCATION,DEPARTMENT FOR EDUCATION,10/08/2010,IS/IT,Chief Information Officer Group,UFI LIMITED,4000032396,174265.28
DEPARTMENT FOR EDUCATION,DEPARTMENT FOR EDUCATION,10/08/2010,CURRENT GRANTS,School Formation and Investment Group,WATFORD GRAMMAR SCHOOL FOR GIRLS,4000032398,25000
DEPARTMENT FOR EDUCATION,TEACHERS PENSION SCHEME,11/08/2010,FUNDING TO PAY TEACHERS PENSIONS,Workforce Group - TPS,CAPITA TP HSBC,1000267,144995.22
DEPARTMENT FOR EDUCATION,TEACHERS PENSION SCHEME,11/08/2010,FUNDING TO PAY TEACHERS PENSIONS,Workforce Group - TPS,CAPITA TP NATWEST,1000268,30612870.14
DEPARTMENT FOR EDUCATION,DEPARTMENT FOR EDUCATION,11/08/2010,CONTRACT PROGRAMME EXPENDITURE,School Formation and Investment Group,APPLEYARDS LTD,4000032423,35642.45
DEPARTMENT FOR EDUCATION,DEPARTMENT FOR EDUCATION,11/08/2010,CONTRACT PROGRAMME EXPENDITURE,14 - 19 Reform Young People Guidance,BRAHM LTD,4000032427,32209.02
DEPARTMENT FOR EDUCATION,DEPARTMENT FOR EDUCATION,11/08/2010,CONTRACT PROGRAMME EXPENDITURE,Curriculum and Pupil Well Being Curriculum Unit,C I L T,4000032432,39651.06
DEPARTMENT FOR EDUCATION,DEPARTMENT FOR EDUCATION,11/08/2010,IS/IT,Corporate and Internal Communications Group,CAPGEMINI UK PLC,4000032434,188480.83
DEPARTMENT FOR EDUCATION,DEPARTMENT FOR EDUCATION,11/08/2010,CONTRACT PROGRAMME EXPENDITURE,School Standards Group,CAPITA BUSINESS SERVICES LTD,4000032435,126331.3
DEPARTMENT FOR EDUCATION,DEPARTMENT FOR EDUCATION,11/08/2010,CONTRACT PROGRAMME EXPENDITURE,School Standards Group,CAPITA BUSINESS SERVICES LTD,4000032436,146482.55
DEPARTMENT FOR EDUCATION,DEPARTMENT FOR EDUCATION,11/08/2010,CONTRACT PROGRAMME EXPENDITURE,School Standards Group,CAPITA BUSINESS SERVICES LTD,4000032437,743414.28
DEPARTMENT FOR EDUCATION,DEPARTMENT FOR EDUCATION,11/08/2010,MANAGEMENT CONSULTANCY,Commercial Group EFM,DRIVERS JONAS,4000032449,54177.25
DEPARTMENT FOR EDUCATION,DEPARTMENT FOR EDUCATION,11/08/2010,CONTRACT PROGRAMME EXPENDITURE,School Formation and Investment Group,EC HARRIS LLP,4000032450,296790.23
DEPARTMENT FOR EDUCATION,DEPARTMENT FOR EDUCATION,11/08/2010,CURRENT GRANTS,Children and Families Group,FAMILY RIGHTS GROUP LTD,4000032455,65862
DEPARTMENT FOR EDUCATION,DEPARTMENT FOR EDUCATION,11/08/2010,CONTRACT PROGRAMME EXPENDITURE,School Formation and Investment Group,OASIS COMMUNITY LEARNING,4000032472,557929.33
DEPARTMENT FOR EDUCATION,DEPARTMENT FOR EDUCATION,11/08/2010,CONTRACT PROGRAMME EXPENDITURE,School Formation and Investment Group,PLACE GROUP LIMITED,4000032477,33841.6
DEPARTMENT FOR EDUCATION,DEPARTMENT FOR EDUCATION,11/08/2010,RESEARCH & DEVELOPMENT COSTS,Children and Families Supporting Delivery Group,PRICE WATERHOUSE COOPERS LLP,4000032478,49374.44
DEPARTMENT FOR EDUCATION,DEPARTMENT FOR EDUCATION,11/08/2010,CONTRACT PROGRAMME EXPENDITURE,Children and Families Group,RELATE,4000032483,112293
DEPARTMENT FOR EDUCATION,DEPARTMENT FOR EDUCATION,11/08/2010,CAPITAL GRANTS,Supporting Children and Young People Community Cohesion,SCHOOLS LINKING NETWORK LTD,4000032486,87000
DEPARTMENT FOR EDUCATION,DEPARTMENT FOR EDUCATION,11/08/2010,CONTRACT PROGRAMME EXPENDITURE,Curriculum and Pupil Well Being Curriculum Unit,SHEFFIELD HALLAM UNIVERSITY,4000032488,129200
DEPARTMENT FOR EDUCATION,DEPARTMENT FOR EDUCATION,11/08/2010,CONTRACT PROGRAMME EXPENDITURE,School Standards Group,THE MANCHESTER METROPOLITAN UNIVERSITY,4000032492,0
DEPARTMENT FOR EDUCATION,DEPARTMENT FOR EDUCATION,11/08/2010,CONTRACT PROGRAMME EXPENDITURE,Curriculum and Pupil Well Being Curriculum Unit,THE MANCHESTER METROPOLITAN UNIVERSITY,4000032492,84496
DEPARTMENT FOR EDUCATION,DEPARTMENT FOR EDUCATION,11/08/2010,STAFF EXPENSES / COSTS,Children and Families Early Years Extended Schools and Special Needs,THE MEDIA GROUP TMG TV LTD,4000032493,150104.68
DEPARTMENT FOR EDUCATION,DEPARTMENT FOR EDUCATION,11/08/2010,CURRENT GRANTS,School Formation and Investment Group,THE SKINNERS ACADEMY,4000032495,46259.07
DEPARTMENT FOR EDUCATION,DEPARTMENT FOR EDUCATION,11/08/2010,CONTRACT PROGRAMME EXPENDITURE,Children and Families Early Years Extended Schools and Special Needs,THE UNIVERSITY OF MANCHESTER,4000032497,100000
DEPARTMENT FOR EDUCATION,DEPARTMENT FOR EDUCATION,11/08/2010,CONTRACT PROGRAMME EXPENDITURE,Workforce Group Young People Workforce,VT FOUR S LTD,4000032504,41460.71
DEPARTMENT FOR EDUCATION,DEPARTMENT FOR EDUCATION,11/08/2010,CURRENT GRANTS,School Formation and Investment Group,WEDNESBURY LEARNING COMMUNITY,4000032507,50000
DEPARTMENT FOR EDUCATION,DEPARTMENT FOR EDUCATION,12/08/2010,GRANT IN AID,Workforce Group Children and Families Workforce,CHILDRENS WORKFORCE DEVELOPMENT COUNCIL,2000194,917364
DEPARTMENT FOR EDUCATION,DEPARTMENT FOR EDUCATION,12/08/2010,CURRENT GRANTS,14 - 19 Reform Participation and Attainment,DEPARTMENT FOR BUSINESS INNOVATION & SKILLS,2000196,889694
DEPARTMENT FOR EDUCATION,DEPARTMENT FOR EDUCATION,12/08/2010,CURRENT GRANTS,Children and Families Group,DEPARTMENT FOR COMMUNTIES & LOCAL GOVERNMENT,2000197,510000
DEPARTMENT FOR EDUCATION,DEPARTMENT FOR EDUCATION,12/08/2010,CAPITAL GRANTS,Children and Families Early Years Extended Schools and Special Needs,DUDLEY MBC,4000032508,150000
DEPARTMENT FOR EDUCATION,DEPARTMENT FOR EDUCATION,12/08/2010,CAPITAL GRANTS,Children and Families Early Years Extended Schools and Special Needs,LANCASHIRE COUNTY COUNCIL,4000032509,1713587
DEPARTMENT FOR EDUCATION,DEPARTMENT FOR EDUCATION,12/08/2010,CAPITAL GRANTS,Children and Families Early Years Extended Schools and Special Needs,LONDON BOROUGH OF HARROW COUNCIL,4000032510,51810
DEPARTMENT FOR EDUCATION,DEPARTMENT FOR EDUCATION,12/08/2010,CAPITAL GRANTS,Children and Families Early Years Extended Schools and Special Needs,STOKE ON TRENT CITY COUNCIL,4000032511,231503
DEPARTMENT FOR EDUCATION,DEPARTMENT FOR EDUCATION,12/08/2010,CAPITAL GRANTS,Children and Families Early Years Extended Schools and Special Needs,WEST SUSSEX COUNTY COUNCIL,4000032512,2707552
DEPARTMENT FOR EDUCATION,DEPARTMENT FOR EDUCATION,12/08/2010,CURRENT GRANTS,Curriculum and Pupil Well Being Curriculum Unit,AMATEUR SWIMMING ASSOCIATION,4000032541,100000
DEPARTMENT FOR EDUCATION,DEPARTMENT FOR EDUCATION,12/08/2010,CAPITAL GRANTS,School Formation and Investment Group,ARK,4000032542,1458779.81
DEPARTMENT FOR EDUCATION,DEPARTMENT FOR EDUCATION,12/08/2010,CURRENT GRANTS,School Formation and Investment Group,ASHMOLE SCHOOL,4000032543,25000
DEPARTMENT FOR EDUCATION,DEPARTMENT FOR EDUCATION,12/08/2010,MISCELLANEOUS EXPENDITURE,Private Office ,BARCLAYCARD BANK PLC,4000032544,-53.48
DEPARTMENT FOR EDUCATION,DEPARTMENT FOR EDUCATION,12/08/2010,STAFF EXPENSES / COSTS,Private Office ,BARCLAYCARD BANK PLC,4000032544,5
DEPARTMENT FOR EDUCATION,DEPARTMENT FOR EDUCATION,12/08/2010,CONFERENCES AND MEETINGS,Internal Audit,BARCLAYCARD BANK PLC,4000032544,5
DEPARTMENT FOR EDUCATION,DEPARTMENT FOR EDUCATION,12/08/2010,MISCELLANEOUS EXPENDITURE,Corporate Services Director General,BARCLAYCARD BANK PLC,4000032544,6.96
DEPARTMENT FOR EDUCATION,DEPARTMENT FOR EDUCATION,12/08/2010,CONFERENCES AND MEETINGS,Young People Workforce Group,BARCLAYCARD BANK PLC,4000032544,8
DEPARTMENT FOR EDUCATION,DEPARTMENT FOR EDUCATION,12/08/2010,MISCELLANEOUS EXPENDITURE,Marketing Group,BARCLAYCARD BANK PLC,4000032544,9.98
DEPARTMENT FOR EDUCATION,DEPARTMENT FOR EDUCATION,12/08/2010,CONFERENCES AND MEETINGS,Private Office ,BARCLAYCARD BANK PLC,4000032544,10.93
DEPARTMENT FOR EDUCATION,DEPARTMENT FOR EDUCATION,12/08/2010,MISCELLANEOUS EXPENDITURE,Curriculum and Pupil Well Being Curriculum Unit,BARCLAYCARD BANK PLC,4000032544,11.69
DEPARTMENT FOR EDUCATION,DEPARTMENT FOR EDUCATION,12/08/2010,FACILITIES OTHER,Commercial Group EFM,BARCLAYCARD BANK PLC,4000032544,18
DEPARTMENT FOR EDUCATION,DEPARTMENT FOR EDUCATION,12/08/2010,MISCELLANEOUS EXPENDITURE,"Strategic Analysis, Research and Policy Impact Group",BARCLAYCARD BANK PLC,4000032544,21.75
DEPARTMENT FOR EDUCATION,DEPARTMENT FOR EDUCATION,12/08/2010,TELEPHONE CHARGES,Customer Contact and Business Development Group,BARCLAYCARD BANK PLC,4000032544,24.52
DEPARTMENT FOR EDUCATION,DEPARTMENT FOR EDUCATION,12/08/2010,MISCELLANEOUS EXPENDITURE,Press Office Group,BARCLAYCARD BANK PLC,4000032544,27.97
DEPARTMENT FOR EDUCATION,DEPARTMENT FOR EDUCATION,12/08/2010,PRINTING STATIONERY IT & CONSUMABLES,Commercial Group EFM,BARCLAYCARD BANK PLC,4000032544,29.03
DEPARTMENT FOR EDUCATION,DEPARTMENT FOR EDUCATION,12/08/2010,PRINTING STATIONERY IT & CONSUMABLES,Commercial Group Schools and Category Management,BARCLAYCARD BANK PLC,4000032544,30.88
DEPARTMENT FOR EDUCATION,DEPARTMENT FOR EDUCATION,12/08/2010,TELEPHONE CHARGES,Chief Information Officer Group,BARCLAYCARD BANK PLC,4000032544,31.38
DEPARTMENT FOR EDUCATION,DEPARTMENT FOR EDUCATION,12/08/2010,MISCELLANEOUS EXPENDITURE,People and Change,BARCLAYCARD BANK PLC,4000032544,34.95
DEPARTMENT FOR EDUCATION,DEPARTMENT FOR EDUCATION,12/08/2010,MISCELLANEOUS EXPENDITURE,Commercial Group EFM,BARCLAYCARD BANK PLC,4000032544,35.98
DEPARTMENT FOR EDUCATION,DEPARTMENT FOR EDUCATION,12/08/2010,PRINTING STATIONERY IT & CONSUMABLES,Children and Families Child Well Being Group,BARCLAYCARD BANK PLC,4000032544,39.02
DEPARTMENT FOR EDUCATION,DEPARTMENT FOR EDUCATION,12/08/2010,CONFERENCES AND MEETINGS,Supporting Children and Young People Youth Task Force,BARCLAYCARD BANK PLC,4000032544,39.19
DEPARTMENT FOR EDUCATION,DEPARTMENT FOR EDUCATION,12/08/2010,MISCELLANEOUS EXPENDITURE,Group Legal Advisors Office,BARCLAYCARD BANK PLC,4000032544,47.5
DEPARTMENT FOR EDUCATION,DEPARTMENT FOR EDUCATION,12/08/2010,PRINTING STATIONERY IT & CONSUMABLES,Marketing Group,BARCLAYCARD BANK PLC,4000032544,53.33
DEPARTMENT FOR EDUCATION,DEPARTMENT FOR EDUCATION,12/08/2010,MISCELLANEOUS EXPENDITURE,Private Office ,BARCLAYCARD BANK PLC,4000032544,54.13
DEPARTMENT FOR EDUCATION,DEPARTMENT FOR EDUCATION,12/08/2010,MISCELLANEOUS EXPENDITURE,Customer Contact and Business Development Group,BARCLAYCARD BANK PLC,4000032544,59.99
DEPARTMENT FOR EDUCATION,DEPARTMENT FOR EDUCATION,12/08/2010,OFFICE MACHINERY HIRE & MAINTENANCE,Commercial Group EFM,BARCLAYCARD BANK PLC,4000032544,62.46
DEPARTMENT FOR EDUCATION,DEPARTMENT FOR EDUCATION,12/08/2010,TELEPHONE CHARGES,Children and Families Child Well Being Group,BARCLAYCARD BANK PLC,4000032544,62.72
DEPARTMENT FOR EDUCATION,DEPARTMENT FOR EDUCATION,12/08/2010,PROFESSIONAL FEES,"Strategic Analysis, Research and Policy Impact Group",BARCLAYCARD BANK PLC,4000032544,72
DEPARTMENT FOR EDUCATION,DEPARTMENT FOR EDUCATION,12/08/2010,TELEPHONE CHARGES,Private Office ,BARCLAYCARD BANK PLC,4000032544,77.52
DEPARTMENT FOR EDUCATION,DEPARTMENT FOR EDUCATION,12/08/2010,MISCELLANEOUS EXPENDITURE,Commercial Group EFM,BARCLAYCARD BANK PLC,4000032544,79.15
DEPARTMENT FOR EDUCATION,DEPARTMENT FOR EDUCATION,12/08/2010,MISCELLANEOUS EXPENDITURE,Commercial Group EFM,BARCLAYCARD BANK PLC,4000032544,101.05
DEPARTMENT FOR EDUCATION,DEPARTMENT FOR EDUCATION,12/08/2010,STAFF EXPENSES / COSTS,Private Office ,BARCLAYCARD BANK PLC,4000032544,124.75
DEPARTMENT FOR EDUCATION,DEPARTMENT FOR EDUCATION,12/08/2010,STAFF EXPENSES / COSTS,Commercial Group Schools and Category Management,BARCLAYCARD BANK PLC,4000032544,135
DEPARTMENT FOR EDUCATION,DEPARTMENT FOR EDUCATION,12/08/2010,PRINTING STATIONERY IT & CONSUMABLES,Commercial Group Schools and Category Management,BARCLAYCARD BANK PLC,4000032544,135.75
DEPARTMENT FOR EDUCATION,DEPARTMENT FOR EDUCATION,12/08/2010,MISCELLANEOUS EXPENDITURE,Commercial Group EFM,BARCLAYCARD BANK PLC,4000032544,138.65
DEPARTMENT FOR EDUCATION,DEPARTMENT FOR EDUCATION,12/08/2010,MISCELLANEOUS EXPENDITURE,Commercial Group Schools and Category Management,BARCLAYCARD BANK PLC,4000032544,140
DEPARTMENT FOR EDUCATION,DEPARTMENT FOR EDUCATION,12/08/2010,MISCELLANEOUS EXPENDITURE,Commercial Group Schools and Category Management,BARCLAYCARD BANK PLC,4000032544,140
DEPARTMENT FOR EDUCATION,DEPARTMENT FOR EDUCATION,12/08/2010,STAFF EXPENSES / COSTS,Chief Information Officer Group,BARCLAYCARD BANK PLC,4000032544,149.23
DEPARTMENT FOR EDUCATION,DEPARTMENT FOR EDUCATION,12/08/2010,MISCELLANEOUS EXPENDITURE,Commercial Group EFM,BARCLAYCARD BANK PLC,4000032544,158
DEPARTMENT FOR EDUCATION,DEPARTMENT FOR EDUCATION,12/08/2010,STAFF EXPENSES / COSTS,Private Office ,BARCLAYCARD BANK PLC,4000032544,166
DEPARTMENT FOR EDUCATION,DEPARTMENT FOR EDUCATION,12/08/2010,MISCELLANEOUS EXPENDITURE,School Standards Group,BARCLAYCARD BANK PLC,4000032544,167.79
DEPARTMENT FOR EDUCATION,DEPARTMENT FOR EDUCATION,12/08/2010,MISCELLANEOUS EXPENDITURE,Chief Information Officer Group,BARCLAYCARD BANK PLC,4000032544,181.89
DEPARTMENT FOR EDUCATION,DEPARTMENT FOR EDUCATION,12/08/2010,MISCELLANEOUS EXPENDITURE,People and Change,BARCLAYCARD BANK PLC,4000032544,201.3
DEPARTMENT FOR EDUCATION,DEPARTMENT FOR EDUCATION,12/08/2010,CONTRACTED OUT SERVICES,Commercial Group Schools and Category Management,BARCLAYCARD BANK PLC,4000032544,243.45
DEPARTMENT FOR EDUCATION,DEPARTMENT FOR EDUCATION,12/08/2010,OFFICE MACHINERY HIRE & MAINTENANCE,Commercial Group EFM,BARCLAYCARD BANK PLC,4000032544,259.98
DEPARTMENT FOR EDUCATION,DEPARTMENT FOR EDUCATION,12/08/2010,STAFF EXPENSES / COSTS,School Performance and Reform Group,BARCLAYCARD BANK PLC,4000032544,266.6
DEPARTMENT FOR EDUCATION,DEPARTMENT FOR EDUCATION,12/08/2010,PRINTING STATIONERY IT & CONSUMABLES,Chief Information Officer Group,BARCLAYCARD BANK PLC,4000032544,278.32
DEPARTMENT FOR EDUCATION,DEPARTMENT FOR EDUCATION,12/08/2010,PROFESSIONAL FEES,Internal Audit,BARCLAYCARD BANK PLC,4000032544,364.25
DEPARTMENT FOR EDUCATION,DEPARTMENT FOR EDUCATION,12/08/2010,PRINTING STATIONERY IT & CONSUMABLES,Chief Information Officer Group,BARCLAYCARD BANK PLC,4000032544,374.45
DEPARTMENT FOR EDUCATION,DEPARTMENT FOR EDUCATION,12/08/2010,CONFERENCES AND MEETINGS,Chief Information Officer Group,BARCLAYCARD BANK PLC,4000032544,410
DEPARTMENT FOR EDUCATION,DEPARTMENT FOR EDUCATION,12/08/2010,MISCELLANEOUS EXPENDITURE,Chief Information Officer Group,BARCLAYCARD BANK PLC,4000032544,434.66
DEPARTMENT FOR EDUCATION,DEPARTMENT FOR EDUCATION,12/08/2010,MISCELLANEOUS EXPENDITURE,Chief Information Officer Group,BARCLAYCARD BANK PLC,4000032544,470
DEPARTMENT FOR EDUCATION,DEPARTMENT FOR EDUCATION,12/08/2010,OFFICE MACHINERY HIRE & MAINTENANCE,"Strategic Analysis, Research and Policy Impact Group",BARCLAYCARD BANK PLC,4000032544,499.38
DEPARTMENT FOR EDUCATION,DEPARTMENT FOR EDUCATION,12/08/2010,MISCELLANEOUS EXPENDITURE,Chief Information Officer Group,BARCLAYCARD BANK PLC,4000032544,510.64
DEPARTMENT FOR EDUCATION,DEPARTMENT FOR EDUCATION,12/08/2010,MISCELLANEOUS EXPENDITURE,Commercial Group EFM,BARCLAYCARD BANK PLC,4000032544,693.25
DEPARTMENT FOR EDUCATION,DEPARTMENT FOR EDUCATION,12/08/2010,PRINTING STATIONERY IT & CONSUMABLES,Chief Information Officer Group,BARCLAYCARD BANK PLC,4000032544,798.1
DEPARTMENT FOR EDUCATION,DEPARTMENT FOR EDUCATION,12/08/2010,MISCELLANEOUS EXPENDITURE,Commercial Group Shared Services and Children and Young People,BARCLAYCARD BANK PLC,4000032544,900
DEPARTMENT FOR EDUCATION,DEPARTMENT FOR EDUCATION,12/08/2010,MISCELLANEOUS EXPENDITURE,Internal Audit,BARCLAYCARD BANK PLC,4000032544,1062.42
DEPARTMENT FOR EDUCATION,DEPARTMENT FOR EDUCATION,12/08/2010,MISCELLANEOUS EXPENDITURE,Commercial Group EFM,BARCLAYCARD BANK PLC,4000032544,1188.8
DEPARTMENT FOR EDUCATION,DEPARTMENT FOR EDUCATION,12/08/2010,PROFESSIONAL FEES,Chief Information Officer Group,BARCLAYCARD BANK PLC,4000032544,1500
DEPARTMENT FOR EDUCATION,DEPARTMENT FOR EDUCATION,12/08/2010,PRINTING STATIONERY IT & CONSUMABLES,Group Legal Advisors Office,BARCLAYCARD BANK PLC,4000032544,3993.34
DEPARTMENT FOR EDUCATION,DEPARTMENT FOR EDUCATION,12/08/2010,MISCELLANEOUS EXPENDITURE,Chief Information Officer Group,BARCLAYCARD BANK PLC,4000032544,9208.03
DEPARTMENT FOR EDUCATION,DEPARTMENT FOR EDUCATION,12/08/2010,STAFF EXPENSES / COSTS,Chief Information Officer Group,BARCLAYCARD BANK PLC,4000032544,13723.75
DEPARTMENT FOR EDUCATION,DEPARTMENT FOR EDUCATION,12/08/2010,CURRENT GRANTS,School Formation and Investment Group,CASTLE COMMUNITY COLLEGE,4000032548,25000
DEPARTMENT FOR EDUCATION,DEPARTMENT FOR EDUCATION,12/08/2010,CURRENT GRANTS,School Formation and Investment Group,CROSSHALL INFANT SCHOOL,4000032552,25000
DEPARTMENT FOR EDUCATION,DEPARTMENT FOR EDUCATION,12/08/2010,CONTRACT PROGRAMME EXPENDITURE,Children and Families Early Years Extended Schools and Special Needs,EC HARRIS LLP,4000032557,10257.75
DEPARTMENT FOR EDUCATION,DEPARTMENT FOR EDUCATION,12/08/2010,CONTRACT PROGRAMME EXPENDITURE,School Formation and Investment Group,EC HARRIS LLP,4000032557,98532.75
DEPARTMENT FOR EDUCATION,DEPARTMENT FOR EDUCATION,12/08/2010,OTHER PROGRAMME EXPENSES,Children and Families Supporting Delivery Group,EAST MIDLANDS SHA,4000032558,160000
DEPARTMENT FOR EDUCATION,DEPARTMENT FOR EDUCATION,12/08/2010,CAPITAL LICENCES & INTANGIBLES,Corporate and Internal Communications Group,EDUSERV,4000032561,75640.63
DEPARTMENT FOR EDUCATION,DEPARTMENT FOR EDUCATION,12/08/2010,CURRENT GRANTS,School Formation and Investment Group,ERITH SCHOOL,4000032563,25000
DEPARTMENT FOR EDUCATION,DEPARTMENT FOR EDUCATION,12/08/2010,RATES & SERVICE CHARGES,Commercial Group EFM,HALTON BOROUGH COUNCIL,4000032569,35469
DEPARTMENT FOR EDUCATION,DEPARTMENT FOR EDUCATION,12/08/2010,CONTRACT PROGRAMME EXPENDITURE,14 - 19 Reform Qualification Standards and Reform,IEBE,4000032571,72422.92
DEPARTMENT FOR EDUCATION,DEPARTMENT FOR EDUCATION,12/08/2010,MANAGEMENT CONSULTANCY,14 - 19 Reform Qualification Standards and Reform,KPMG LLP,4000032576,118739.63
DEPARTMENT FOR EDUCATION,DEPARTMENT FOR EDUCATION,12/08/2010,IS/IT,Children and Families Improving Information Sharing and Management Group,LOGICA UK LTD,4000032578,154803.08
DEPARTMENT FOR EDUCATION,DEPARTMENT FOR EDUCATION,12/08/2010,CURRENT GRANTS,School Resources Group,LONDON BOROUGH OF HAVERING COUNCIL,4000032579,70582
DEPARTMENT FOR EDUCATION,DEPARTMENT FOR EDUCATION,12/08/2010,CURRENT GRANTS,School Formation and Investment Group,MARTHAM PRIMARY SCHOOL & NURSERY,4000032580,25000
DEPARTMENT FOR EDUCATION,DEPARTMENT FOR EDUCATION,12/08/2010,CURRENT GRANTS,School Formation and Investment Group,NORTON HILL SCHOOL,4000032583,25000
DEPARTMENT FOR EDUCATION,DEPARTMENT FOR EDUCATION,12/08/2010,MANAGEMENT CONSULTANCY,Children and Families Improving Information Sharing and Management Group,PA CONSULTING GROUP,4000032584,217407.37
DEPARTMENT FOR EDUCATION,DEPARTMENT FOR EDUCATION,12/08/2010,MANAGEMENT CONSULTANCY,Children and Families Improving Information Sharing and Management Group,PA CONSULTING GROUP,4000032584,618774.92
DEPARTMENT FOR EDUCATION,DEPARTMENT FOR EDUCATION,12/08/2010,CURRENT GRANTS,School Formation and Investment Group,PARK ROAD PRIMARY SCHOOL,4000032585,25000
DEPARTMENT FOR EDUCATION,DEPARTMENT FOR EDUCATION,12/08/2010,MANAGEMENT CONSULTANCY,Children and Families Improving Information Sharing and Management Group,PKF UK LIMITED,4000032586,22278
DEPARTMENT FOR EDUCATION,DEPARTMENT FOR EDUCATION,12/08/2010,CONTRACT PROGRAMME EXPENDITURE,School Formation and Investment Group,PKF UK LIMITED,4000032586,32403.27
DEPARTMENT FOR EDUCATION,DEPARTMENT FOR EDUCATION,12/08/2010,CONTRACT PROGRAMME EXPENDITURE,Supporting Children and Young People Community Cohesion,THE RELIGIOUS EDUCATION COUNCIL,4000032592,60000
DEPARTMENT FOR EDUCATION,DEPARTMENT FOR EDUCATION,12/08/2010,CURRENT GRANTS,School Formation and Investment Group,TRINITY C OF E PRIMARY SCHOOL,4000032594,25000
DEPARTMENT FOR EDUCATION,DEPARTMENT FOR EDUCATION,12/08/2010,PLANT AND MACHINERY CAPITAL,Commercial Group EFM,TRIUMPH FURNITURE,4000032595,8159.82
DEPARTMENT FOR EDUCATION,DEPARTMENT FOR EDUCATION,12/08/2010,LAND AND BUILDINGS,Commercial Group EFM,TRIUMPH FURNITURE,4000032595,36642.38
DEPARTMENT FOR EDUCATION,DEPARTMENT FOR EDUCATION,12/08/2010,CURRENT GRANTS,Curriculum and Pupil Well Being Curriculum Unit,V THE NATIONAL YOUNG VOLUNTEERS SERVICE,4000032597,429604
DEPARTMENT FOR EDUCATION,DEPARTMENT FOR EDUCATION,13/08/2010,GRANT IN AID,Curriculum and Pupil Well Being Unit,THE SCHOOL FOOD TRUST,1000246,440595
DEPARTMENT FOR EDUCATION,TEACHERS PENSION SCHEME,13/08/2010,FUNDING TO PAY TEACHERS PENSIONS,Workforce Group - TPS,CAPITA TP HSBC,1000269,207768.74
DEPARTMENT FOR EDUCATION,TEACHERS PENSION SCHEME,13/08/2010,FUNDING TO PAY TEACHERS PENSIONS,Workforce Group - TPS,CAPITA TP NATWEST,1000270,15306328.57
DEPARTMENT FOR EDUCATION,TEACHERS PENSION SCHEME,13/08/2010,FUNDING TO PAY TEACHERS PENSIONS,Workforce Group - TPS,CAPITA TP NATWEST,1000272,41265797.56
DEPARTMENT FOR EDUCATION,DEPARTMENT FOR EDUCATION,13/08/2010,CURRENT GRANTS,14 - 19 Reform Participation and Attainment,BIS DEPARTMENT FOR BUSINESS INNOVATION & SKILLS,2000199,43008665
DEPARTMENT FOR EDUCATION,DEPARTMENT FOR EDUCATION,13/08/2010,CONTRACT PROGRAMME EXPENDITURE,School Formation and Investment Group,APPLEYARDS LTD,4000032615,157323.39
DEPARTMENT FOR EDUCATION,DEPARTMENT FOR EDUCATION,13/08/2010,CONTRACT PROGRAMME EXPENDITURE,Workforce Group Young People Workforce,CAPITA BUSINESS SERVICES LTD,4000032618,764.3
DEPARTMENT FOR EDUCATION,DEPARTMENT FOR EDUCATION,13/08/2010,CONTRACT PROGRAMME EXPENDITURE,Workforce Group Young People Workforce,CAPITA BUSINESS SERVICES LTD,4000032618,180899.85
DEPARTMENT FOR EDUCATION,DEPARTMENT FOR EDUCATION,13/08/2010,CURRENT GRANTS,Curriculum and Pupil Well Being Unit,DURHAM COUNTY COUNCIL,4000032625,465648
DEPARTMENT FOR EDUCATION,DEPARTMENT FOR EDUCATION,13/08/2010,CAPITAL GRANTS,School Formation and Investment Group,HEREFORD STEINER ACADEMY,4000032629,539979.32
DEPARTMENT FOR EDUCATION,DEPARTMENT FOR EDUCATION,13/08/2010,CONTRACT PROGRAMME EXPENDITURE,Workforce Group Children and Families Workforce,ISLINGTON PCT,4000032630,27167.25
DEPARTMENT FOR EDUCATION,DEPARTMENT FOR EDUCATION,13/08/2010,CURRENT GRANTS,Curriculum and Pupil Well Being Curriculum Unit,KENT COUNTY COUNCIL,4000032631,142755.6
DEPARTMENT FOR EDUCATION,DEPARTMENT FOR EDUCATION,13/08/2010,CURRENT GRANTS,Children and Families Early Years Extended Schools and Special Needs,NATIONAL AUTISTIC SOCIETY,4000032637,28500
DEPARTMENT FOR EDUCATION,DEPARTMENT FOR EDUCATION,13/08/2010,CURRENT GRANTS,School Formation and Investment Group,ORMISTON EDUCATION LTD,4000032639,50945.65
DEPARTMENT FOR EDUCATION,DEPARTMENT FOR EDUCATION,13/08/2010,PROFESSIONAL FEES,School Formation and Investment Group,PKF UK LIMITED,4000032640,36380.35
DEPARTMENT FOR EDUCATION,DEPARTMENT FOR EDUCATION,13/08/2010,CONTRACT PROGRAMME EXPENDITURE,School Formation and Investment Group,PKF UK LIMITED,4000032640,57005.13
DEPARTMENT FOR EDUCATION,DEPARTMENT FOR EDUCATION,13/08/2010,CONTRACT PROGRAMME EXPENDITURE,School Formation and Investment Group,PKF UK LLP,4000032641,78313.75
DEPARTMENT FOR EDUCATION,DEPARTMENT FOR EDUCATION,13/08/2010,CONTRACT PROGRAMME EXPENDITURE,School Formation and Investment Group,PLACE GROUP LIMITED,4000032642,50470.98
DEPARTMENT FOR EDUCATION,DEPARTMENT FOR EDUCATION,13/08/2010,CONTRACT PROGRAMME EXPENDITURE,Children and Families Early Years Extended Schools and Special Needs,SERCO LTD,4000032651,-473661.13
DEPARTMENT FOR EDUCATION,DEPARTMENT FOR EDUCATION,13/08/2010,MANAGEMENT CONSULTANCY,People and Change,SERCO LTD,4000032651,16545.24
DEPARTMENT FOR EDUCATION,DEPARTMENT FOR EDUCATION,13/08/2010,MANAGEMENT CONSULTANCY,Children and Families Improving Information Sharing and Management Group,SERCO LTD,4000032651,20228.8
DEPARTMENT FOR EDUCATION,DEPARTMENT FOR EDUCATION,13/08/2010,CONTRACT PROGRAMME EXPENDITURE,Children and Families Supporting Delivery Group,SERCO LTD,4000032651,159919.85
DEPARTMENT FOR EDUCATION,DEPARTMENT FOR EDUCATION,13/08/2010,CONTRACT PROGRAMME EXPENDITURE,Children and Families Early Years Extended Schools and Special Needs,SERCO LTD,4000032651,347683.39
DEPARTMENT FOR EDUCATION,DEPARTMENT FOR EDUCATION,13/08/2010,CONTRACT PROGRAMME EXPENDITURE,Children and Families Early Years Extended Schools and Special Needs,WEST MIDLANDS STRATEGIC HEALTH AUTHORITY,4000032657,165500
DEPARTMENT FOR EDUCATION,DEPARTMENT FOR EDUCATION,16/08/2010,CONTRACT PROGRAMME EXPENDITURE,School Formation and Investment Group,APPLEYARDS LTD,4000032675,93331.43
DEPARTMENT FOR EDUCATION,DEPARTMENT FOR EDUCATION,16/08/2010,IS/IT,Chief Information Officer Group,BUYING SOLUTIONS,4000032682,228052.46
DEPARTMENT FOR EDUCATION,DEPARTMENT FOR EDUCATION,16/08/2010,CONTRACT PROGRAMME EXPENDITURE,Children and Families Group,CAPITA RESOURCING LTD,4000032684,669.32
DEPARTMENT FOR EDUCATION,DEPARTMENT FOR EDUCATION,16/08/2010,TEMPORARY (TEMP) STAFF COSTS,Corporate and Internal Communications Group,CAPITA RESOURCING LTD,4000032684,1147.39
DEPARTMENT FOR EDUCATION,DEPARTMENT FOR EDUCATION,16/08/2010,MANAGEMENT CONSULTANCY,Chief Information Officer Group,CAPITA RESOURCING LTD,4000032684,1256.98
DEPARTMENT FOR EDUCATION,DEPARTMENT FOR EDUCATION,16/08/2010,MANAGEMENT CONSULTANCY,Commercial Group EFM,CAPITA RESOURCING LTD,4000032684,1763.15
DEPARTMENT FOR EDUCATION,DEPARTMENT FOR EDUCATION,16/08/2010,TEMPORARY (TEMP) STAFF COSTS,People and Change,CAPITA RESOURCING LTD,4000032684,2215.93
DEPARTMENT FOR EDUCATION,DEPARTMENT FOR EDUCATION,16/08/2010,COMMUNICATIONS & PUBLICITY,Children and Families Supporting Delivery Group,CAPITA RESOURCING LTD,4000032684,2216.81
DEPARTMENT FOR EDUCATION,DEPARTMENT FOR EDUCATION,16/08/2010,TEMPORARY (TEMP) STAFF COSTS,Children and Families Group,CAPITA RESOURCING LTD,4000032684,3250.93
DEPARTMENT FOR EDUCATION,DEPARTMENT FOR EDUCATION,16/08/2010,MANAGEMENT CONSULTANCY,Supporting Children and Young People as Risk,CAPITA RESOURCING LTD,4000032684,4072.24
DEPARTMENT FOR EDUCATION,DEPARTMENT FOR EDUCATION,16/08/2010,MANAGEMENT CONSULTANCY,Chief Information Officer Group,CAPITA RESOURCING LTD,4000032684,4207.08
DEPARTMENT FOR EDUCATION,DEPARTMENT FOR EDUCATION,16/08/2010,TEMPORARY (TEMP) STAFF COSTS,Finance Group,CAPITA RESOURCING LTD,4000032684,4493.91
DEPARTMENT FOR EDUCATION,DEPARTMENT FOR EDUCATION,16/08/2010,COMMUNICATIONS & PUBLICITY,Corporate and Internal Communications Group,CAPITA RESOURCING LTD,4000032684,4546.97
DEPARTMENT FOR EDUCATION,DEPARTMENT FOR EDUCATION,16/08/2010,TEMPORARY (TEMP) STAFF COSTS,Commercial Group Schools and Category Management,CAPITA RESOURCING LTD,4000032684,5163.24
DEPARTMENT FOR EDUCATION,DEPARTMENT FOR EDUCATION,16/08/2010,MANAGEMENT CONSULTANCY,Commercial Group EFM,CAPITA RESOURCING LTD,4000032684,7175.41
DEPARTMENT FOR EDUCATION,DEPARTMENT FOR EDUCATION,16/08/2010,TEMPORARY (TEMP) STAFF COSTS,Communications Strategy and Insight Group,CAPITA RESOURCING LTD,4000032684,7615.05
DEPARTMENT FOR EDUCATION,DEPARTMENT FOR EDUCATION,16/08/2010,TEMPORARY (TEMP) STAFF COSTS,Commercial Group Strategic Functions,CAPITA RESOURCING LTD,4000032684,14309.51
DEPARTMENT FOR EDUCATION,DEPARTMENT FOR EDUCATION,16/08/2010,COMMUNICATIONS & PUBLICITY,Corporate and Internal Communications Group,CAPITA RESOURCING LTD,4000032684,17641.4
DEPARTMENT FOR EDUCATION,DEPARTMENT FOR EDUCATION,16/08/2010,TEMPORARY (TEMP) STAFF COSTS,Children and Families Group,CAPITA RESOURCING LTD,4000032684,25302.29
DEPARTMENT FOR EDUCATION,DEPARTMENT FOR EDUCATION,16/08/2010,TEMPORARY (TEMP) STAFF COSTS,Children and Families Group,CAPITA RESOURCING LTD,4000032684,31806.59
DEPARTMENT FOR EDUCATION,DEPARTMENT FOR EDUCATION,16/08/2010,CONTRACT PROGRAMME EXPENDITURE,Children and Families Group,CAPITA RESOURCING LTD,4000032684,48709.95
DEPARTMENT FOR EDUCATION,DEPARTMENT FOR EDUCATION,16/08/2010,CONTRACT PROGRAMME EXPENDITURE,School Formation and Investment Group,CAPITA SYMONDS LTD,4000032686,32039.34
DEPARTMENT FOR EDUCATION,DEPARTMENT FOR EDUCATION,16/08/2010,CONTRACT PROGRAMME EXPENDITURE,School Performance and Reform Office of the Schools Commissioner,CITY OF WOLVERHAMPTON COLLEGE,4000032688,70000
DEPARTMENT FOR EDUCATION,DEPARTMENT FOR EDUCATION,16/08/2010,CURRENT GRANTS,14 - 19 Reform Qualification Standards and Reform,FINANCIAL SERVICES SKILLS COUNCIL,4000032694,100000
DEPARTMENT FOR EDUCATION,DEPARTMENT FOR EDUCATION,16/08/2010,CURRENT GRANTS,School Formation and Investment Group,FREEBROUGH ACADEMY,4000032695,36435.28
DEPARTMENT FOR EDUCATION,DEPARTMENT FOR EDUCATION,16/08/2010,CURRENT GRANTS,14 - 19 Reform Qualification Standards and Reform,HABIA,4000032696,66750
DEPARTMENT FOR EDUCATION,DEPARTMENT FOR EDUCATION,16/08/2010,CURRENT GRANTS,14 - 19 Reform Qualification Standards and Reform,LANTRA,4000032701,75000
DEPARTMENT FOR EDUCATION,DEPARTMENT FOR EDUCATION,16/08/2010,CURRENT GRANTS,Children and Families Safeguarding Group,NSPCC,4000032705,1707000
DEPARTMENT FOR EDUCATION,DEPARTMENT FOR EDUCATION,16/08/2010,CONTRACT PROGRAMME EXPENDITURE,School Formation and Investment Group,PKF UK LLP,4000032708,85675.13
DEPARTMENT FOR EDUCATION,DEPARTMENT FOR EDUCATION,16/08/2010,CONTRACT PROGRAMME EXPENDITURE,School Formation and Investment Group,PLACE GROUP LIMITED,4000032709,58608.93
DEPARTMENT FOR EDUCATION,DEPARTMENT FOR EDUCATION,16/08/2010,CURRENT GRANTS,School Formation and Investment Group,RICHARD ROSE MORTON ACADEMY,4000032715,76606.93
DEPARTMENT FOR EDUCATION,DEPARTMENT FOR EDUCATION,16/08/2010,COMMUNICATIONS & PUBLICITY,Corporate and Internal Communications Group,SCROLL,4000032718,91608.88
DEPARTMENT FOR EDUCATION,DEPARTMENT FOR EDUCATION,16/08/2010,CONTRACT PROGRAMME EXPENDITURE,Children and Families Early Years Extended Schools and Special Needs,SERCO LTD,4000032719,284906.37
DEPARTMENT FOR EDUCATION,DEPARTMENT FOR EDUCATION,16/08/2010,CURRENT GRANTS,14 - 19 Reform Qualification Standards and Reform,SKILLS FOR JUSTICE,4000032721,75669
DEPARTMENT FOR EDUCATION,DEPARTMENT FOR EDUCATION,16/08/2010,CURRENT GRANTS,14 - 19 Reform Qualification Standards and Reform,SKILLSMART RETAIL,4000032722,74944
DEPARTMENT FOR EDUCATION,DEPARTMENT FOR EDUCATION,16/08/2010,CONTRACT PROGRAMME EXPENDITURE,School Resources Group,TRIBAL CONSULTING LTD,4000032725,638059.79
DEPARTMENT FOR EDUCATION,TEACHERS PENSION SCHEME,17/08/2010,FUNDING TO PAY TEACHERS PENSIONS,Workforce Group - TPS,CAPITA TP HSBC,1000273,294696.36
DEPARTMENT FOR EDUCATION,TEACHERS PENSION SCHEME,17/08/2010,FUNDING TO PAY TEACHERS PENSIONS,Workforce Group - TPS,CAPITA TP NATWEST,1000274,16716251.75
DEPARTMENT FOR EDUCATION,DEPARTMENT FOR EDUCATION,17/08/2010,CONTRACT PROGRAMME EXPENDITURE,School Formation and Investment Group,APPLEYARDS LTD,4000032744,275044.72
DEPARTMENT FOR EDUCATION,DEPARTMENT FOR EDUCATION,17/08/2010,CONTRACT PROGRAMME EXPENDITURE,Children and Families Safeguarding Group,BEAT BULLYING LTD,4000032748,56677
DEPARTMENT FOR EDUCATION,DEPARTMENT FOR EDUCATION,17/08/2010,CONTRACT PROGRAMME EXPENDITURE,Children and Families Group,BRITISH ASSOCIATION FOR ADOPTION & FOSTERING,4000032749,77038.5
DEPARTMENT FOR EDUCATION,DEPARTMENT FOR EDUCATION,17/08/2010,STAFF EXPENSES / COSTS,Children and Families Early Years Extended Schools and Special Needs,CAPITA EDUCATION RESOURCING,4000032751,88934.1
DEPARTMENT FOR EDUCATION,DEPARTMENT FOR EDUCATION,17/08/2010,CURRENT GRANTS,School Formation and Investment Group,CHURCH ACADEMY SERVICES LTD,4000032752,35456.54
DEPARTMENT FOR EDUCATION,DEPARTMENT FOR EDUCATION,17/08/2010,MISCELLANEOUS EXPENDITURE,Commercial Group EFM,COLLINS CONSTRUCTION PLC,4000032754,84491.2
DEPARTMENT FOR EDUCATION,DEPARTMENT FOR EDUCATION,17/08/2010,CAPITAL GRANTS,Supporting Children and Young People Group Activities and Engagement,COVENTRY CITY COUNCIL,4000032756,46325
DEPARTMENT FOR EDUCATION,DEPARTMENT FOR EDUCATION,17/08/2010,CURRENT GRANTS,Curriculum and Pupil Well Being Improving Behaviour and Attendance Unit,DARLINGTON BOROUGH COUNCIL,4000032757,76728.95
DEPARTMENT FOR EDUCATION,DEPARTMENT FOR EDUCATION,17/08/2010,CAPITAL GRANTS,Curriculum and Pupil Well Being Improving Behaviour and Attendance Unit,DARLINGTON BOROUGH COUNCIL,4000032757,238541.43
DEPARTMENT FOR EDUCATION,DEPARTMENT FOR EDUCATION,17/08/2010,MISCELLANEOUS EXPENDITURE,Children and Families Child Well Being Group,DEPARTMENT OF HEALTH,4000032760,240000
DEPARTMENT FOR EDUCATION,DEPARTMENT FOR EDUCATION,17/08/2010,CURRENT GRANTS,School Formation and Investment Group,KNOLE ACADEMY TRUST,4000032769,55371.11
DEPARTMENT FOR EDUCATION,DEPARTMENT FOR EDUCATION,17/08/2010,CURRENT GRANTS,Curriculum and Pupil Well Being Improving Behaviour and Attendance Unit,KNOWSLEY MBC,4000032770,54742.24
DEPARTMENT FOR EDUCATION,DEPARTMENT FOR EDUCATION,17/08/2010,CAPITAL GRANTS,Curriculum and Pupil Well Being Improving Behaviour and Attendance Unit,KNOWSLEY MBC,4000032770,211062.73
DEPARTMENT FOR EDUCATION,DEPARTMENT FOR EDUCATION,17/08/2010,COMMUNICATIONS & PUBLICITY,Children and Families Group,LEWIS LIVE LTD,4000032771,81049.15
DEPARTMENT FOR EDUCATION,DEPARTMENT FOR EDUCATION,17/08/2010,FACILITIES OTHER,Commercial Group EFM,MITIE CLEANING & ENVIRONMENTAL SERVICES LTD,4000032774,191248.96
DEPARTMENT FOR EDUCATION,DEPARTMENT FOR EDUCATION,17/08/2010,CONTRACT PROGRAMME EXPENDITURE,Children and Families Child Well Being Group,NATIONAL CHILDRENS BUREAU,4000032781,31909
DEPARTMENT FOR EDUCATION,DEPARTMENT FOR EDUCATION,17/08/2010,CURRENT GRANTS,Curriculum and Pupil Well Being Curriculum Unit,NATIONAL SCIENCE LEARNING CENTRE,4000032782,500000
DEPARTMENT FOR EDUCATION,DEPARTMENT FOR EDUCATION,17/08/2010,CONTRACT PROGRAMME EXPENDITURE,Children and Families Group,PARENT INNOVATION CONSORTIUM,4000032784,160173.65
DEPARTMENT FOR EDUCATION,DEPARTMENT FOR EDUCATION,17/08/2010,CAPITAL GRANTS,Children and Families Group,PETERBOROUGH CITY COUNCIL,4000032786,324594
DEPARTMENT FOR EDUCATION,DEPARTMENT FOR EDUCATION,17/08/2010,CURRENT GRANTS,Children and Families Group,PLYMOUTH CITY COUNCIL,4000032791,84750
DEPARTMENT FOR EDUCATION,DEPARTMENT FOR EDUCATION,17/08/2010,CURRENT GRANTS,Curriculum and Pupil Well Being Curriculum Unit,ROYAL LIVERPOOL PHILHARMONIC,4000032794,209921.01
DEPARTMENT FOR EDUCATION,DEPARTMENT FOR EDUCATION,17/08/2010,CURRENT GRANTS,School Formation and Investment Group,SANDY HILL COMMUNITY PRIMARY,4000032797,25000
DEPARTMENT FOR EDUCATION,DEPARTMENT FOR EDUCATION,17/08/2010,CURRENT GRANTS,School Formation and Investment Group,SARUM ACADEMY,4000032798,41603.48
DEPARTMENT FOR EDUCATION,DEPARTMENT FOR EDUCATION,17/08/2010,MANAGEMENT CONSULTANCY,Children and Families Improving Information Sharing and Management Group,SERCO LTD,4000032799,29078.9
DEPARTMENT FOR EDUCATION,DEPARTMENT FOR EDUCATION,17/08/2010,CAPITAL GRANTS,Supporting Children and Young People Group Activities and Engagement,SHROPSHIRE COUNTY COUNCIL,4000032801,31075
DEPARTMENT FOR EDUCATION,DEPARTMENT FOR EDUCATION,17/08/2010,CURRENT GRANTS,14 - 19 Reform Qualification Standards and Reform,SKILLS ACTIVE,4000032802,75000
DEPARTMENT FOR EDUCATION,DEPARTMENT FOR EDUCATION,17/08/2010,CURRENT GRANTS,School Formation and Investment Group,SOMERVALE SCHOOL,4000032803,25000
DEPARTMENT FOR EDUCATION,DEPARTMENT FOR EDUCATION,17/08/2010,CURRENT GRANTS,School Formation and Investment Group,THE JOHN WALLIS CHURCH OF ENGLAND ACADEMY,4000032806,100000
DEPARTMENT FOR EDUCATION,DEPARTMENT FOR EDUCATION,17/08/2010,CONTRACT PROGRAMME EXPENDITURE,Children and Families Supporting Delivery Group,THE LEARNING TRUST,4000032807,40679.08
DEPARTMENT FOR EDUCATION,DEPARTMENT FOR EDUCATION,17/08/2010,RESEARCH & DEVELOPMENT COSTS,School Standards Group,THE UNIVERSITY OF YORK,4000032809,99948.8
DEPARTMENT FOR EDUCATION,DEPARTMENT FOR EDUCATION,17/08/2010,CONTRACT PROGRAMME EXPENDITURE,Children and Families Group,TRIBAL CONSULTING LTD,4000032810,34852.58
DEPARTMENT FOR EDUCATION,DEPARTMENT FOR EDUCATION,17/08/2010,CONTRACT PROGRAMME EXPENDITURE,Workforce Group Children and Families Workforce,TRIBAL CONSULTING LTD,4000032810,46481.93
DEPARTMENT FOR EDUCATION,DEPARTMENT FOR EDUCATION,17/08/2010,CURRENT GRANTS,14 - 19 Reform Qualification Standards and Reform,UNITED BRISTOL HEALTHCARE NHS TRUST,4000032813,50000
DEPARTMENT FOR EDUCATION,DEPARTMENT FOR EDUCATION,17/08/2010,RESEARCH & DEVELOPMENT COSTS,Children and Families Child Well Being Group,UNIVERSITY COLLEGE LONDON,4000032814,126157.94
DEPARTMENT FOR EDUCATION,DEPARTMENT FOR EDUCATION,17/08/2010,CONTRACT PROGRAMME EXPENDITURE,Workforce Group Children and Families Workforce,UNIVERSITY OF CENTRAL LANCASHIRE,4000032815,63662.73
DEPARTMENT FOR EDUCATION,DEPARTMENT FOR EDUCATION,17/08/2010,CONTRACT PROGRAMME EXPENDITURE,Workforce Group Young People Workforce,VT FOUR S LTD,4000032818,91967.25
DEPARTMENT FOR EDUCATION,DEPARTMENT FOR EDUCATION,17/08/2010,CAPITAL GRANTS,Supporting Children and Young People Group Activities and Engagement,WIRRAL COUNCIL,4000032821,45525
DEPARTMENT FOR EDUCATION,DEPARTMENT FOR EDUCATION,17/08/2010,CURRENT GRANTS,Supporting Children and Young People Group Activities and Engagement,WIRRAL COUNCIL,4000032821,105875
DEPARTMENT FOR EDUCATION,DEPARTMENT FOR EDUCATION,17/08/2010,CURRENT GRANTS,Curriculum and Pupil Well Being Curriculum Unit,YOUTH SPORT TRUST,4000032822,1517912
DEPARTMENT FOR EDUCATION,DEPARTMENT FOR EDUCATION,18/08/2010,CURRENT GRANTS,School Resources Group,BARNSLEY MBC,4000032846,5178240
DEPARTMENT FOR EDUCATION,DEPARTMENT FOR EDUCATION,18/08/2010,CURRENT GRANTS,School Resources Group,BATH & NORTH EAST SOMERSET COUNCIL,4000032847,3964480
DEPARTMENT FOR EDUCATION,DEPARTMENT FOR EDUCATION,18/08/2010,CURRENT GRANTS,School Resources Group,BEDFORD BOROUGH COUNCIL,4000032848,3848080
DEPARTMENT FOR EDUCATION,DEPARTMENT FOR EDUCATION,18/08/2010,CURRENT GRANTS,School Resources Group,BIRMINGHAM CITY COUNCIL,4000032849,31591680
DEPARTMENT FOR EDUCATION,DEPARTMENT FOR EDUCATION,18/08/2010,CURRENT GRANTS,School Resources Group,BLACKBURN WITH DARWEN BOROUGH COUNCIL,4000032850,4378240
DEPARTMENT FOR EDUCATION,DEPARTMENT FOR EDUCATION,18/08/2010,CURRENT GRANTS,School Resources Group,BLACKPOOL BOROUGH COUNCIL,4000032851,3469320
DEPARTMENT FOR EDUCATION,DEPARTMENT FOR EDUCATION,18/08/2010,CURRENT GRANTS,School Resources Group,BOLTON MBC,4000032852,7037720
DEPARTMENT FOR EDUCATION,DEPARTMENT FOR EDUCATION,18/08/2010,CURRENT GRANTS,School Resources Group,BOURNEMOUTH BOROUGH COUNCIL,4000032853,3171600
DEPARTMENT FOR EDUCATION,DEPARTMENT FOR EDUCATION,18/08/2010,CURRENT GRANTS,School Resources Group,BRACKNELL FOREST BOROUGH COUNCIL,4000032854,2618280
DEPARTMENT FOR EDUCATION,DEPARTMENT FOR EDUCATION,18/08/2010,CURRENT GRANTS,School Resources Group,BRIGHTON & HOVE CITY COUNCIL,4000032855,5263760
DEPARTMENT FOR EDUCATION,DEPARTMENT FOR EDUCATION,18/08/2010,CURRENT GRANTS,School Resources Group,BRISTOL CITY COUNCIL,4000032856,8043440
DEPARTMENT FOR EDUCATION,DEPARTMENT FOR EDUCATION,18/08/2010,CURRENT GRANTS,School Resources Group,BUCKINGHAMSHIRE COUNTY COUNCIL,4000032857,11854480
DEPARTMENT FOR EDUCATION,DEPARTMENT FOR EDUCATION,18/08/2010,CURRENT GRANTS,School Resources Group,BURY MBC,4000032858,4663120
DEPARTMENT FOR EDUCATION,DEPARTMENT FOR EDUCATION,18/08/2010,CURRENT GRANTS,School Resources Group,CALDERDALE MBC,4000032859,5414840
DEPARTMENT FOR EDUCATION,DEPARTMENT FOR EDUCATION,18/08/2010,CURRENT GRANTS,School Resources Group,CAMBRIDGESHIRE COUNTY COUNCIL,4000032860,12786760
DEPARTMENT FOR EDUCATION,DEPARTMENT FOR EDUCATION,18/08/2010,CURRENT GRANTS,School Resources Group,CENTRAL BEDFORDSHIRE COUNCIL,4000032861,5874840
DEPARTMENT FOR EDUCATION,DEPARTMENT FOR EDUCATION,18/08/2010,CURRENT GRANTS,School Resources Group,CHESHIRE EAST COUNCIL,4000032862,8025680
DEPARTMENT FOR EDUCATION,DEPARTMENT FOR EDUCATION,18/08/2010,CURRENT GRANTS,School Resources Group,CHESHIRE WEST & CHESTER COUNCIL,4000032863,7626680
DEPARTMENT FOR EDUCATION,DEPARTMENT FOR EDUCATION,18/08/2010,CURRENT GRANTS,School Resources Group,CITY OF BRADFORD METROPOLITAN DISTRICT COUNCIL,4000032864,14011320
DEPARTMENT FOR EDUCATION,DEPARTMENT FOR EDUCATION,18/08/2010,CURRENT GRANTS,School Resources Group,CITY OF LONDON,4000032865,80840
DEPARTMENT FOR EDUCATION,DEPARTMENT FOR EDUCATION,18/08/2010,CURRENT GRANTS,School Resources Group,CITY OF WESTMINSTER,4000032866,3881800
DEPARTMENT FOR EDUCATION,DEPARTMENT FOR EDUCATION,18/08/2010,CURRENT GRANTS,School Resources Group,CORNWALL COUNCIL,4000032867,11090960
DEPARTMENT FOR EDUCATION,DEPARTMENT FOR EDUCATION,18/08/2010,CURRENT GRANTS,School Resources Group,COUNCIL OF THE ISLES OF SCILLY,4000032868,116653
DEPARTMENT FOR EDUCATION,DEPARTMENT FOR EDUCATION,18/08/2010,CURRENT GRANTS,School Resources Group,COVENTRY CITY COUNCIL,4000032869,7920600
DEPARTMENT FOR EDUCATION,DEPARTMENT FOR EDUCATION,18/08/2010,CURRENT GRANTS,School Resources Group,CUMBRIA COUNTY COUNCIL,4000032870,10398440
DEPARTMENT FOR EDUCATION,DEPARTMENT FOR EDUCATION,18/08/2010,CURRENT GRANTS,School Resources Group,DARLINGTON BOROUGH COUNCIL,4000032871,2436360
DEPARTMENT FOR EDUCATION,DEPARTMENT FOR EDUCATION,18/08/2010,CURRENT GRANTS,School Resources Group,DERBY CITY COUNCIL,4000032872,6162040
DEPARTMENT FOR EDUCATION,DEPARTMENT FOR EDUCATION,18/08/2010,CURRENT GRANTS,School Resources Group,DERBYSHIRE COUNTY COUNCIL,4000032873,17030920
DEPARTMENT FOR EDUCATION,DEPARTMENT FOR EDUCATION,18/08/2010,CURRENT GRANTS,School Resources Group,DEVON COUNTY COUNCIL,4000032874,14854480
DEPARTMENT FOR EDUCATION,DEPARTMENT FOR EDUCATION,18/08/2010,CURRENT GRANTS,School Resources Group,DONCASTER MBC,4000032875,6844920
DEPARTMENT FOR EDUCATION,DEPARTMENT FOR EDUCATION,18/08/2010,CURRENT GRANTS,School Resources Group,DORSET COUNTY COUNCIL,4000032876,8547120
DEPARTMENT FOR EDUCATION,DEPARTMENT FOR EDUCATION,18/08/2010,CURRENT GRANTS,School Resources Group,DUDLEY MBC,4000032877,7990600
DEPARTMENT FOR EDUCATION,DEPARTMENT FOR EDUCATION,18/08/2010,CURRENT GRANTS,School Resources Group,DURHAM COUNTY COUNCIL,4000032878,11539720
DEPARTMENT FOR EDUCATION,DEPARTMENT FOR EDUCATION,18/08/2010,CURRENT GRANTS,School Resources Group,EAST RIDING OF YORKSHIRE,4000032879,7269240
DEPARTMENT FOR EDUCATION,DEPARTMENT FOR EDUCATION,18/08/2010,CURRENT GRANTS,School Resources Group,EAST SUSSEX COUNTY COUNCIL,4000032880,11038200
DEPARTMENT FOR EDUCATION,DEPARTMENT FOR EDUCATION,18/08/2010,CURRENT GRANTS,School Resources Group,ESSEX COUNTY COUNCIL,4000032881,31322600
DEPARTMENT FOR EDUCATION,DEPARTMENT FOR EDUCATION,18/08/2010,CURRENT GRANTS,School Resources Group,GATESHEAD MBC,4000032882,4333400
DEPARTMENT FOR EDUCATION,DEPARTMENT FOR EDUCATION,18/08/2010,CURRENT GRANTS,School Resources Group,GLOUCESTERSHIRE COUNTY COUNCIL,4000032883,12966360
DEPARTMENT FOR EDUCATION,DEPARTMENT FOR EDUCATION,18/08/2010,CURRENT GRANTS,School Resources Group,HALTON BOROUGH COUNCIL,4000032884,3241800
DEPARTMENT FOR EDUCATION,DEPARTMENT FOR EDUCATION,18/08/2010,CURRENT GRANTS,School Resources Group,HAMPSHIRE COUNTY COUNCIL,4000032885,28759720
DEPARTMENT FOR EDUCATION,DEPARTMENT FOR EDUCATION,18/08/2010,CURRENT GRANTS,School Resources Group,HARTLEPOOL BOROUGH COUNCIL,4000032886,2468680
DEPARTMENT FOR EDUCATION,DEPARTMENT FOR EDUCATION,18/08/2010,CURRENT GRANTS,School Resources Group,HEREFORDSHIRE COUNCIL,4000032887,3501400
DEPARTMENT FOR EDUCATION,DEPARTMENT FOR EDUCATION,18/08/2010,CURRENT GRANTS,School Resources Group,HERTFORDSHIRE,4000032888,26832240
DEPARTMENT FOR EDUCATION,DEPARTMENT FOR EDUCATION,18/08/2010,CURRENT GRANTS,School Resources Group,ISLE OF WIGHT COUNCIL,4000032889,3054840
DEPARTMENT FOR EDUCATION,DEPARTMENT FOR EDUCATION,18/08/2010,CURRENT GRANTS,School Resources Group,KENT COUNTY COUNCIL,4000032890,32356000
DEPARTMENT FOR EDUCATION,DEPARTMENT FOR EDUCATION,18/08/2010,CURRENT GRANTS,School Resources Group,KINGSTON UPON HULL COUNCIL,4000032891,5905720
DEPARTMENT FOR EDUCATION,DEPARTMENT FOR EDUCATION,18/08/2010,CURRENT GRANTS,School Resources Group,KIRKLEES COUNCIL,4000032892,10433280
DEPARTMENT FOR EDUCATION,DEPARTMENT FOR EDUCATION,18/08/2010,CURRENT GRANTS,School Resources Group,KNOWSLEY MBC,4000032893,4026920
DEPARTMENT FOR EDUCATION,DEPARTMENT FOR EDUCATION,18/08/2010,CURRENT GRANTS,School Resources Group,LANCASHIRE COUNTY COUNCIL,4000032894,27254240
DEPARTMENT FOR EDUCATION,DEPARTMENT FOR EDUCATION,18/08/2010,CURRENT GRANTS,School Resources Group,LEEDS CITY COUNCIL,4000032895,16560640
DEPARTMENT FOR EDUCATION,DEPARTMENT FOR EDUCATION,18/08/2010,CURRENT GRANTS,School Resources Group,LEICESTER CITY COUNCIL,4000032896,8166560
DEPARTMENT FOR EDUCATION,DEPARTMENT FOR EDUCATION,18/08/2010,CURRENT GRANTS,School Resources Group,LEICESTERSHIRE COUNTY COUNCIL,4000032897,13977160
DEPARTMENT FOR EDUCATION,DEPARTMENT FOR EDUCATION,18/08/2010,CURRENT GRANTS,School Resources Group,LINCOLNSHIRE COUNTY COUNCIL,4000032898,14842880
DEPARTMENT FOR EDUCATION,DEPARTMENT FOR EDUCATION,18/08/2010,CURRENT GRANTS,School Resources Group,LIVERPOOL CITY COUNCIL,4000032899,10900240
DEPARTMENT FOR EDUCATION,DEPARTMENT FOR EDUCATION,18/08/2010,CURRENT GRANTS,School Resources Group,LONDON BOROUGH OF BARKING & DAGENHAM COUNCIL,4000032900,6092840
DEPARTMENT FOR EDUCATION,DEPARTMENT FOR EDUCATION,18/08/2010,CURRENT GRANTS,School Resources Group,LONDON BOROUGH OF BARNET COUNCIL,4000032901,8531000
DEPARTMENT FOR EDUCATION,DEPARTMENT FOR EDUCATION,18/08/2010,CURRENT GRANTS,School Resources Group,LONDON BOROUGH OF BEXLEY COUNCIL,4000032902,6362600
DEPARTMENT FOR EDUCATION,DEPARTMENT FOR EDUCATION,18/08/2010,CURRENT GRANTS,School Resources Group,LONDON BOROUGH OF BRENT,4000032903,7966960
DEPARTMENT FOR EDUCATION,DEPARTMENT FOR EDUCATION,18/08/2010,CURRENT GRANTS,School Resources Group,LONDON BOROUGH OF BROMLEY COUNCIL,4000032904,7493480
DEPARTMENT FOR EDUCATION,DEPARTMENT FOR EDUCATION,18/08/2010,CURRENT GRANTS,School Resources Group,LONDON BOROUGH OF CAMDEN,4000032905,5362960
DEPARTMENT FOR EDUCATION,DEPARTMENT FOR EDUCATION,18/08/2010,CURRENT GRANTS,School Resources Group,LONDON BOROUGH OF CROYDON COUNCIL,4000032906,8215920
DEPARTMENT FOR EDUCATION,DEPARTMENT FOR EDUCATION,18/08/2010,CURRENT GRANTS,School Resources Group,LONDON BOROUGH OF EALING COUNCIL,4000032907,8653480
DEPARTMENT FOR EDUCATION,DEPARTMENT FOR EDUCATION,18/08/2010,CURRENT GRANTS,School Resources Group,LONDON BOROUGH OF ENFIELD COUNCIL,4000032908,8628400
DEPARTMENT FOR EDUCATION,DEPARTMENT FOR EDUCATION,18/08/2010,CURRENT GRANTS,School Resources Group,LONDON BOROUGH OF GREENWICH,4000032909,7536280
DEPARTMENT FOR EDUCATION,DEPARTMENT FOR EDUCATION,18/08/2010,CURRENT GRANTS,School Resources Group,LONDON BOROUGH OF HAMMERSMITH & FULHAM COUNCIL,4000032910,3755280
DEPARTMENT FOR EDUCATION,DEPARTMENT FOR EDUCATION,18/08/2010,CURRENT GRANTS,School Resources Group,LONDON BOROUGH OF HARINGEY,4000032911,6885160
DEPARTMENT FOR EDUCATION,DEPARTMENT FOR EDUCATION,18/08/2010,CURRENT GRANTS,School Resources Group,LONDON BOROUGH OF HARROW COUNCIL,4000032912,5775080
DEPARTMENT FOR EDUCATION,DEPARTMENT FOR EDUCATION,18/08/2010,CURRENT GRANTS,School Resources Group,LONDON BOROUGH OF HAVERING COUNCIL,4000032913,6316960
DEPARTMENT FOR EDUCATION,DEPARTMENT FOR EDUCATION,18/08/2010,CURRENT GRANTS,School Resources Group,LONDON BOROUGH OF HILLINGDON  COUNCIL,4000032914,7300200
DEPARTMENT FOR EDUCATION,DEPARTMENT FOR EDUCATION,18/08/2010,CURRENT GRANTS,School Resources Group,LONDON BOROUGH OF HOUNSLOW COUNCIL,4000032915,6640160
DEPARTMENT FOR EDUCATION,DEPARTMENT FOR EDUCATION,18/08/2010,CURRENT GRANTS,School Resources Group,LONDON BOROUGH OF ISLINGTON COUNCIL,4000032916,5197040
DEPARTMENT FOR EDUCATION,DEPARTMENT FOR EDUCATION,18/08/2010,CURRENT GRANTS,School Resources Group,LONDON BOROUGH OF LAMBETH COUNCIL,4000032917,7451280
DEPARTMENT FOR EDUCATION,DEPARTMENT FOR EDUCATION,18/08/2010,CURRENT GRANTS,School Resources Group,LONDON BOROUGH OF LEWISHAM,4000032918,7474240
DEPARTMENT FOR EDUCATION,DEPARTMENT FOR EDUCATION,18/08/2010,CURRENT GRANTS,School Resources Group,LONDON BOROUGH OF MERTON COUNCIL,4000032919,4223280
DEPARTMENT FOR EDUCATION,DEPARTMENT FOR EDUCATION,18/08/2010,CURRENT GRANTS,School Resources Group,LONDON BOROUGH OF NEWHAM,4000032920,10653200
DEPARTMENT FOR EDUCATION,DEPARTMENT FOR EDUCATION,18/08/2010,CURRENT GRANTS,School Resources Group,LONDON BOROUGH OF REDBRIDGE,4000032921,7849880
DEPARTMENT FOR EDUCATION,DEPARTMENT FOR EDUCATION,18/08/2010,CURRENT GRANTS,School Resources Group,LONDON BOROUGH OF RICHMOND UPON THAMES,4000032922,3768920
DEPARTMENT FOR EDUCATION,DEPARTMENT FOR EDUCATION,18/08/2010,CURRENT GRANTS,School Resources Group,LONDON BOROUGH OF SOUTHWARK COUNCIL,4000032923,7068560
DEPARTMENT FOR EDUCATION,DEPARTMENT FOR EDUCATION,18/08/2010,CURRENT GRANTS,School Resources Group,LONDON BOROUGH OF SUTTON,4000032924,5290320
DEPARTMENT FOR EDUCATION,DEPARTMENT FOR EDUCATION,18/08/2010,CURRENT GRANTS,School Resources Group,LONDON BOROUGH OF TOWER HAMLETS COUNCIL,4000032925,9824840
DEPARTMENT FOR EDUCATION,DEPARTMENT FOR EDUCATION,18/08/2010,CURRENT GRANTS,School Resources Group,LONDON BOROUGH OF WALTHAM FOREST COUNCIL,4000032926,7035880
DEPARTMENT FOR EDUCATION,DEPARTMENT FOR EDUCATION,18/08/2010,CURRENT GRANTS,School Resources Group,LONDON BOROUGH OF WANDSWORTH COUNCIL,4000032927,6147120
DEPARTMENT FOR EDUCATION,DEPARTMENT FOR EDUCATION,18/08/2010,CURRENT GRANTS,School Resources Group,LUTON BOROUGH COUNCIL,4000032928,5735320
DEPARTMENT FOR EDUCATION,DEPARTMENT FOR EDUCATION,18/08/2010,CURRENT GRANTS,School Resources Group,MANCHESTER CITY COUNCIL,4000032929,11518120
DEPARTMENT FOR EDUCATION,DEPARTMENT FOR EDUCATION,18/08/2010,CURRENT GRANTS,School Resources Group,MEDWAY COUNCIL,4000032930,6520040
DEPARTMENT FOR EDUCATION,DEPARTMENT FOR EDUCATION,18/08/2010,CURRENT GRANTS,School Resources Group,METROPOLITAN BOROUGH OF WIRRAL,4000032931,7638720
DEPARTMENT FOR EDUCATION,DEPARTMENT FOR EDUCATION,18/08/2010,CURRENT GRANTS,School Resources Group,MIDDLESBROUGH COUNCIL,4000032932,3269640
DEPARTMENT FOR EDUCATION,DEPARTMENT FOR EDUCATION,18/08/2010,CURRENT GRANTS,School Resources Group,MILTON KEYNES COUNCIL,4000032933,6430200
DEPARTMENT FOR EDUCATION,DEPARTMENT FOR EDUCATION,18/08/2010,CURRENT GRANTS,School Resources Group,NEWCASTLE CITY COUNCIL,4000032934,5761520
DEPARTMENT FOR EDUCATION,DEPARTMENT FOR EDUCATION,18/08/2010,CURRENT GRANTS,School Resources Group,NORFOLK COUNTY COUNCIL,4000032935,17029480
DEPARTMENT FOR EDUCATION,DEPARTMENT FOR EDUCATION,18/08/2010,CURRENT GRANTS,School Resources Group,NORTH EAST LINCOLNSHIRE COUNCIL,4000032936,3696640
DEPARTMENT FOR EDUCATION,DEPARTMENT FOR EDUCATION,18/08/2010,CURRENT GRANTS,School Resources Group,NORTH LINCOLNSHIRE COUNCIL,4000032937,3825960
DEPARTMENT FOR EDUCATION,DEPARTMENT FOR EDUCATION,18/08/2010,CURRENT GRANTS,School Resources Group,NORTH SOMERSET COUNCIL,4000032938,4432360
DEPARTMENT FOR EDUCATION,DEPARTMENT FOR EDUCATION,18/08/2010,CURRENT GRANTS,School Resources Group,NORTH TYNESIDE,4000032939,4454560
DEPARTMENT FOR EDUCATION,DEPARTMENT FOR EDUCATION,18/08/2010,CURRENT GRANTS,School Resources Group,NORTH YORKSHIRE COUNTY COUNCIL,4000032940,13119960
DEPARTMENT FOR EDUCATION,DEPARTMENT FOR EDUCATION,18/08/2010,CURRENT GRANTS,School Resources Group,NORTHAMPTONSHIRE COUNTY COUNCIL,4000032941,15572720
DEPARTMENT FOR EDUCATION,DEPARTMENT FOR EDUCATION,18/08/2010,CURRENT GRANTS,School Resources Group,NORTHUMBERLAND COUNTY COUNCIL,4000032942,6387560
DEPARTMENT FOR EDUCATION,DEPARTMENT FOR EDUCATION,18/08/2010,CURRENT GRANTS,School Resources Group,NOTTINGHAM CITY COUNCIL,4000032943,6283800
DEPARTMENT FOR EDUCATION,DEPARTMENT FOR EDUCATION,18/08/2010,CURRENT GRANTS,School Resources Group,NOTTINGHAMSHIRE COUNTY COUNCIL,4000032944,17573240
DEPARTMENT FOR EDUCATION,DEPARTMENT FOR EDUCATION,18/08/2010,CURRENT GRANTS,School Resources Group,OLDHAM MBC,4000032945,6535800
DEPARTMENT FOR EDUCATION,DEPARTMENT FOR EDUCATION,18/08/2010,CURRENT GRANTS,School Resources Group,OXFORDSHIRE COUNTY COUNCIL,4000032946,13434040
DEPARTMENT FOR EDUCATION,DEPARTMENT FOR EDUCATION,18/08/2010,CURRENT GRANTS,School Resources Group,PETERBOROUGH CITY COUNCIL,4000032947,4708000
DEPARTMENT FOR EDUCATION,DEPARTMENT FOR EDUCATION,18/08/2010,CURRENT GRANTS,School Resources Group,PLYMOUTH CITY COUNCIL,4000032948,5648320
DEPARTMENT FOR EDUCATION,DEPARTMENT FOR EDUCATION,18/08/2010,CURRENT GRANTS,School Resources Group,POOLE BOROUGH COUNCIL,4000032949,2807640
DEPARTMENT FOR EDUCATION,DEPARTMENT FOR EDUCATION,18/08/2010,CURRENT GRANTS,School Resources Group,PORTSMOUTH CITY COUNCIL,4000032950,4161880
DEPARTMENT FOR EDUCATION,DEPARTMENT FOR EDUCATION,18/08/2010,CURRENT GRANTS,School Resources Group,READING BOROUGH COUNCIL,4000032951,2953400
DEPARTMENT FOR EDUCATION,DEPARTMENT FOR EDUCATION,18/08/2010,CURRENT GRANTS,School Resources Group,REDCAR & CLEVELAND BOROUGH COUNCIL,4000032952,3525280
DEPARTMENT FOR EDUCATION,DEPARTMENT FOR EDUCATION,18/08/2010,CURRENT GRANTS,School Resources Group,ROCHDALE MBC,4000032953,5736320
DEPARTMENT FOR EDUCATION,DEPARTMENT FOR EDUCATION,18/08/2010,CURRENT GRANTS,School Resources Group,ROTHERHAM MBC,4000032954,6866800
DEPARTMENT FOR EDUCATION,DEPARTMENT FOR EDUCATION,18/08/2010,CURRENT GRANTS,School Resources Group,ROYAL BOROUGH OF KINGSTON UPON THAMES COUNCIL,4000032955,3694040
DEPARTMENT FOR EDUCATION,DEPARTMENT FOR EDUCATION,18/08/2010,CURRENT GRANTS,School Resources Group,RUTLAND COUNTY COUNCIL,4000032956,863040
DEPARTMENT FOR EDUCATION,DEPARTMENT FOR EDUCATION,18/08/2010,CURRENT GRANTS,School Resources Group,SALFORD CITY COUNCIL,4000032957,5419120
DEPARTMENT FOR EDUCATION,DEPARTMENT FOR EDUCATION,18/08/2010,CURRENT GRANTS,School Resources Group,SANDWELL MBC,4000032958,7795160
DEPARTMENT FOR EDUCATION,DEPARTMENT FOR EDUCATION,18/08/2010,CURRENT GRANTS,School Resources Group,SEFTON COUNCIL,4000032959,6583040
DEPARTMENT FOR EDUCATION,DEPARTMENT FOR EDUCATION,18/08/2010,CURRENT GRANTS,School Resources Group,SHEFFIELD CITY COUNCIL,4000032960,11655440
DEPARTMENT FOR EDUCATION,DEPARTMENT FOR EDUCATION,18/08/2010,CURRENT GRANTS,School Resources Group,SHROPSHIRE COUNCIL,4000032961,6099880
DEPARTMENT FOR EDUCATION,DEPARTMENT FOR EDUCATION,18/08/2010,CURRENT GRANTS,School Resources Group,SLOUGH BOROUGH COUNCIL,4000032962,3945920
DEPARTMENT FOR EDUCATION,DEPARTMENT FOR EDUCATION,18/08/2010,CURRENT GRANTS,School Resources Group,SOLIHULL MBC,4000032963,5048280
DEPARTMENT FOR EDUCATION,DEPARTMENT FOR EDUCATION,18/08/2010,CURRENT GRANTS,School Resources Group,SOMERSET COUNTY COUNCIL,4000032964,11036040
DEPARTMENT FOR EDUCATION,DEPARTMENT FOR EDUCATION,18/08/2010,CURRENT GRANTS,School Resources Group,SOUTH GLOUCEST,4000032965,5642320
DEPARTMENT FOR EDUCATION,DEPARTMENT FOR EDUCATION,18/08/2010,CURRENT GRANTS,School Resources Group,SOUTH TYNESIDE,4000032966,3650440
DEPARTMENT FOR EDUCATION,DEPARTMENT FOR EDUCATION,18/08/2010,CURRENT GRANTS,School Resources Group,SOUTHAMPTON CITY COUNCIL,4000032967,4673720
DEPARTMENT FOR EDUCATION,DEPARTMENT FOR EDUCATION,18/08/2010,CURRENT GRANTS,School Resources Group,SOUTHEND ON SEA BOROUGH COUNCIL,4000032968,4360480
DEPARTMENT FOR EDUCATION,DEPARTMENT FOR EDUCATION,18/08/2010,CURRENT GRANTS,School Resources Group,ST HELENS MBC,4000032969,4158080
DEPARTMENT FOR EDUCATION,DEPARTMENT FOR EDUCATION,18/08/2010,CURRENT GRANTS,School Resources Group,STAFFORDSHIRE COUNCIL,4000032970,18632200
DEPARTMENT FOR EDUCATION,DEPARTMENT FOR EDUCATION,18/08/2010,CURRENT GRANTS,School Resources Group,STOCKPORT MBC,4000032971,6326840
DEPARTMENT FOR EDUCATION,DEPARTMENT FOR EDUCATION,18/08/2010,CURRENT GRANTS,School Resources Group,STOCKTON ON TEES,4000032972,4570720
DEPARTMENT FOR EDUCATION,DEPARTMENT FOR EDUCATION,18/08/2010,CURRENT GRANTS,School Resources Group,STOKE ON TRENT CITY COUNCIL,4000032973,5801280
DEPARTMENT FOR EDUCATION,DEPARTMENT FOR EDUCATION,18/08/2010,CURRENT GRANTS,School Resources Group,SUFFOLK COUNTY COUNCIL,4000032974,15141920
DEPARTMENT FOR EDUCATION,DEPARTMENT FOR EDUCATION,18/08/2010,CURRENT GRANTS,School Resources Group,SUNDERLAND CITY COUNCIL,4000032975,6322480
DEPARTMENT FOR EDUCATION,DEPARTMENT FOR EDUCATION,18/08/2010,CURRENT GRANTS,School Resources Group,SURREY COUNTY COUNCIL,4000032976,24167160
DEPARTMENT FOR EDUCATION,DEPARTMENT FOR EDUCATION,18/08/2010,CURRENT GRANTS,School Resources Group,SWINDON BOROUGH COUNCIL,4000032977,4652000
DEPARTMENT FOR EDUCATION,DEPARTMENT FOR EDUCATION,18/08/2010,CURRENT GRANTS,School Resources Group,TAMESIDE MBC,4000032978,5327400
DEPARTMENT FOR EDUCATION,DEPARTMENT FOR EDUCATION,18/08/2010,CURRENT GRANTS,School Resources Group,TELFORD & WREKIN COUNCIL,4000032979,3965760
DEPARTMENT FOR EDUCATION,DEPARTMENT FOR EDUCATION,18/08/2010,CURRENT GRANTS,School Resources Group,THE LONDON BOROUGH OF HACKNEY,4000032980,6493040
DEPARTMENT FOR EDUCATION,DEPARTMENT FOR EDUCATION,18/08/2010,CURRENT GRANTS,School Resources Group,THE ROYAL BOROUGH OF KENSINGTON & CHELSEA COUNCIL,4000032981,2703160
DEPARTMENT FOR EDUCATION,DEPARTMENT FOR EDUCATION,18/08/2010,CURRENT GRANTS,School Resources Group,THE ROYAL BOROUGH OF WINDSOR & MAIDENHEAD,4000032982,3205120
DEPARTMENT FOR EDUCATION,DEPARTMENT FOR EDUCATION,18/08/2010,CURRENT GRANTS,School Resources Group,THURROCK COUNCIL,4000032983,3925080
DEPARTMENT FOR EDUCATION,DEPARTMENT FOR EDUCATION,18/08/2010,CURRENT GRANTS,School Resources Group,TORBAY COUNCIL,4000032984,2929320
DEPARTMENT FOR EDUCATION,DEPARTMENT FOR EDUCATION,18/08/2010,CURRENT GRANTS,School Resources Group,TRAFFORD MB COUNCIL,4000032985,5634120
DEPARTMENT FOR EDUCATION,DEPARTMENT FOR EDUCATION,18/08/2010,CURRENT GRANTS,School Resources Group,WAKEFIELD MDC,4000032986,7544760
DEPARTMENT FOR EDUCATION,DEPARTMENT FOR EDUCATION,18/08/2010,CURRENT GRANTS,School Resources Group,WALSALL MBC,4000032987,7017240
DEPARTMENT FOR EDUCATION,DEPARTMENT FOR EDUCATION,18/08/2010,CURRENT GRANTS,School Resources Group,WARRINGTON BOROUGH COUNCIL,4000032988,4965000
DEPARTMENT FOR EDUCATION,DEPARTMENT FOR EDUCATION,18/08/2010,CURRENT GRANTS,School Resources Group,WARWICKSHIRE COUNTY COUNCIL,4000032989,11809920
DEPARTMENT FOR EDUCATION,DEPARTMENT FOR EDUCATION,18/08/2010,CURRENT GRANTS,School Resources Group,WEST BERKSHIRE COUNCIL,4000032990,4008920
DEPARTMENT FOR EDUCATION,DEPARTMENT FOR EDUCATION,18/08/2010,CURRENT GRANTS,School Resources Group,WEST SUSSEX COUNTY COUNCIL,4000032991,16521400
DEPARTMENT FOR EDUCATION,DEPARTMENT FOR EDUCATION,18/08/2010,CURRENT GRANTS,School Resources Group,WIGAN MBC,4000032992,7709240
DEPARTMENT FOR EDUCATION,DEPARTMENT FOR EDUCATION,18/08/2010,CURRENT GRANTS,School Resources Group,WILTSHIRE COUNCIL,4000032993,9988880
DEPARTMENT FOR EDUCATION,DEPARTMENT FOR EDUCATION,18/08/2010,CURRENT GRANTS,School Resources Group,WOKINGHAM BOROUGH COUNCIL,4000032994,3690800
DEPARTMENT FOR EDUCATION,DEPARTMENT FOR EDUCATION,18/08/2010,CURRENT GRANTS,School Resources Group,WOLVERHAMPTON CITY COUNCIL,4000032995,6047400
DEPARTMENT FOR EDUCATION,DEPARTMENT FOR EDUCATION,18/08/2010,CURRENT GRANTS,School Resources Group,WORCESTERSHIRE COUNTY COUNCIL,4000032996,11898880
DEPARTMENT FOR EDUCATION,DEPARTMENT FOR EDUCATION,18/08/2010,CURRENT GRANTS,School Resources Group,YORK CITY COUNCIL,4000032997,3716200
DEPARTMENT FOR EDUCATION,DEPARTMENT FOR EDUCATION,18/08/2010,CURRENT GRANTS,Curriculum and Pupil Well Being,CHETHAMS SCHOOL OF MUSIC,4000032998,1900000
DEPARTMENT FOR EDUCATION,DEPARTMENT FOR EDUCATION,18/08/2010,CURRENT GRANTS,School Formation and Investment Group,CHURCH ACADEMY SERVICES LTD,4000032999,182867.7
DEPARTMENT FOR EDUCATION,DEPARTMENT FOR EDUCATION,18/08/2010,CAPITAL GRANTS,Supporting Children and Young People Group Activities and Engagement,DERBY CITY COUNCIL,4000033001,32525
DEPARTMENT FOR EDUCATION,DEPARTMENT FOR EDUCATION,18/08/2010,CAPITAL GRANTS,School Formation and Investment Group,HARRIS BOYS ACADEMY EAST DULWICH,4000033003,1341867.05
DEPARTMENT FOR EDUCATION,DEPARTMENT FOR EDUCATION,18/08/2010,CAPITAL GRANTS,School Formation and Investment Group,HARRIS CTC,4000033004,1200778.12
DEPARTMENT FOR EDUCATION,DEPARTMENT FOR EDUCATION,18/08/2010,CONTRACT PROGRAMME EXPENDITURE,School Formation and Investment Group,PKF UK LIMITED,4000033011,79272.94
DEPARTMENT FOR EDUCATION,DEPARTMENT FOR EDUCATION,18/08/2010,CURRENT GRANTS,School Formation and Investment Group,THE QUEST ACADEMY,4000033015,95495.35
DEPARTMENT FOR EDUCATION,DEPARTMENT FOR EDUCATION,18/08/2010,CURRENT GRANTS,Curriculum and Pupil Well Being,THE ROYAL BALLET SCHOOL,4000033016,1400000
DEPARTMENT FOR EDUCATION,DEPARTMENT FOR EDUCATION,18/08/2010,CURRENT GRANTS,School Formation and Investment Group,THE ST ALDHELMS ACADEMY,4000033017,37901.74
DEPARTMENT FOR EDUCATION,DEPARTMENT FOR EDUCATION,18/08/2010,CONTRACT PROGRAMME EXPENDITURE,School Formation and Investment Group,TRIBAL EDUCATION,4000033020,320578.1
DEPARTMENT FOR EDUCATION,DEPARTMENT FOR EDUCATION,18/08/2010,CURRENT GRANTS,School Formation and Investment Group,TUDOR GRANGE ACADEMY WORCESTER,4000033021,100000
DEPARTMENT FOR EDUCATION,DEPARTMENT FOR EDUCATION,18/08/2010,CONTRACT PROGRAMME EXPENDITURE,14 - 19 Reform Young People Guidance,VT CAREERS MANAGEMENT LTD,4000033022,45247.52
DEPARTMENT FOR EDUCATION,TEACHERS PENSION SCHEME,19/08/2010,FUNDING TO PAY TEACHERS PENSIONS,Workforce Group - TPS,CAPITA TP HSBC,1000275,764713.99
DEPARTMENT FOR EDUCATION,TEACHERS PENSION SCHEME,19/08/2010,FUNDING TO PAY TEACHERS PENSIONS,Workforce Group - TPS,CAPITA TP NATWEST,1000276,31199322.14
DEPARTMENT FOR EDUCATION,DEPARTMENT FOR EDUCATION,19/08/2010,GRANT IN AID,Workforce Group Young People Workforce,NATIONAL COLLEGE OF SCHOOL LEADERSHIP,2000201,1500000
DEPARTMENT FOR EDUCATION,DEPARTMENT FOR EDUCATION,19/08/2010,CAPITAL GRANTS,Children and Families Early Years Extended Schools and Special Needs,ESSEX COUNTY COUNCIL,4000033023,2310448
DEPARTMENT FOR EDUCATION,DEPARTMENT FOR EDUCATION,19/08/2010,CAPITAL GRANTS,Children and Families Early Years Extended Schools and Special Needs,TORBAY COUNCIL,4000033024,225034
DEPARTMENT FOR EDUCATION,DEPARTMENT FOR EDUCATION,19/08/2010,CAPITAL GRANTS,Children and Families Early Years Extended Schools and Special Needs,WEST BERKSHIRE COUNCIL,4000033025,730542
DEPARTMENT FOR EDUCATION,DEPARTMENT FOR EDUCATION,19/08/2010,CAPITAL GRANTS,Children and Families Early Years Extended Schools and Special Needs,WEST SUSSEX COUNTY COUNCIL,4000033026,722499
DEPARTMENT FOR EDUCATION,DEPARTMENT FOR EDUCATION,19/08/2010,CONTRACT PROGRAMME EXPENDITURE,Children and Families Group,BEGRAND NET LTD,4000033055,81226.57
DEPARTMENT FOR EDUCATION,DEPARTMENT FOR EDUCATION,19/08/2010,IS/IT,"Strategic Analysis, Research and Policy Impact Group",CAPGEMINI UK PLC,4000033061,37.28
DEPARTMENT FOR EDUCATION,DEPARTMENT FOR EDUCATION,19/08/2010,IS/IT,Chief Information Officer Group,CAPGEMINI UK PLC,4000033061,14248.17
DEPARTMENT FOR EDUCATION,DEPARTMENT FOR EDUCATION,19/08/2010,IS/IT,Chief Information Officer Group,CAPGEMINI UK PLC,4000033061,31523.58
DEPARTMENT FOR EDUCATION,DEPARTMENT FOR EDUCATION,19/08/2010,IS/IT,Chief Information Officer Group,CAPGEMINI UK PLC,4000033061,92424.3
DEPARTMENT FOR EDUCATION,DEPARTMENT FOR EDUCATION,19/08/2010,IS/IT,"Strategic Analysis, Research and Policy Impact Group",CAPGEMINI UK PLC,4000033061,104770.01
DEPARTMENT FOR EDUCATION,DEPARTMENT FOR EDUCATION,19/08/2010,IS/IT,Chief Information Officer Group,CAPGEMINI UK PLC,4000033061,121917.63
DEPARTMENT FOR EDUCATION,DEPARTMENT FOR EDUCATION,19/08/2010,CAPITAL LICENCES & INTANGIBLES,Corporate and Internal Communications Group,CAPGEMINI UK PLC,4000033061,231071.39
DEPARTMENT FOR EDUCATION,DEPARTMENT FOR EDUCATION,19/08/2010,CONTRACT PROGRAMME EXPENDITURE,School Standards Group,CAPITA BUSINESS SERVICES LTD,4000033062,1204567.7
DEPARTMENT FOR EDUCATION,DEPARTMENT FOR EDUCATION,19/08/2010,STAFF EXPENSES / COSTS,Children and Families Group,CARLSON WAGONLIT TRAVEL,4000033063,-254.75
DEPARTMENT FOR EDUCATION,DEPARTMENT FOR EDUCATION,19/08/2010,STAFF EXPENSES / COSTS,Commercial Group Strategic Functions,CARLSON WAGONLIT TRAVEL,4000033063,-217.88
DEPARTMENT FOR EDUCATION,DEPARTMENT FOR EDUCATION,19/08/2010,STAFF EXPENSES / COSTS,Commercial Group Schools and Category Management,CARLSON WAGONLIT TRAVEL,4000033063,-160.08
DEPARTMENT FOR EDUCATION,DEPARTMENT FOR EDUCATION,19/08/2010,STAFF EXPENSES / COSTS,"Strategic Analysis, Research and Policy Impact Group",CARLSON WAGONLIT TRAVEL,4000033063,-146.04
DEPARTMENT FOR EDUCATION,DEPARTMENT FOR EDUCATION,19/08/2010,STAFF EXPENSES / COSTS,Young People  Directorate Apprenticeships Group,CARLSON WAGONLIT TRAVEL,4000033063,-23.99
DEPARTMENT FOR EDUCATION,DEPARTMENT FOR EDUCATION,19/08/2010,STAFF EXPENSES / COSTS,School Performance and Reform Group,CARLSON WAGONLIT TRAVEL,4000033063,-2.88
DEPARTMENT FOR EDUCATION,DEPARTMENT FOR EDUCATION,19/08/2010,STAFF EXPENSES / COSTS,Children and Families Child Well Being Group,CARLSON WAGONLIT TRAVEL,4000033063,-0.25
DEPARTMENT FOR EDUCATION,DEPARTMENT FOR EDUCATION,19/08/2010,STAFF EXPENSES / COSTS,Children and Families Directorate,CARLSON WAGONLIT TRAVEL,4000033063,-0.25
DEPARTMENT FOR EDUCATION,DEPARTMENT FOR EDUCATION,19/08/2010,STAFF EXPENSES / COSTS,People and Change,CARLSON WAGONLIT TRAVEL,4000033063,1.32
DEPARTMENT FOR EDUCATION,DEPARTMENT FOR EDUCATION,19/08/2010,STAFF EXPENSES / COSTS,Customer Contact and Business Development Group,CARLSON WAGONLIT TRAVEL,4000033063,19.8
DEPARTMENT FOR EDUCATION,DEPARTMENT FOR EDUCATION,19/08/2010,STAFF EXPENSES / COSTS,Children and Families Group,CARLSON WAGONLIT TRAVEL,4000033063,27.83
DEPARTMENT FOR EDUCATION,DEPARTMENT FOR EDUCATION,19/08/2010,STAFF EXPENSES / COSTS,Young People Participation and Attainment Group,CARLSON WAGONLIT TRAVEL,4000033063,31.79
DEPARTMENT FOR EDUCATION,DEPARTMENT FOR EDUCATION,19/08/2010,STAFF EXPENSES / COSTS,People and Change,CARLSON WAGONLIT TRAVEL,4000033063,33.78
DEPARTMENT FOR EDUCATION,DEPARTMENT FOR EDUCATION,19/08/2010,STAFF EXPENSES / COSTS,School Analysis and Research,CARLSON WAGONLIT TRAVEL,4000033063,44.33
DEPARTMENT FOR EDUCATION,DEPARTMENT FOR EDUCATION,19/08/2010,STAFF EXPENSES / COSTS,School Performance and Reform Group,CARLSON WAGONLIT TRAVEL,4000033063,48.45
DEPARTMENT FOR EDUCATION,DEPARTMENT FOR EDUCATION,19/08/2010,STAFF EXPENSES / COSTS,School Standards Group,CARLSON WAGONLIT TRAVEL,4000033063,50.7
DEPARTMENT FOR EDUCATION,DEPARTMENT FOR EDUCATION,19/08/2010,STAFF EXPENSES / COSTS,School Standards Group,CARLSON WAGONLIT TRAVEL,4000033063,50.7
DEPARTMENT FOR EDUCATION,DEPARTMENT FOR EDUCATION,19/08/2010,STAFF EXPENSES / COSTS,Chief Information Officer Group,CARLSON WAGONLIT TRAVEL,4000033063,58.66
DEPARTMENT FOR EDUCATION,DEPARTMENT FOR EDUCATION,19/08/2010,STAFF EXPENSES / COSTS,Commercial Group Schools and Category Management,CARLSON WAGONLIT TRAVEL,4000033063,59.83
DEPARTMENT FOR EDUCATION,DEPARTMENT FOR EDUCATION,19/08/2010,STAFF EXPENSES / COSTS,Young People Directorate Support,CARLSON WAGONLIT TRAVEL,4000033063,68.78
DEPARTMENT FOR EDUCATION,DEPARTMENT FOR EDUCATION,19/08/2010,STAFF EXPENSES / COSTS,Commercial Group Shared Services and Children and Young People,CARLSON WAGONLIT TRAVEL,4000033063,70.47
DEPARTMENT FOR EDUCATION,DEPARTMENT FOR EDUCATION,19/08/2010,STAFF EXPENSES / COSTS,Corporate and Internal Communications Group,CARLSON WAGONLIT TRAVEL,4000033063,71.12
DEPARTMENT FOR EDUCATION,DEPARTMENT FOR EDUCATION,19/08/2010,STAFF EXPENSES / COSTS,School Performance and Reform Group,CARLSON WAGONLIT TRAVEL,4000033063,73.34
DEPARTMENT FOR EDUCATION,DEPARTMENT FOR EDUCATION,19/08/2010,STAFF EXPENSES / COSTS,School Resources Group,CARLSON WAGONLIT TRAVEL,4000033063,75.54
DEPARTMENT FOR EDUCATION,DEPARTMENT FOR EDUCATION,19/08/2010,STAFF EXPENSES / COSTS,Children and Families Child Well Being Group,CARLSON WAGONLIT TRAVEL,4000033063,79.62
DEPARTMENT FOR EDUCATION,DEPARTMENT FOR EDUCATION,19/08/2010,STAFF EXPENSES / COSTS,Chief Information Officer Group,CARLSON WAGONLIT TRAVEL,4000033063,80.72
DEPARTMENT FOR EDUCATION,DEPARTMENT FOR EDUCATION,19/08/2010,STAFF EXPENSES / COSTS,Commercial Group Shared Services and Children and Young People,CARLSON WAGONLIT TRAVEL,4000033063,87.22
DEPARTMENT FOR EDUCATION,DEPARTMENT FOR EDUCATION,19/08/2010,STAFF EXPENSES / COSTS,School Standards Group,CARLSON WAGONLIT TRAVEL,4000033063,92.47
DEPARTMENT FOR EDUCATION,DEPARTMENT FOR EDUCATION,19/08/2010,STAFF EXPENSES / COSTS,Commercial Group Schools and Category Management,CARLSON WAGONLIT TRAVEL,4000033063,96.02
DEPARTMENT FOR EDUCATION,DEPARTMENT FOR EDUCATION,19/08/2010,STAFF EXPENSES / COSTS,Corporate and Internal Communications Group,CARLSON WAGONLIT TRAVEL,4000033063,98.74
DEPARTMENT FOR EDUCATION,DEPARTMENT FOR EDUCATION,19/08/2010,STAFF EXPENSES / COSTS,Finance Group,CARLSON WAGONLIT TRAVEL,4000033063,103.14
DEPARTMENT FOR EDUCATION,DEPARTMENT FOR EDUCATION,19/08/2010,STAFF EXPENSES / COSTS,Commercial Group Schools and Category Management,CARLSON WAGONLIT TRAVEL,4000033063,107.83
DEPARTMENT FOR EDUCATION,DEPARTMENT FOR EDUCATION,19/08/2010,STAFF EXPENSES / COSTS,People and Change,CARLSON WAGONLIT TRAVEL,4000033063,110.28
DEPARTMENT FOR EDUCATION,DEPARTMENT FOR EDUCATION,19/08/2010,STAFF EXPENSES / COSTS,Chief Information Officer Group,CARLSON WAGONLIT TRAVEL,4000033063,110.5
DEPARTMENT FOR EDUCATION,DEPARTMENT FOR EDUCATION,19/08/2010,STAFF EXPENSES / COSTS,Curriculum and Pupil Well Being Curriculum Unit,CARLSON WAGONLIT TRAVEL,4000033063,110.86
DEPARTMENT FOR EDUCATION,DEPARTMENT FOR EDUCATION,19/08/2010,STAFF EXPENSES / COSTS,School Analysis and Research,CARLSON WAGONLIT TRAVEL,4000033063,118.81
DEPARTMENT FOR EDUCATION,DEPARTMENT FOR EDUCATION,19/08/2010,STAFF EXPENSES / COSTS,People and Change,CARLSON WAGONLIT TRAVEL,4000033063,134.62
DEPARTMENT FOR EDUCATION,DEPARTMENT FOR EDUCATION,19/08/2010,STAFF EXPENSES / COSTS,Chief Information Officer Group,CARLSON WAGONLIT TRAVEL,4000033063,135.12
DEPARTMENT FOR EDUCATION,DEPARTMENT FOR EDUCATION,19/08/2010,STAFF EXPENSES / COSTS,"Strategic Analysis, Research and Policy Impact Group",CARLSON WAGONLIT TRAVEL,4000033063,140.2
DEPARTMENT FOR EDUCATION,DEPARTMENT FOR EDUCATION,19/08/2010,STAFF EXPENSES / COSTS,Commercial Group Strategic Functions,CARLSON WAGONLIT TRAVEL,4000033063,145.5
DEPARTMENT FOR EDUCATION,DEPARTMENT FOR EDUCATION,19/08/2010,STAFF EXPENSES / COSTS,Children and Families Supporting Delivery Group,CARLSON WAGONLIT TRAVEL,4000033063,146.56
DEPARTMENT FOR EDUCATION,DEPARTMENT FOR EDUCATION,19/08/2010,STAFF EXPENSES / COSTS,Children and Families Early Years Extended Schools and Special Needs,CARLSON WAGONLIT TRAVEL,4000033063,149.83
DEPARTMENT FOR EDUCATION,DEPARTMENT FOR EDUCATION,19/08/2010,STAFF EXPENSES / COSTS,Commercial Group Strategic Functions,CARLSON WAGONLIT TRAVEL,4000033063,150.39
DEPARTMENT FOR EDUCATION,DEPARTMENT FOR EDUCATION,19/08/2010,STAFF EXPENSES / COSTS,School Analysis and Research,CARLSON WAGONLIT TRAVEL,4000033063,151.39
DEPARTMENT FOR EDUCATION,DEPARTMENT FOR EDUCATION,19/08/2010,STAFF EXPENSES / COSTS,Customer Contact and Business Development Group,CARLSON WAGONLIT TRAVEL,4000033063,151.97
DEPARTMENT FOR EDUCATION,DEPARTMENT FOR EDUCATION,19/08/2010,STAFF EXPENSES / COSTS,People and Change,CARLSON WAGONLIT TRAVEL,4000033063,156.13
DEPARTMENT FOR EDUCATION,DEPARTMENT FOR EDUCATION,19/08/2010,STAFF EXPENSES / COSTS,School Formation and Investment Group,CARLSON WAGONLIT TRAVEL,4000033063,156.59
DEPARTMENT FOR EDUCATION,DEPARTMENT FOR EDUCATION,19/08/2010,STAFF EXPENSES / COSTS,Curriculum and Pupil Well Being Improving Behaviour and Attendance Unit,CARLSON WAGONLIT TRAVEL,4000033063,156.59
DEPARTMENT FOR EDUCATION,DEPARTMENT FOR EDUCATION,19/08/2010,STAFF EXPENSES / COSTS,People and Change,CARLSON WAGONLIT TRAVEL,4000033063,159.92
DEPARTMENT FOR EDUCATION,DEPARTMENT FOR EDUCATION,19/08/2010,STAFF EXPENSES / COSTS,School Resources Group,CARLSON WAGONLIT TRAVEL,4000033063,160.56
DEPARTMENT FOR EDUCATION,DEPARTMENT FOR EDUCATION,19/08/2010,STAFF EXPENSES / COSTS,Children and Families Supporting Delivery Group,CARLSON WAGONLIT TRAVEL,4000033063,162.18
DEPARTMENT FOR EDUCATION,DEPARTMENT FOR EDUCATION,19/08/2010,STAFF EXPENSES / COSTS,Chief Information Officer Group,CARLSON WAGONLIT TRAVEL,4000033063,165.71
DEPARTMENT FOR EDUCATION,DEPARTMENT FOR EDUCATION,19/08/2010,STAFF EXPENSES / COSTS,School Performance and Reform Group,CARLSON WAGONLIT TRAVEL,4000033063,172.39
DEPARTMENT FOR EDUCATION,DEPARTMENT FOR EDUCATION,19/08/2010,STAFF EXPENSES / COSTS,Chief Information Officer Group,CARLSON WAGONLIT TRAVEL,4000033063,172.74
DEPARTMENT FOR EDUCATION,DEPARTMENT FOR EDUCATION,19/08/2010,STAFF EXPENSES / COSTS,Corporate Services Director General,CARLSON WAGONLIT TRAVEL,4000033063,175.54
DEPARTMENT FOR EDUCATION,DEPARTMENT FOR EDUCATION,19/08/2010,STAFF EXPENSES / COSTS,People and Change,CARLSON WAGONLIT TRAVEL,4000033063,177.45
DEPARTMENT FOR EDUCATION,DEPARTMENT FOR EDUCATION,19/08/2010,STAFF EXPENSES / COSTS,Young People Participation and Attainment Group,CARLSON WAGONLIT TRAVEL,4000033063,188.71
DEPARTMENT FOR EDUCATION,DEPARTMENT FOR EDUCATION,19/08/2010,STAFF EXPENSES / COSTS,Children and Families Safeguarding Group,CARLSON WAGONLIT TRAVEL,4000033063,194.62
DEPARTMENT FOR EDUCATION,DEPARTMENT FOR EDUCATION,19/08/2010,STAFF EXPENSES / COSTS,Children and Families Child Well Being Group,CARLSON WAGONLIT TRAVEL,4000033063,195.93
DEPARTMENT FOR EDUCATION,DEPARTMENT FOR EDUCATION,19/08/2010,STAFF EXPENSES / COSTS,School Formation and Investment Group,CARLSON WAGONLIT TRAVEL,4000033063,215.7
DEPARTMENT FOR EDUCATION,DEPARTMENT FOR EDUCATION,19/08/2010,STAFF EXPENSES / COSTS,Chief Information Officer Group,CARLSON WAGONLIT TRAVEL,4000033063,216.98
DEPARTMENT FOR EDUCATION,DEPARTMENT FOR EDUCATION,19/08/2010,STAFF EXPENSES / COSTS,Chief Information Officer Group,CARLSON WAGONLIT TRAVEL,4000033063,218.47
DEPARTMENT FOR EDUCATION,DEPARTMENT FOR EDUCATION,19/08/2010,STAFF EXPENSES / COSTS,School Resources Group,CARLSON WAGONLIT TRAVEL,4000033063,230.17
DEPARTMENT FOR EDUCATION,DEPARTMENT FOR EDUCATION,19/08/2010,STAFF EXPENSES / COSTS,Young People Quality Standards and Reform Group,CARLSON WAGONLIT TRAVEL,4000033063,231.19
DEPARTMENT FOR EDUCATION,DEPARTMENT FOR EDUCATION,19/08/2010,STAFF EXPENSES / COSTS,Commercial Group Shared Services and Children and Young People,CARLSON WAGONLIT TRAVEL,4000033063,242.58
DEPARTMENT FOR EDUCATION,DEPARTMENT FOR EDUCATION,19/08/2010,STAFF EXPENSES / COSTS,Commercial Group Schools and Category Management,CARLSON WAGONLIT TRAVEL,4000033063,252.93
DEPARTMENT FOR EDUCATION,DEPARTMENT FOR EDUCATION,19/08/2010,STAFF EXPENSES / COSTS,Commercial Group,CARLSON WAGONLIT TRAVEL,4000033063,254.05
DEPARTMENT FOR EDUCATION,DEPARTMENT FOR EDUCATION,19/08/2010,STAFF EXPENSES / COSTS,School Resources Group,CARLSON WAGONLIT TRAVEL,4000033063,256.58
DEPARTMENT FOR EDUCATION,DEPARTMENT FOR EDUCATION,19/08/2010,STAFF EXPENSES / COSTS,Commercial Group Schools and Category Management,CARLSON WAGONLIT TRAVEL,4000033063,259.73
DEPARTMENT FOR EDUCATION,DEPARTMENT FOR EDUCATION,19/08/2010,STAFF EXPENSES / COSTS,Customer Contact and Business Development Group,CARLSON WAGONLIT TRAVEL,4000033063,263.43
DEPARTMENT FOR EDUCATION,DEPARTMENT FOR EDUCATION,19/08/2010,STAFF EXPENSES / COSTS,Children and Families Child Well Being Group,CARLSON WAGONLIT TRAVEL,4000033063,265.64
DEPARTMENT FOR EDUCATION,DEPARTMENT FOR EDUCATION,19/08/2010,STAFF EXPENSES / COSTS,Children and Families Supporting Delivery Group,CARLSON WAGONLIT TRAVEL,4000033063,276.69
DEPARTMENT FOR EDUCATION,DEPARTMENT FOR EDUCATION,19/08/2010,STAFF EXPENSES / COSTS,Marketing Group,CARLSON WAGONLIT TRAVEL,4000033063,279.3
DEPARTMENT FOR EDUCATION,DEPARTMENT FOR EDUCATION,19/08/2010,STAFF EXPENSES / COSTS,Young People  Schools Children and Young People Group,CARLSON WAGONLIT TRAVEL,4000033063,288.52
DEPARTMENT FOR EDUCATION,DEPARTMENT FOR EDUCATION,19/08/2010,STAFF EXPENSES / COSTS,School Formation and Investment Group,CARLSON WAGONLIT TRAVEL,4000033063,289.17
DEPARTMENT FOR EDUCATION,DEPARTMENT FOR EDUCATION,19/08/2010,STAFF EXPENSES / COSTS,"Strategic Analysis, Research and Policy Impact Group",CARLSON WAGONLIT TRAVEL,4000033063,289.81
DEPARTMENT FOR EDUCATION,DEPARTMENT FOR EDUCATION,19/08/2010,STAFF EXPENSES / COSTS,School Performance and Reform Office of the Schools Commissioner,CARLSON WAGONLIT TRAVEL,4000033063,291.59
DEPARTMENT FOR EDUCATION,DEPARTMENT FOR EDUCATION,19/08/2010,STAFF EXPENSES / COSTS,Young People Analysis Division,CARLSON WAGONLIT TRAVEL,4000033063,295.22
DEPARTMENT FOR EDUCATION,DEPARTMENT FOR EDUCATION,19/08/2010,STAFF EXPENSES / COSTS,Young People Participation and Attainment Group,CARLSON WAGONLIT TRAVEL,4000033063,300.94
DEPARTMENT FOR EDUCATION,DEPARTMENT FOR EDUCATION,19/08/2010,STAFF EXPENSES / COSTS,Children and Families Group,CARLSON WAGONLIT TRAVEL,4000033063,302.82
DEPARTMENT FOR EDUCATION,DEPARTMENT FOR EDUCATION,19/08/2010,STAFF EXPENSES / COSTS,Young People Quality Standards and Reform Group,CARLSON WAGONLIT TRAVEL,4000033063,314.76
DEPARTMENT FOR EDUCATION,DEPARTMENT FOR EDUCATION,19/08/2010,STAFF EXPENSES / COSTS,Chief Information Officer Group,CARLSON WAGONLIT TRAVEL,4000033063,317.95
DEPARTMENT FOR EDUCATION,DEPARTMENT FOR EDUCATION,19/08/2010,STAFF EXPENSES / COSTS,School Standards Group,CARLSON WAGONLIT TRAVEL,4000033063,322.34
DEPARTMENT FOR EDUCATION,DEPARTMENT FOR EDUCATION,19/08/2010,STAFF EXPENSES / COSTS,Internal Audit,CARLSON WAGONLIT TRAVEL,4000033063,397.44
DEPARTMENT FOR EDUCATION,DEPARTMENT FOR EDUCATION,19/08/2010,STAFF EXPENSES / COSTS,Young People  Schools Children and Young People Group,CARLSON WAGONLIT TRAVEL,4000033063,407.73
DEPARTMENT FOR EDUCATION,DEPARTMENT FOR EDUCATION,19/08/2010,STAFF EXPENSES / COSTS,Children and Families Improving Information Sharing and Management Group,CARLSON WAGONLIT TRAVEL,4000033063,421.73
DEPARTMENT FOR EDUCATION,DEPARTMENT FOR EDUCATION,19/08/2010,STAFF EXPENSES / COSTS,Young People Quality Standards and Reform Group,CARLSON WAGONLIT TRAVEL,4000033063,427.91
DEPARTMENT FOR EDUCATION,DEPARTMENT FOR EDUCATION,19/08/2010,STAFF EXPENSES / COSTS,Corporate Services Strategy and Performance,CARLSON WAGONLIT TRAVEL,4000033063,432.25
DEPARTMENT FOR EDUCATION,DEPARTMENT FOR EDUCATION,19/08/2010,STAFF EXPENSES / COSTS,Chief Information Officer Group,CARLSON WAGONLIT TRAVEL,4000033063,455.9
DEPARTMENT FOR EDUCATION,DEPARTMENT FOR EDUCATION,19/08/2010,STAFF EXPENSES / COSTS,Corporate Services Director General,CARLSON WAGONLIT TRAVEL,4000033063,516.6
DEPARTMENT FOR EDUCATION,DEPARTMENT FOR EDUCATION,19/08/2010,STAFF EXPENSES / COSTS,Young People  Schools Children and Young People Group,CARLSON WAGONLIT TRAVEL,4000033063,528.78
DEPARTMENT FOR EDUCATION,DEPARTMENT FOR EDUCATION,19/08/2010,STAFF EXPENSES / COSTS,Young People Participation and Attainment Group,CARLSON WAGONLIT TRAVEL,4000033063,536.12
DEPARTMENT FOR EDUCATION,DEPARTMENT FOR EDUCATION,19/08/2010,STAFF EXPENSES / COSTS,Commercial Group Shared Services and Children and Young People,CARLSON WAGONLIT TRAVEL,4000033063,555.75
DEPARTMENT FOR EDUCATION,DEPARTMENT FOR EDUCATION,19/08/2010,STAFF EXPENSES / COSTS,Corporate Services Director General,CARLSON WAGONLIT TRAVEL,4000033063,575.34
DEPARTMENT FOR EDUCATION,DEPARTMENT FOR EDUCATION,19/08/2010,STAFF EXPENSES / COSTS,Children and Families Safeguarding Group,CARLSON WAGONLIT TRAVEL,4000033063,610.94
DEPARTMENT FOR EDUCATION,DEPARTMENT FOR EDUCATION,19/08/2010,STAFF EXPENSES / COSTS,Commercial Group Shared Services and Children and Young People,CARLSON WAGONLIT TRAVEL,4000033063,616.6
DEPARTMENT FOR EDUCATION,DEPARTMENT FOR EDUCATION,19/08/2010,STAFF EXPENSES / COSTS,Children and Families Supporting Delivery Group,CARLSON WAGONLIT TRAVEL,4000033063,625.54
DEPARTMENT FOR EDUCATION,DEPARTMENT FOR EDUCATION,19/08/2010,STAFF EXPENSES / COSTS,School Performance and Reform Group,CARLSON WAGONLIT TRAVEL,4000033063,635.63
DEPARTMENT FOR EDUCATION,DEPARTMENT FOR EDUCATION,19/08/2010,STAFF EXPENSES / COSTS,People and Change,CARLSON WAGONLIT TRAVEL,4000033063,679.77
DEPARTMENT FOR EDUCATION,DEPARTMENT FOR EDUCATION,19/08/2010,STAFF EXPENSES / COSTS,People and Change,CARLSON WAGONLIT TRAVEL,4000033063,685.18
DEPARTMENT FOR EDUCATION,DEPARTMENT FOR EDUCATION,19/08/2010,STAFF EXPENSES / COSTS,Commercial Group Shared Services and Children and Young People,CARLSON WAGONLIT TRAVEL,4000033063,797.87
DEPARTMENT FOR EDUCATION,DEPARTMENT FOR EDUCATION,19/08/2010,STAFF EXPENSES / COSTS,Commercial Group Schools and Category Management,CARLSON WAGONLIT TRAVEL,4000033063,808.59
DEPARTMENT FOR EDUCATION,DEPARTMENT FOR EDUCATION,19/08/2010,STAFF EXPENSES / COSTS,"Strategic Analysis, Research and Policy Impact Group",CARLSON WAGONLIT TRAVEL,4000033063,920.18
DEPARTMENT FOR EDUCATION,DEPARTMENT FOR EDUCATION,19/08/2010,STAFF EXPENSES / COSTS,Young People Quality Standards and Reform Group,CARLSON WAGONLIT TRAVEL,4000033063,1082.8
DEPARTMENT FOR EDUCATION,DEPARTMENT FOR EDUCATION,19/08/2010,STAFF EXPENSES / COSTS,"Strategic Analysis, Research and Policy Impact Group",CARLSON WAGONLIT TRAVEL,4000033063,1157.56
DEPARTMENT FOR EDUCATION,DEPARTMENT FOR EDUCATION,19/08/2010,STAFF EXPENSES / COSTS,Young People Workforce Group,CARLSON WAGONLIT TRAVEL,4000033063,1579.62
DEPARTMENT FOR EDUCATION,DEPARTMENT FOR EDUCATION,19/08/2010,STAFF EXPENSES / COSTS,Chief Information Officer Group,CARLSON WAGONLIT TRAVEL,4000033063,1608.34
DEPARTMENT FOR EDUCATION,DEPARTMENT FOR EDUCATION,19/08/2010,STAFF EXPENSES / COSTS,Finance Group,CARLSON WAGONLIT TRAVEL,4000033063,1618.9
DEPARTMENT FOR EDUCATION,DEPARTMENT FOR EDUCATION,19/08/2010,STAFF EXPENSES / COSTS,Commercial Group EFM,CARLSON WAGONLIT TRAVEL,4000033063,1870.9
DEPARTMENT FOR EDUCATION,DEPARTMENT FOR EDUCATION,19/08/2010,STAFF EXPENSES / COSTS,Young People Quality Standards and Reform Group,CARLSON WAGONLIT TRAVEL,4000033063,1988.45
DEPARTMENT FOR EDUCATION,DEPARTMENT FOR EDUCATION,19/08/2010,STAFF EXPENSES / COSTS,School Formation and Investment Group,CARLSON WAGONLIT TRAVEL,4000033063,2098.16
DEPARTMENT FOR EDUCATION,DEPARTMENT FOR EDUCATION,19/08/2010,STAFF EXPENSES / COSTS,Children and Families Group,CARLSON WAGONLIT TRAVEL,4000033063,6426.96
DEPARTMENT FOR EDUCATION,DEPARTMENT FOR EDUCATION,19/08/2010,IS/IT,Chief Information Officer Group,ENERGIS COMMUNICATIONS LTD,4000033081,106760.5
DEPARTMENT FOR EDUCATION,DEPARTMENT FOR EDUCATION,19/08/2010,COMMUNICATIONS & PUBLICITY,Corporate and Internal Communications Group,IPSOS MORI,4000033093,43058.52
DEPARTMENT FOR EDUCATION,DEPARTMENT FOR EDUCATION,19/08/2010,CONTRACT PROGRAMME EXPENDITURE,14 - 19 Reform Young People Guidance,NORD ANGLIA LIFETIME DEV NORTH EAST LTD,4000033102,39950
DEPARTMENT FOR EDUCATION,DEPARTMENT FOR EDUCATION,19/08/2010,CONTRACT PROGRAMME EXPENDITURE,Children and Families Early Years Extended Schools and Special Needs,PARADIGM,4000033104,58750
DEPARTMENT FOR EDUCATION,DEPARTMENT FOR EDUCATION,19/08/2010,CONTRACT PROGRAMME EXPENDITURE,Children and Families Group,PARENTLINE PLUS,4000033105,26020.38
DEPARTMENT FOR EDUCATION,DEPARTMENT FOR EDUCATION,19/08/2010,CONTRACT PROGRAMME EXPENDITURE,Children and Families Supporting Delivery Group,SPRINGBOARD,4000033113,610976.65
DEPARTMENT FOR EDUCATION,DEPARTMENT FOR EDUCATION,19/08/2010,RESEARCH & DEVELOPMENT COSTS,Children and Families Early Years Extended Schools and Special Needs,TNS UK LTD,4000033117,196000
DEPARTMENT FOR EDUCATION,DEPARTMENT FOR EDUCATION,20/08/2010,MANAGEMENT CONSULTANCY,Commercial Group Strategic Functions,ATOS CONSULTING LTD,4000033138,165840
DEPARTMENT FOR EDUCATION,DEPARTMENT FOR EDUCATION,20/08/2010,OTHER PROGRAMME EXPENSES,Supporting Children and Young People Group Activities and Engagement,BIG LOTTERY FUND,4000033139,780005
DEPARTMENT FOR EDUCATION,DEPARTMENT FOR EDUCATION,20/08/2010,CAPITAL GRANTS,Supporting Children and Young People Group Activities and Engagement,BRIGHTON & HOVE CITY COUNCIL,4000033143,30450
DEPARTMENT FOR EDUCATION,DEPARTMENT FOR EDUCATION,20/08/2010,IT EQUIPMENT CAPITAL,Commercial Group EFM,BT CONFERENCING ACCOUNTS,4000033144,40598.6
DEPARTMENT FOR EDUCATION,DEPARTMENT FOR EDUCATION,20/08/2010,CAPITAL GRANTS,Supporting Children and Young People Group Activities and Engagement,BUCKINGHAMSHIRE COUNTY COUNCIL,4000033146,50200
DEPARTMENT FOR EDUCATION,DEPARTMENT FOR EDUCATION,20/08/2010,CONTRACT PROGRAMME EXPENDITURE,Curriculum and Pupil Well Being Curriculum Unit,CENTRAL OFFICE OF INFORMATION,4000033151,93762.63
DEPARTMENT FOR EDUCATION,DEPARTMENT FOR EDUCATION,20/08/2010,CURRENT GRANTS,Curriculum and Pupil Well Being Curriculum Unit,COUNCIL FOR LEARNING OUTSIDE THE CLASSROOM,4000033154,105630
DEPARTMENT FOR EDUCATION,DEPARTMENT FOR EDUCATION,20/08/2010,CURRENT GRANTS,School Formation and Investment Group,DRAPERS ACADEMY,4000033157,35020.8
DEPARTMENT FOR EDUCATION,DEPARTMENT FOR EDUCATION,20/08/2010,CAPITAL GRANTS,Supporting Children and Young People Group Activities and Engagement,EAST SUSSEX COUNTY COUNCIL,4000033160,59025
DEPARTMENT FOR EDUCATION,DEPARTMENT FOR EDUCATION,20/08/2010,CAPITAL GRANTS,School Formation and Investment Group,GRACE ACADEMY  COVENTRY,4000033162,195045.18
DEPARTMENT FOR EDUCATION,DEPARTMENT FOR EDUCATION,20/08/2010,CAPITAL GRANTS,Supporting Children and Young People Group Activities and Engagement,HAMPSHIRE C C,4000033163,128475
DEPARTMENT FOR EDUCATION,DEPARTMENT FOR EDUCATION,20/08/2010,CAPITAL GRANTS,School Formation and Investment Group,HARRIS ACADEMY MERTON,4000033166,688616.24
DEPARTMENT FOR EDUCATION,DEPARTMENT FOR EDUCATION,20/08/2010,CAPITAL GRANTS,School Formation and Investment Group,HARRIS GIRLS ACADEMY EAST DULWICH,4000033167,1368596.89
DEPARTMENT FOR EDUCATION,DEPARTMENT FOR EDUCATION,20/08/2010,CAPITAL GRANTS,School Formation and Investment Group,KINGSHURST CTC,4000033181,706455.75
DEPARTMENT FOR EDUCATION,DEPARTMENT FOR EDUCATION,20/08/2010,CAPITAL GRANTS,Supporting Children and Young People Group Activities and Engagement,MEDWAY COUNCIL,4000033187,32475
DEPARTMENT FOR EDUCATION,DEPARTMENT FOR EDUCATION,20/08/2010,CAPITAL GRANTS,School Formation and Investment Group,MERCHANTS ACADEMY WITHYWOOD,4000033188,122434
DEPARTMENT FOR EDUCATION,DEPARTMENT FOR EDUCATION,20/08/2010,CAPITAL GRANTS,Supporting Children and Young People Group Activities and Engagement,MILTON KEYNES COUNCIL,4000033189,28375
DEPARTMENT FOR EDUCATION,DEPARTMENT FOR EDUCATION,20/08/2010,PROFESSIONAL FEES,School Formation and Investment Group,MOUCHEL BUSINESS SERVICES LTD,4000033194,27637.76
DEPARTMENT FOR EDUCATION,DEPARTMENT FOR EDUCATION,20/08/2010,CONTRACT PROGRAMME EXPENDITURE,Curriculum and Pupil Well Being Curriculum Unit,NATIONAL SCIENCE LEARNING CENTRE,4000033195,1940345.97
DEPARTMENT FOR EDUCATION,DEPARTMENT FOR EDUCATION,20/08/2010,CONTRACT PROGRAMME EXPENDITURE,Children and Families Early Years Extended Schools and Special Needs,NPS PROPERTY CONSULTANTS LTD,4000033198,59175.77
DEPARTMENT FOR EDUCATION,DEPARTMENT FOR EDUCATION,20/08/2010,CURRENT GRANTS,School Formation and Investment Group,ORMISTON VENTURE ACADEMY,4000033201,148288
DEPARTMENT FOR EDUCATION,DEPARTMENT FOR EDUCATION,20/08/2010,CONTRACT PROGRAMME EXPENDITURE,School Formation and Investment Group,PLACE GROUP LIMITED,4000033206,150636.19
DEPARTMENT FOR EDUCATION,DEPARTMENT FOR EDUCATION,20/08/2010,CAPITAL GRANTS,Supporting Children and Young People Group Activities and Engagement,PORTSMOUTH CITY COUNCIL,4000033207,27525
DEPARTMENT FOR EDUCATION,DEPARTMENT FOR EDUCATION,20/08/2010,CAPITAL GRANTS,Supporting Children and Young People Group Activities and Engagement,SOLIHULL MBC,4000033220,27650
DEPARTMENT FOR EDUCATION,DEPARTMENT FOR EDUCATION,20/08/2010,CAPITAL GRANTS,Supporting Children and Young People Group Activities and Engagement,SOUTHAMPTON CITY COUNCIL,4000033221,29975
DEPARTMENT FOR EDUCATION,DEPARTMENT FOR EDUCATION,20/08/2010,CAPITAL GRANTS,Supporting Children and Young People Group Activities and Engagement,STOKE ON TRENT CITY COUNCIL,4000033222,34425
DEPARTMENT FOR EDUCATION,DEPARTMENT FOR EDUCATION,20/08/2010,CAPITAL GRANTS,School Formation and Investment Group,THE QUAERERE ACADEMY TRUST,4000033225,256799.29
DEPARTMENT FOR EDUCATION,DEPARTMENT FOR EDUCATION,20/08/2010,CONTRACT PROGRAMME EXPENDITURE,Curriculum and Pupil Well Being Curriculum Unit,TRIBAL EDUCATION LTD CONSULTING,4000033229,493489.43
DEPARTMENT FOR EDUCATION,DEPARTMENT FOR EDUCATION,20/08/2010,CONTRACT PROGRAMME EXPENDITURE,Curriculum and Pupil Well Being Curriculum Unit,UNIVERSITY OF PLYMOUTH,4000033230,67700.5
DEPARTMENT FOR EDUCATION,DEPARTMENT FOR EDUCATION,20/08/2010,STAFF EXPENSES / COSTS,School Analysis and Research,UNIVERSITY OF SOUTHAMPTON,4000033231,525
DEPARTMENT FOR EDUCATION,DEPARTMENT FOR EDUCATION,20/08/2010,CONTRACT PROGRAMME EXPENDITURE,Curriculum and Pupil Well Being Curriculum Unit,UNIVERSITY OF SOUTHAMPTON,4000033231,221750
